{"text_format":"1","workbook":"xlsx","n_sheets":2,"sheets":["Solare Energieleistung","Stammdaten"],"not_rendered":{"charts":0,"images":1,"macros":1,"external_links":0,"defined_names":0,"comments":0,"pivot_tables":0},"unopened":[],"bounds":{"document_bytes":16777216,"sheet_cells":100000,"rows_first":2000,"rows_last":500,"rows_between":2000,"halvings":0,"cell_chars":16384,"cell_head_chars":4096},"cells_cut":0,"cells_raw":0,"read":"whole","date_system":"1900"}

{"sheet":"Solare Energieleistung","index":0,"n_rows":1048576,"n_cols":16384,"rows_kept":4500,"cut":true,"hidden":false,"merged":[[8,0,8,1],[1,1,1,2],[2,1,2,2],[5,1,7,2]],"bounds":{"rows_first":2000,"rows_last":500,"rows_between":2000,"halvings":0}}
["Anzahl der Anlagenschlüssel:",1,null,null,null,null,null,null,null,null,null,null,null,null,null,null,null,null,null,null,null,null,null,null,null,null,null,null,null,null,null,null,null,null,null,null,null,null,null,null,null,null,null,null,null,null,null,null,null,null,null,null,null,null,null,null,null,null,null,null,null,null,null,null,null,null,null,null,null,null,null,null,null,null,null,null,null,null,null,null,null,null,null,null,null,null,null,null,null,null,null,null,null,null,null,null,null,null,null,null,null,null,null,null,null,null,null,null,null,null,null,null,null,null,null,null,null,null,null,null,null,null,null,null,null,null,null,null,null,null,null,null,null,null,null,null,null,null,null,null,null,null,null,null,null,null,null,null,null,null,null,null,null,null,null,null,null,null,null,null,null,null,null,null,null,null,null,null,null,null,null,null,null,null,null,null,null,null,null,null,null,null,null,null,null,null,null,null,null,null,null,null,null,null,null,null,null,null,null,null,null,null,null,null,null,null,null,null,null,null,null,null,null,null,null,null,null,null,null,null,null,null,null,null,null,null,null,null,null,null,null,null,null,null,null,null,null,null,null,null,null,null,null,null,null,null,null,null,null,null,null,null,null,null,null,null,null,null,null,null,null,null,null,null,null,null,null,null,null,null,null,null,null,null,null,null,null,null,null,null,null,null,null,null,null,null,null,null,null,null,null,null,null,null,null,null,null,null,null,null,null,null,null,null,null,null,null,null,null,null,null,null,null,null,null,null,null,null,null,null,null,null,null,null,null,null,null,null,null,null,null,null,null,null,null,null,null,null,null,null,null,null,null,null,null,null,null,null,null,null,null,null,null,null,null,null,null,null,null,null,null,null,null,null,null,null,null,null,null,null,null,null,null,null,null,null,null,null,null,null,null,null,null,null,null,null,null,null,null,null,null,null,null,null,null,null,null,null,null,null,null,null,null,null,null,null,null,null,null,null,null,null,null,null,null,null,null,null,null,null,null,null,null,null,null,null,null,null,null,null,null,null,null,null,null,null,null,null,null,null,null,null,null,null,null,null,null,null,null,null,null,null,null,null,null,null,null,null,null,null,null,null,null,null,null,null,null,null,null,null,null,null,null,null,null,null,null,null,null,null,null,null,null,null,null,null,null,null,null,null,null,null,null,null,null,null,null,null,null,null,null,null,null,null,null,null,null,null,null,null,null,null,null,null,null,null,null,null,null,null,null,null,null,null,null,null,null,null,null,null,null,null,null,null,null,null,null,null,null,null,null,null,null,null,null,null,null,null,null,null,null,null,null,null,null,null,null,null,null,null,null,null,null,null,null,null,null,null,null,null,null,null,null,null,null,null,null,null,null,null,null,null,null,null,null,null,null,null,null,null,null,null,null,null,null,null,null,null,null,null,null,null,null,null,null,null,null,null,null,null,null,null,null,null,null,null,null,null,null,null,null,null,null,null,null,null,null,null,null,null,null,null,null,null,null,null,null,null,null,null,null,null,null,null,null,null,null,null,null,null,null,null,null,null,null,null,null,null,null,null,null,null,null,null,null,null,null,null,null,null,null,null,null,null,null,null,null,null,null,null,null,null,null,null,null,null,null,null,null,null,null,null,null,null,null,null,null,null,null,null,null,null,null,null,null,null,null,null,null,null,null,null,null,null,null,null,null,null,null,null,null,null,null,null,null,null,null,null,null,null,null,null,null,null,null,null,null,null,null,null,null,null,null,null,null,null,null,null,null,null,null,null,null,null,null,null,null,null,null,null,null,null,null,null,null,null,null,null,null,null,null,null,null,null,null,null,null,null,null,null,null,null,null,null,null,null,null,null,null,null,null,null,null,null,null,null,null,null,null,null,null,null,null,null,null,null,null,null,null,null,null,null,null,null,null,null,null,null,null,null,null,null,null,null,null,null,null,null,null,null,null,null,null,null,null,null,null,null,null,null,null,null,null,null,null,null,null,null,null,null,null,null,null,null,null,null,null,null,null,null,null,null,null,null,null,null,null,null,null,null,null,null,null,null,null,null,null,null,null,null,null,null,null,null,null,null,null,null,null,null,null,null,null,null,null,null,null,null,null,null,null,null,null,null,null,null,null,null,null,null,null,null,null,null,null,null,null,null,null,null,null,null,null,null,null,null,null,null,null,null,null,null,null,null,null,null,null,null,null,null,null,null,null,null,null,null,null,null,null,null,null,null,null,null,null,null,null,null,null,null,null,null,null,null,null,null,null,null,null,null,null,null,null,null,null,null,null,null,null,null,null,null,null,null,null,null,null,null,null,null,null,null,null,null,null,null,null,null,null,null,null,null,null,null,null,null,null,null,null,null,null,null,null,null,null,null,null,null,null,null,null,null,null,null,null,null,null,null,null,null,null,null,null,null,null,null,null,null,null,null,null,null,null,null,null,null,null,null,null,null,null,null,null,null,null,null,null,null,null,null,null,null,null,null,null,null,null,null,null,null,null,null,null,null,null,null,null,null,null,null,null,null,null,null,null,null,null,null,null,null,null,null,null,null,null,null,null,null,null,null,null,null,null,null,null,null,null,null,null,null,null,null,null,null,null,null,null,null,null,null,null,null,null,null,null,null,null,null,null,null,null,null,null,null,null,null,null,null,null,null,null,null,null,null,null,null,null,null,null,null,null,null,null,null,null,null,null,null,null,null,null,null,null,null,null,null,null,null,null,null,null,null,null,null,null,null,null,null,null,null,null,null,null,null,null,null,null,null,null,null,null,null,null,null,null,null,null,null,null,null,null,null,null,null,null,null,null,null,null,null,null,null,null,null,null,null,null,null,null,null,null,null,null,null,null,null,null,null,null,null,null,null,null,null,null,null,null,null,null,null,null,null,null,null,null,null,null,null,null,null,null,null,null,null,null,null,null,null,null,null,null,null,null,null,null,null,null,null,null,null,null,null,null,null,null,null,null,null,null,null,null,null,null,null,null,null,null,null,null,null,null,null,null,null,null,null,null,null,null,null,null,null,null,null,null,null,null,null,null,null,null,null,null,null,null,null,null,null,null,null,null,null,null,null,null,null,null,null,null,null,null,null,null,null,null,null,null,null,null,null,null,null,null,null,null,null,null,null,null,null,null,null,null,null,null,null,null,null,null,null,null,null,null,null,null,null,null,null,null,null,null,null,null,null,null,null,null,null,null,null,null,null,null,null,null,null,null,null,null,null,null,null,null,null,null,null,null,null,null,null,null,null,null,null,null,null,null,null,null,null,null,null,null,null,null,null,null,null,null,null,null,null,null,null,null,null,null,null,null,null,null,null,null,null,null,null,null,null,null,null,null,null,null,null,null,null,null,null,null,null,null,null,null,null,null,null,null,null,null,null,null,null,null,null,null,null,null,null,null,null,null,null,null,null,null,null,null,null,null,null,null,null,null,null,null,null,null,null,null,null,null,null,null,null,null,null,null,null,null,null,null,null,null,null,null,null,null,null,null,null,null,null,null,null,null,null,null,null,null,null,null,null,null,null,null,null,null,null,null,null,null,null,null,null,null,null,null,null,null,null,null,null,null,null,null,null,null,null,null,null,null,null,null,null,null,null,null,null,null,null,null,null,null,null,null,null,null,null,null,null,null,null,null,null,null,null,null,null,null,null,null,null,null,null,null,null,null,null,null,null,null,null,null,null,null,null,null,null,null,null,null,null,null,null,null,null,null,null,null,null,null,null,null,null,null,null,null,null,null,null,null,null,null,null,null,null,null,null,null,null,null,null,null,null,null,null,null,null,null,null,null,null,null,null,null,null,null,null,null,null,null,null,null,null,null,null,null,null,null,null,null,null,null,null,null,null,null,null,null,null,null,null,null,null,null,null,null,null,null,null,null,null,null,null,null,null,null,null,null,null,null,null,null,null,null,null,null,null,null,null,null,null,null,null,null,null,null,null,null,null,null,null,null,null,null,null,null,null,null,null,null,null,null,null,null,null,null,null,null,null,null,null,null,null,null,null,null,null,null,null,null,null,null,null,null,null,null,null,null,null,null,null,null,null,null,null,null,null,null,null,null,null,null,null,null,null,null,null,null,null,null,null,null,null,null,null,null,null,null,null,null,null,null,null,null,null,null,null,null,null,null,null,null,null,null,null,null,null,null,null,null,null,null,null,null,null,null,null,null,null,null,null,null,null,null,null,null,null,null,null,null,null,null,null,null,null,null,null,null,null,null,null,null,null,null,null,null,null,null,null,null,null,null,null,null,null,null,null,null,null,null,null,null,null,null,null,null,null,null,null,null,null,null,null,null,null,null,null,null,null,null,null,null,null,null,null,null,null,null,null,null,null,null,null,null,null,null,null,null,null,null,null,null,null,null,null,null,null,null,null,null,null,null,null,null,null,null,null,null,null,null,null,null,null,null,null,null,null,null,null,null,null,null,null,null,null,null,null,null,null,null,null,null,null,null,null,null,null,null,null,null,null,null,null,null,null,null,null,null,null,null,null,null,null,null,null,null,null,null,null,null,null,null,null,null,null,null,null,null,null,null,null,null,null,null,null,null,null,null,null,null,null,null,null,null,null,null,null,null,null,null,null,null,null,null,null,null,null,null,null,null,null,null,null,null,null,null,null,null,null,null,null,null,null,null,null,null,null,null,null,null,null,null,null,null,null,null,null,null,null,null,null,null,null,null,null,null,null,null,null,null,null,null,null,null,null,null,null,null,null,null,null,null,null,null,null,null,null,null,null,null,null,null,null,null,null,null,null,null,null,null,null,null,null,null,null,null,null,null,null,null,null,null,null,null,null,null,null,null,null,null,null,null,null,null,null,null,null,null,null,null,null,null,null,null,null,null,null,null,null,null,null,null,null,null,null,null,null,null,null,null,null,null,null,null,null,null,null,null,null,null,null,null,null,null,null,null,null,null,null,null,null,null,null,null,null,null,null,null,null,null,null,null,null,null,null,null,null,null,null,null,null,null,null,null,null,null,null,null,null,null,null,null,null,null,null,null,null,null,null,null,null,null,null,null,null,null,null,null,null,null,null,null,null,null,null,null,null,null,null,null,null,null,null,null,null,null,null,null,null,null,null,null,null,null,null,null,null,null,null,null,null,null,null,null,null,null,null,null,null,null,null,null,null,null,null,null,null,null,null,null,null,null,null,null,null,null,null,null,null,null,null,null,null,null,null,null,null,null,null,null,null,null,null,null,null,null,null,null,null,null,null,null,null,null,null,null,null,null,null,null,null,null,null,null,null,null,null,null,null,null,null,null,null,null,null,null,null,null,null,null,null,null,null,null,null,null,null,null,null,null,null,null,null,null,null,null,null,null,null,null,null,null,null,null,null,null,null,null,null,null,null,null,null,null,null,null,null,null,null,null,null,null,null,null,null,null,null,null,null,null,null,null,null,null,null,null,null,null,null,null,null,null,null,null,null,null,null,null,null,null,null,null,null,null,null,null,null,null,null,null,null,null,null,null,null,null,null,null,null,null,null,null,null,null,null,null,null,null,null,null,null,null,null,null,null,null,null,null,null,null,null,null,null,null,null,null,null,null,null,null,null,null,null,null,null,null,null,null,null,null,null,null,null,null,null,null,null,null,null,null,null,null,null,null,null,null,null,null,null,null,null,null,null,null,null,null,null,null,null,null,null,null,null,null,null,null,null,null,null,null,null,null,null,null,null,null,null,null,null,null,null,null,null,null,null,null,null,null,null,null,null,null,null,null,null,null,null,null,null,null,null,null,null,null,null,null,null,null,null,null,null,null,null,null,null,null,null,null,null,null,null,null,null,null,null,null,null,null,null,null,null,null,null,null,null,null,null,null,null,null,null,null,null,null,null,null,null,null,null,null,null,null,null,null,null,null,null,null,null,null,null,null,null,null,null,null,null,null,null,null,null,null,null,null,null,null,null,null,null,null,null,null,null,null,null,null,null,null,null,null,null,null,null,null,null,null,null,null,null,null,null,null,null,null,null,null,null,null,null,null,null,null,null,null,null,null,null,null,null,null,null,null,null,null,null,null,null,null,null,null,null,null,null,null,null,null,null,null,null,null,null,null,null,null,null,null,null,null,null,null,null,null,null,null,null,null,null,null,null,null,null,null,null,null,null,null,null,null,null,null,null,null,null,null,null,null,null,null,null,null,null,null,null,null,null,null,null,null,null,null,null,null,null,null,null,null,null,null,null,null,null,null,null,null,null,null,null,null,null,null,null,null,null,null,null,null,null,null,null,null,null,null,null,null,null,null,null,null,null,null,null,null,null,null,null,null,null,null,null,null,null,null,null,null,null,null,null,null,null,null,null,null,null,null,null,null,null,null,null,null,null,null,null,null,null,null,null,null,null,null,null,null,null,null,null,null,null,null,null,null,null,null,null,null,null,null,null,null,null,null,null,null,null,null,null,null,null,null,null,null,null,null,null,null,null,null,null,null,null,null,null,null,null,null,null,null,null,null,null,null,null,null,null,null,null,null,null,null,null,null,null,null,null,null,null,null,null,null,null,null,null,null,null,null,null,null,null,null,null,null,null,null,null,null,null,null,null,null,null,null,null,null,null,null,null,null,null,null,null,null,null,null,null,null,null,null,null,null,null,null,null,null,null,null,null,null,null,null,null,null,null,null,null,null,null,null,null,null,null,null,null,null,null,null,null,null,null,null,null,null,null,null,null,null,null,null,null,null,null,null,null,null,null,null,null,null,null,null,null,null,null,null,null,null,null,null,null,null,null,null,null,null,null,null,null,null,null,null,null,null,null,null,null,null,null,null,null,null,null,null,null,null,null,null,null,null,null,null,null,null,null,null,null,null,null,null,null,null,null,null,null,null,null,null,null,null,null,null,null,null,null,null,null,null,null,null,null,null,null,null,null,null,null,null,null,null,null,null,null,null,null,null,null,null,null,null,null,null,null,null,null,null,null,null,null,null,null,null,null,null,null,null,null,null,null,null,null,null,null,null,null,null,null,null,null,null,null,null,null,null,null,null,null,null,null,null,null,null,null,null,null,null,null,null,null,null,null,null,null,null,null,null,null,null,null,null,null,null,null,null,null,null,null,null,null,null,null,null,null,null,null,null,null,null,null,null,null,null,null,null,null,null,null,null,null,null,null,null,null,null,null,null,null,null,null,null,null,null,null,null,null,null,null,null,null,null,null,null,null,null,null,null,null,null,null,null,null,null,null,null,null,null,null,null,null,null,null,null,null,null,null,null,null,null,null,null,null,null,null,null,null,null,null,null,null,null,null,null,null,null,null,null,null,null,null,null,null,null,null,null,null,null,null,null,null,null,null,null,null,null,null,null,null,null,null,null,null,null,null,null,null,null,null,null,null,null,null,null,null,null,null,null,null,null,null,null,null,null,null,null,null,null,null,null,null,null,null,null,null,null,null,null,null,null,null,null,null,null,null,null,null,null,null,null,null,null,null,null,null,null,null,null,null,null,null,null,null,null,null,null,null,null,null,null,null,null,null,null,null,null,null,null,null,null,null,null,null,null,null,null,null,null,null,null,null,null,null,null,null,null,null,null,null,null,null,null,null,null,null,null,null,null,null,null,null,null,null,null,null,null,null,null,null,null,null,null,null,null,null,null,null,null,null,null,null,null,null,null,null,null,null,null,null,null,null,null,null,null,null,null,null,null,null,null,null,null,null,null,null,null,null,null,null,null,null,null,null,null,null,null,null,null,null,null,null,null,null,null,null,null,null,null,null,null,null,null,null,null,null,null,null,null,null,null,null,null,null,null,null,null,null,null,null,null,null,null,null,null,null,null,null,null,null,null,null,null,null,null,null,null,null,null,null,null,null,null,null,null,null,null,null,null,null,null,null,null,null,null,null,null,null,null,null,null,null,null,null,null,null,null,null,null,null,null,null,null,null,null,null,null,null,null,null,null,null,null,null,null,null,null,null,null,null,null,null,null,null,null,null,null,null,null,null,null,null,null,null,null,null,null,null,null,null,null,null,null,null,null,null,null,null,null,null,null,null,null,null,null,null,null,null,null,null,null,null,null,null,null,null,null,null,null,null,null,null,null,null,null,null,null,null,null,null,null,null,null,null,null,null,null,null,null,null,null,null,null,null,null,null,null,null,null,null,null,null,null,null,null,null,null,null,null,null,null,null,null,null,null,null,null,null,null,null,null,null,null,null,null,null,null,null,null,null,null,null,null,null,null,null,null,null,null,null,null,null,null,null,null,null,null,null,null,null,null,null,null,null,null,null,null,null,null,null,null,null,null,null,null,null,null,null,null,null,null,null,null,null,null,null,null,null,null,null,null,null,null,null,null,null,null,null,null,null,null,null,null,null,null,null,null,null,null,null,null,null,null,null,null,null,null,null,null,null,null,null,null,null,null,null,null,null,null,null,null,null,null,null,null,null,null,null,null,null,null,null,null,null,null,null,null,null,null,null,null,null,null,null,null,null,null,null,null,null,null,null,null,null,null,null,null,null,null,null,null,null,null,null,null,null,null,null,null,null,null,null,null,null,null,null,null,null,null,null,null,null,null,null,null,null,null,null,null,null,null,null,null,null,null,null,null,null,null,null,null,null,null,null,null,null,null,null,null,null,null,null,null,null,null,null,null,null,null,null,null,null,null,null,null,null,null,null,null,null,null,null,null,null,null,null,null,null,null,null,null,null,null,null,null,null,null,null,null,null,null,null,null,null,null,null,null,null,null,null,null,null,null,null,null,null,null,null,null,null,null,null,null,null,null,null,null,null,null,null,null,null,null,null,null,null,null,null,null,null,null,null,null,null,null,null,null,null,null,null,null,null,null,null,null,null,null,null,null,null,null,null,null,null,null,null,null,null,null,null,null,null,null,null,null,null,null,null,null,null,null,null,null,null,null,null,null,null,null,null,null,null,null,null,null,null,null,null,null,null,null,null,null,null,null,null,null,null,null,null,null,null,null,null,null,null,null,null,null,null,null,null,null,null,null,null,null,null,null,null,null,null,null,null,null,null,null,null,null,null,null,null,null,null,null,null,null,null,null,null,null,null,null,null,null,null,null,null,null,null,null,null,null,null,null,null,null,null,null,null,null,null,null,null,null,null,null,null,null,null,null,null,null,null,null,null,null,null,null,null,null,null,null,null,null,null,null,null,null,null,null,null,null,null,null,null,null,null,null,null,null,null,null,null,null,null,null,null,null,null,null,null,null,null,null,null,null,null,null,null,null,null,null,null,null,null,null,null,null,null,null,null,null,null,null,null,null,null,null,null,null,null,null,null,null,null,null,null,null,null,null,null,null,null,null,null,null,null,null,null,null,null,null,null,null,null,null,null,null,null,null,null,null,null,null,null,null,null,null,null,null,null,null,null,null,null,null,null,null,null,null,null,null,null,null,null,null,null,null,null,null,null,null,null,null,null,null,null,null,null,null,null,null,null,null,null,null,null,null,null,null,null,null,null,null,null,null,null,null,null,null,null,null,null,null,null,null,null,null,null,null,null,null,null,null,null,null,null,null,null,null,null,null,null,null,null,null,null,null,null,null,null,null,null,null,null,null,null,null,null,null,null,null,null,null,null,null,null,null,null,null,null,null,null,null,null,null,null,null,null,null,null,null,null,null,null,null,null,null,null,null,null,null,null,null,null,null,null,null,null,null,null,null,null,null,null,null,null,null,null,null,null,null,null,null,null,null,null,null,null,null,null,null,null,null,null,null,null,null,null,null,null,null,null,null,null,null,null,null,null,null,null,null,null,null,null,null,null,null,null,null,null,null,null,null,null,null,null,null,null,null,null,null,null,null,null,null,null,null,null,null,null,null,null,null,null,null,null,null,null,null,null,null,null,null,null,null,null,null,null,null,null,null,null,null,null,null,null,null,null,null,null,null,null,null,null,null,null,null,null,null,null,null,null,null,null,null,null,null,null,null,null,null,null,null,null,null,null,null,null,null,null,null,null,null,null,null,null,null,null,null,null,null,null,null,null,null,null,null,null,null,null,null,null,null,null,null,null,null,null,null,null,null,null,null,null,null,null,null,null,null,null,null,null,null,null,null,null,null,null,null,null,null,null,null,null,null,null,null,null,null,null,null,null,null,null,null,null,null,null,null,null,null,null,null,null,null,null,null,null,null,null,null,null,null,null,null,null,null,null,null,null,null,null,null,null,null,null,null,null,null,null,null,null,null,null,null,null,null,null,null,null,null,null,null,null,null,null,null,null,null,null,null,null,null,null,null,null,null,null,null,null,null,null,null,null,null,null,null,null,null,null,null,null,null,null,null,null,null,null,null,null,null,null,null,null,null,null,null,null,null,null,null,null,null,null,null,null,null,null,null,null,null,null,null,null,null,null,null,null,null,null,null,null,null,null,null,null,null,null,null,null,null,null,null,null,null,null,null,null,null,null,null,null,null,null,null,null,null,null,null,null,null,null,null,null,null,null,null,null,null,null,null,null,null,null,null,null,null,null,null,null,null,null,null,null,null,null,null,null,null,null,null,null,null,null,null,null,null,null,null,null,null,null,null,null,null,null,null,null,null,null,null,null,null,null,null,null,null,null,null,null,null,null,null,null,null,null,null,null,null,null,null,null,null,null,null,null,null,null,null,null,null,null,null,null,null,null,null,null,null,null,null,null,null,null,null,null,null,null,null,null,null,null,null,null,null,null,null,null,null,null,null,null,null,null,null,null,null,null,null,null,null,null,null,null,null,null,null,null,null,null,null,null,null,null,null,null,null,null,null,null,null,null,null,null,null,null,null,null,null,null,null,null,null,null,null,null,null,null,null,null,null,null,null,null,null,null,null,null,null,null,null,null,null,null,null,null,null,null,null,null,null,null,null,null,null,null,null,null,null,null,null,null,null,null,null,null,null,null,null,null,null,null,null,null,null,null,null,null,null,null,null,null,null,null,null,null,null,null,null,null,null,null,null,null,null,null,null,null,null,null,null,null,null,null,null,null,null,null,null,null,null,null,null,null,null,null,null,null,null,null,null,null,null,null,null,null,null,null,null,null,null,null,null,null,null,null,null,null,null,null,null,null,null,null,null,null,null,null,null,null,null,null,null,null,null,null,null,null,null,null,null,null,null,null,null,null,null,null,null,null,null,null,null,null,null,null,null,null,null,null,null,null,null,null,null,null,null,null,null,null,null,null,null,null,null,null,null,null,null,null,null,null,null,null,null,null,null,null,null,null,null,null,null,null,null,null,null,null,null,null,null,null,null,null,null,null,null,null,null,null,null,null,null,null,null,null,null,null,null,null,null,null,null,null,null,null,null,null,null,null,null,null,null,null,null,null,null,null,null,null,null,null,null,null,null,null,null,null,null,null,null,null,null,null,null,null,null,null,null,null,null,null,null,null,null,null,null,null,null,null,null,null,null,null,null,null,null,null,null,null,null,null,null,null,null,null,null,null,null,null,null,null,null,null,null,null,null,null,null,null,null,null,null,null,null,null,null,null,null,null,null,null,null,null,null,null,null,null,null,null,null,null,null,null,null,null,null,null,null,null,null,null,null,null,null,null,null,null,null,null,null,null,null,null,null,null,null,null,null,null,null,null,null,null,null,null,null,null,null,null,null,null,null,null,null,null,null,null,null,null,null,null,null,null,null,null,null,null,null,null,null,null,null,null,null,null,null,null,null,null,null,null,null,null,null,null,null,null,null,null,null,null,null,null,null,null,null,null,null,null,null,null,null,null,null,null,null,null,null,null,null,null,null,null,null,null,null,null,null,null,null,null,null,null,null,null,null,null,null,null,null,null,null,null,null,null,null,null,null,null,null,null,null,null,null,null,null,null,null,null,null,null,null,null,null,null,null,null,null,null,null,null,null,null,null,null,null,null,null,null,null,null,null,null,null,null,null,null,null,null,null,null,null,null,null,null,null,null,null,null,null,null,null,null,null,null,null,null,null,null,null,null,null,null,null,null,null,null,null,null,null,null,null,null,null,null,null,null,null,null,null,null,null,null,null,null,null,null,null,null,null,null,null,null,null,null,null,null,null,null,null,null,null,null,null,null,null,null,null,null,null,null,null,null,null,null,null,null,null,null,null,null,null,null,null,null,null,null,null,null,null,null,null,null,null,null,null,null,null,null,null,null,null,null,null,null,null,null,null,null,null,null,null,null,null,null,null,null,null,null,null,null,null,null,null,null,null,null,null,null,null,null,null,null,null,null,null,null,null,null,null,null,null,null,null,null,null,null,null,null,null,null,null,null,null,null,null,null,null,null,null,null,null,null,null,null,null,null,null,null,null,null,null,null,null,null,null,null,null,null,null,null,null,null,null,null,null,null,null,null,null,null,null,null,null,null,null,null,null,null,null,null,null,null,null,null,null,null,null,null,null,null,null,null,null,null,null,null,null,null,null,null,null,null,null,null,null,null,null,null,null,null,null,null,null,null,null,null,null,null,null,null,null,null,null,null,null,null,null,null,null,null,null,null,null,null,null,null,null,null,null,null,null,null,null,null,null,null,null,null,null,null,null,null,null,null,null,null,null,null,null,null,null,null,null,null,null,null,null,null,null,null,null,null,null,null,null,null,null,null,null,null,null,null,null,null,null,null,null,null,null,null,null,null,null,null,null,null,null,null,null,null,null,null,null,null,null,null,null,null,null,null,null,null,null,null,null,null,null,null,null,null,null,null,null,null,null,null,null,null,null,null,null,null,null,null,null,null,null,null,null,null,null,null,null,null,null,null,null,null,null,null,null,null,null,null,null,null,null,null,null,null,null,null,null,null,null,null,null,null,null,null,null,null,null,null,null,null,null,null,null,null,null,null,null,null,null,null,null,null,null,null,null,null,null,null,null,null,null,null,null,null,null,null,null,null,null,null,null,null,null,null,null,null,null,null,null,null,null,null,null,null,null,null,null,null,null,null,null,null,null,null,null,null,null,null,null,null,null,null,null,null,null,null,null,null,null,null,null,null,null,null,null,null,null,null,null,null,null,null,null,null,null,null,null,null,null,null,null,null,null,null,null,null,null,null,null,null,null,null,null,null,null,null,null,null,null,null,null,null,null,null,null,null,null,null,null,null,null,null,null,null,null,null,null,null,null,null,null,null,null,null,null,null,null,null,null,null,null,null,null,null,null,null,null,null,null,null,null,null,null,null,null,null,null,null,null,null,null,null,null,null,null,null,null,null,null,null,null,null,null,null,null,null,null,null,null,null,null,null,null,null,null,null,null,null,null,null,null,null,null,null,null,null,null,null,null,null,null,null,null,null,null,null,null,null,null,null,null,null,null,null,null,null,null,null,null,null,null,null,null,null,null,null,null,null,null,null,null,null,null,null,null,null,null,null,null,null,null,null,null,null,null,null,null,null,null,null,null,null,null,null,null,null,null,null,null,null,null,null,null,null,null,null,null,null,null,null,null,null,null,null,null,null,null,null,null,null,null,null,null,null,null,null,null,null,null,null,null,null,null,null,null,null,null,null,null,null,null,null,null,null,null,null,null,null,null,null,null,null,null,null,null,null,null,null,null,null,null,null,null,null,null,null,null,null,null,null,null,null,null,null,null,null,null,null,null,null,null,null,null,null,null,null,null,null,null,null,null,null,null,null,null,null,null,null,null,null,null,null,null,null,null,null,null,null,null,null,null,null,null,null,null,null,null,null,null,null,null,null,null,null,null,null,null,null,null,null,null,null,null,null,null,null,null,null,null,null,null,null,null,null,null,null,null,null,null,null,null,null,null,null,null,null,null,null,null,null,null,null,null,null,null,null,null,null,null,null,null,null,null,null,null,null,null,null,null,null,null,null,null,null,null,null,null,null,null,null,null,null,null,null,null,null,null,null,null,null,null,null,null,null,null,null,null,null,null,null,null,null,null,null,null,null,null,null,null,null,null,null,null,null,null,null,null,null,null,null,null,null,null,null,null,null,null,null,null,null,null,null,null,null,null,null,null,null,null,null,null,null,null,null,null,null,null,null,null,null,null,null,null,null,null,null,null,null,null,null,null,null,null,null,null,null,null,null,null,null,null,null,null,null,null,null,null,null,null,null,null,null,null,null,null,null,null,null,null,null,null,null,null,null,null,null,null,null,null,null,null,null,null,null,null,null,null,null,null,null,null,null,null,null,null,null,null,null,null,null,null,null,null,null,null,null,null,null,null,null,null,null,null,null,null,null,null,null,null,null,null,null,null,null,null,null,null,null,null,null,null,null,null,null,null,null,null,null,null,null,null,null,null,null,null,null,null,null,null,null,null,null,null,null,null,null,null,null,null,null,null,null,null,null,null,null,null,null,null,null,null,null,null,null,null,null,null,null,null,null,null,null,null,null,null,null,null,null,null,null,null,null,null,null,null,null,null,null,null,null,null,null,null,null,null,null,null,null,null,null,null,null,null,null,null,null,null,null,null,null,null,null,null,null,null,null,null,null,null,null,null,null,null,null,null,null,null,null,null,null,null,null,null,null,null,null,null,null,null,null,null,null,null,null,null,null,null,null,null,null,null,null,null,null,null,null,null,null,null,null,null,null,null,null,null,null,null,null,null,null,null,null,null,null,null,null,null,null,null,null,null,null,null,null,null,null,null,null,null,null,null,null,null,null,null,null,null,null,null,null,null,null,null,null,null,null,null,null,null,null,null,null,null,null,null,null,null,null,null,null,null,null,null,null,null,null,null,null,null,null,null,null,null,null,null,null,null,null,null,null,null,null,null,null,null,null,null,null,null,null,null,null,null,null,null,null,null,null,null,null,null,null,null,null,null,null,null,null,null,null,null,null,null,null,null,null,null,null,null,null,null,null,null,null,null,null,null,null,null,null,null,null,null,null,null,null,null,null,null,null,null,null,null,null,null,null,null,null,null,null,null,null,null,null,null,null,null,null,null,null,null,null,null,null,null,null,null,null,null,null,null,null,null,null,null,null,null,null,null,null,null,null,null,null,null,null,null,null,null,null,null,null,null,null,null,null,null,null,null,null,null,null,null,null,null,null,null,null,null,null,null,null,null,null,null,null,null,null,null,null,null,null,null,null,null,null,null,null,null,null,null,null,null,null,null,null,null,null,null,null,null,null,null,null,null,null,null,null,null,null,null,null,null,null,null,null,null,null,null,null,null,null,null,null,null,null,null,null,null,null,null,null,null,null,null,null,null,null,null,null,null,null,null,null,null,null,null,null,null,null,null,null,null,null,null,null,null,null,null,null,null,null,null,null,null,null,null,null,null,null,null,null,null,null,null,null,null,null,null,null,null,null,null,null,null,null,null,null,null,null,null,null,null,null,null,null,null,null,null,null,null,null,null,null,null,null,null,null,null,null,null,null,null,null,null,null,null,null,null,null,null,null,null,null,null,null,null,null,null,null,null,null,null,null,null,null,null,null,null,null,null,null,null,null,null,null,null,null,null,null,null,null,null,null,null,null,null,null,null,null,null,null,null,null,null,null,null,null,null,null,null,null,null,null,null,null,null,null,null,null,null,null,null,null,null,null,null,null,null,null,null,null,null,null,null,null,null,null,null,null,null,null,null,null,null,null,null,null,null,null,null,null,null,null,null,null,null,null,null,null,null,null,null,null,null,null,null,null,null,null,null,null,null,null,null,null,null,null,null,null,null,null,null,null,null,null,null,null,null,null,null,null,null,null,null,null,null,null,null,null,null,null,null,null,null,null,null,null,null,null,null,null,null,null,null,null,null,null,null,null,null,null,null,null,null,null,null,null,null,null,null,null,null,null,null,null,null,null,null,null,null,null,null,null,null,null,null,null,null,null,null,null,null,null,null,null,null,null,null,null,null,null,null,null,null,null,null,null,null,null,null,null,null,null,null,null,null,null,null,null,null,null,null,null,null,null,null,null,null,null,null,null,null,null,null,null,null,null,null,null,null,null,null,null,null,null,null,null,null,null,null,null,null,null,null,null,null,null,null,null,null,null,null,null,null,null,null,null,null,null,null,null,null,null,null,null,null,null,null,null,null,null,null,null,null,null,null,null,null,null,null,null,null,null,null,null,null,null,null,null,null,null,null,null,null,null,null,null,null,null,null,null,null,null,null,null,null,null,null,null,null,null,null,null,null,null,null,null,null,null,null,null,null,null,null,null,null,null,null,null,null,null,null,null,null,null,null,null,null,null,null,null,null,null,null,null,null,null,null,null,null,null,null,null,null,null,null,null,null,null,null,null,null,null,null,null,null,null,null,null,null,null,null,null,null,null,null,null,null,null,null,null,null,null,null,null,null,null,null,null,null,null,null,null,null,null,null,null,null,null,null,null,null,null,null,null,null,null,null,null,null,null,null,null,null,null,null,null,null,null,null,null,null,null,null,null,null,null,null,null,null,null,null,null,null,null,null,null,null,null,null,null,null,null,null,null,null,null,null,null,null,null,null,null,null,null,null,null,null,null,null,null,null,null,null,null,null,null,null,null,null,null,null,null,null,null,null,null,null,null,null,null,null,null,null,null,null,null,null,null,null,null,null,null,null,null,null,null,null,null,null,null,null,null,null,null,null,null,null,null,null,null,null,null,null,null,null,null,null,null,null,null,null,null,null,null,null,null,null,null,null,null,null,null,null,null,null,null,null,null,null,null,null,null,null,null,null,null,null,null,null,null,null,null,null,null,null,null,null,null,null,null,null,null,null,null,null,null,null,null,null,null,null,null,null,null,null,null,null,null,null,null,null,null,null,null,null,null,null,null,null,null,null,null,null,null,null,null,null,null,null,null,null,null,null,null,null,null,null,null,null,null,null,null,null,null,null,null,null,null,null,null,null,null,null,null,null,null,null,null,null,null,null,null,null,null,null,null,null,null,null,null,null,null,null,null,null,null,null,null,null,null,null,null,null,null,null,null,null,null,null,null,null,null,null,null,null,null,null,null,null,null,null,null,null,null,null,null,null,null,null,null,null,null,null,null,null,null,null,null,null,null,null,null,null,null,null,null,null,null,null,null,null,null,null,null,null,null,null,null,null,null,null,null,null,null,null,null,null,null,null,null,null,null,null,null,null,null,null,null,null,null,null,null,null,null,null,null,null,null,null,null,null,null,null,null,null,null,null,null,null,null,null,null,null,null,null,null,null,null,null,null,null,null,null,null,null,null,null,null,null,null,null,null,null,null,null,null,null,null,null,null,null,null,null,null,null,null,null,null,null,null,null,null,null,null,null,null,null,null,null,null,null,null,null,null,null,null,null,null,null,null,null,null,null,null,null,null,null,null,null,null,null,null,null,null,null,null,null,null,null,null,null,null,null,null,null,null,null,null,null,null,null,null,null,null,null,null,null,null,null,null,null,null,null,null,null,null,null,null,null,null,null,null,null,null,null,null,null,null,null,null,null,null,null,null,null,null,null,null,null,null,null,null,null,null,null,null,null,null,null,null,null,null,null,null,null,null,null,null,null,null,null,null,null,null,null,null,null,null,null,null,null,null,null,null,null,null,null,null,null,null,null,null,null,null,null,null,null,null,null,null,null,null,null,null,null,null,null,null,null,null,null,null,null,null,null,null,null,null,null,null,null,null,null,null,null,null,null,null,null,null,null,null,null,null,null,null,null,null,null,null,null,null,null,null,null,null,null,null,null,null,null,null,null,null,null,null,null,null,null,null,null,null,null,null,null,null,null,null,null,null,null,null,null,null,null,null,null,null,null,null,null,null,null,null,null,null,null,null,null,null,null,null,null,null,null,null,null,null,null,null,null,null,null,null,null,null,null,null,null,null,null,null,null,null,null,null,null,null,null,null,null,null,null,null,null,null,null,null,null,null,null,null,null,null,null,null,null,null,null,null,null,null,null,null,null,null,null,null,null,null,null,null,null,null,null,null,null,null,null,null,null,null,null,null,null,null,null,null,null,null,null,null,null,null,null,null,null,null,null,null,null,null,null,null,null,null,null,null,null,null,null,null,null,null,null,null,null,null,null,null,null,null,null,null,null,null,null,null,null,null,null,null,null,null,null,null,null,null,null,null,null,null,null,null,null,null,null,null,null,null,null,null,null,null,null,null,null,null,null,null,null,null,null,null,null,null,null,null,null,null,null,null,null,null,null,null,null,null,null,null,null,null,null,null,null,null,null,null,null,null,null,null,null,null,null,null,null,null,null,null,null,null,null,null,null,null,null,null,null,null,null,null,null,null,null,null,null,null,null,null,null,null,null,null,null,null,null,null,null,null,null,null,null,null,null,null,null,null,null,null,null,null,null,null,null,null,null,null,null,null,null,null,null,null,null,null,null,null,null,null,null,null,null,null,null,null,null,null,null,null,null,null,null,null,null,null,null,null,null,null,null,null,null,null,null,null,null,null,null,null,null,null,null,null,null,null,null,null,null,null,null,null,null,null,null,null,null,null,null,null,null,null,null,null,null,null,null,null,null,null,null,null,null,null,null,null,null,null,null,null,null,null,null,null,null,null,null,null,null,null,null,null,null,null,null,null,null,null,null,null,null,null,null,null,null,null,null,null,null,null,null,null,null,null,null,null,null,null,null,null,null,null,null,null,null,null,null,null,null,null,null,null,null,null,null,null,null,null,null,null,null,null,null,null,null,null,null,null,null,null,null,null,null,null,null,null,null,null,null,null,null,null,null,null,null,null,null,null,null,null,null,null,null,null,null,null,null,null,null,null,null,null,null,null,null,null,null,null,null,null,null,null,null,null,null,null,null,null,null,null,null,null,null,null,null,null,null,null,null,null,null,null,null,null,null,null,null,null,null,null,null,null,null,null,null,null,null,null,null,null,null,null,null,null,null,null,null,null,null,null,null,null,null,null,null,null,null,null,null,null,null,null,null,null,null,null,null,null,null,null,null,null,null,null,null,null,null,null,null,null,null,null,null,null,null,null,null,null,null,null,null,null,null,null,null,null,null,null,null,null,null,null,null,null,null,null,null,null,null,null,null,null,null,null,null,null,null,null,null,null,null,null,null,null,null,null,null,null,null,null,null,null,null,null,null,null,null,null,null,null,null,null,null,null,null,null,null,null,null,null,null,null,null,null,null,null,null,null,null,null,null,null,null,null,null,null,null,null,null,null,null,null,null,null,null,null,null,null,null,null,null,null,null,null,null,null,null,null,null,null,null,null,null,null,null,null,null,null,null,null,null,null,null,null,null,null,null,null,null,null,null,null,null,null,null,null,null,null,null,null,null,null,null,null,null,null,null,null,null,null,null,null,null,null,null,null,null,null,null,null,null,null,null,null,null,null,null,null,null,null,null,null,null,null,null,null,null,null,null,null,null,null,null,null,null,null,null,null,null,null,null,null,null,null,null,null,null,null,null,null,null,null,null,null,null,null,null,null,null,null,null,null,null,null,null,null,null,null,null,null,null,null,null,null,null,null,null,null,null,null,null,null,null,null,null,null,null,null,null,null,null,null,null,null,null,null,null,null,null,null,null,null,null,null,null,null,null,null,null,null,null,null,null,null,null,null,null,null,null,null,null,null,null,null,null,null,null,null,null,null,null,null,null,null,null,null,null,null,null,null,null,null,null,null,null,null,null,null,null,null,null,null,null,null,null,null,null,null,null,null,null,null,null,null,null,null,null,null,null,null,null,null,null,null,null,null,null,null,null,null,null,null,null,null,null,null,null,null,null,null,null,null,null,null,null,null,null,null,null,null,null,null,null,null,null,null,null,null,null,null,null,null,null,null,null,null,null,null,null,null,null,null,null,null,null,null,null,null,null,null,null,null,null,null,null,null,null,null,null,null,null,null,null,null,null,null,null,null,null,null,null,null,null,null,null,null,null,null,null,null,null,null,null,null,null,null,null,null,null,null,null,null,null,null,null,null,null,null,null,null,null,null,null,null,null,null,null,null,null,null,null,null,null,null,null,null,null,null,null,null,null,null,null,null,null,null,null,null,null,null,null,null,null,null,null,null,null,null,null,null,null,null,null,null,null,null,null,null,null,null,null,null,null,null,null,null,null,null,null,null,null,null,null,null,null,null,null,null,null,null,null,null,null,null,null,null,null,null,null,null,null,null,null,null,null,null,null,null,null,null,null,null,null,null,null,null,null,null,null,null,null,null,null,null,null,null,null,null,null,null,null,null,null,null,null,null,null,null,null,null,null,null,null,null,null,null,null,null,null,null,null,null,null,null,null,null,null,null,null,null,null,null,null,null,null,null,null,null,null,null,null,null,null,null,null,null,null,null,null,null,null,null,null,null,null,null,null,null,null,null,null,null,null,null,null,null,null,null,null,null,null,null,null,null,null,null,null,null,null,null,null,null,null,null,null,null,null,null,null,null,null,null,null,null,null,null,null,null,null,null,null,null,null,null,null,null,null,null,null,null,null,null,null,null,null,null,null,null,null,null,null,null,null,null,null,null,null,null,null,null,null,null,null,null,null,null,null,null,null,null,null,null,null,null,null,null,null,null,null,null,null,null,null,null,null,null,null,null,null,null,null,null,null,null,null,null,null,null,null,null,null,null,null,null,null,null,null,null,null,null,null,null,null,null,null,null,null,null,null,null,null,null,null,null,null,null,null,null,null,null,null,null,null,null,null,null,null,null,null,null,null,null,null,null,null,null,null,null,null,null,null,null,null,null,null,null,null,null,null,null,null,null,null,null,null,null,null,null,null,null,null,null,null,null,null,null,null,null,null,null,null,null,null,null,null,null,null,null,null,null,null,null,null,null,null,null,null,null,null,null,null,null,null,null,null,null,null,null,null,null,null,null,null,null,null,null,null,null,null,null,null,null,null,null,null,null,null,null,null,null,null,null,null,null,null,null,null,null,null,null,null,null,null,null,null,null,null,null,null,null,null,null,null,null,null,null,null,null,null,null,null,null,null,null,null,null,null,null,null,null,null,null,null,null,null,null,null,null,null,null,null,null,null,null,null,null,null,null,null,null,null,null,null,null,null,null,null,null,null,null,null,null,null,null,null,null,null,null,null,null,null,null,null,null,null,null,null,null,null,null,null,null,null,null,null,null,null,null,null,null,null,null,null,null,null,null,null,null,null,null,null,null,null,null,null,null,null,null,null,null,null,null,null,null,null,null,null,null,null,null,null,null,null,null,null,null,null,null,null,null,null,null,null,null,null,null,null,null,null,null,null,null,null,null,null,null,null,null,null,null,null,null,null,null,null,null,null,null,null,null,null,null,null,null,null,null,null,null,null,null,null,null,null,null,null,null,null,null,null,null,null,null,null,null,null,null,null,null,null,null,null,null,null,null,null,null,null,null,null,null,null,null,null,null,null,null,null,null,null,null,null,null,null,null,null,null,null,null,null,null,null,null,null,null,null,null,null,null,null,null,null,null,null,null,null,null,null,null,null,null,null,null,null,null,null,null,null,null,null,null,null,null,null,null,null,null,null,null,null,null,null,null,null,null,null,null,null,null,null,null,null,null,null,null,null,null,null,null,null,null,null,null,null,null,null,null,null,null,null,null,null,null,null,null,null,null,null,null,null,null,null,null,null,null,null,null,null,null,null,null,null,null,null,null,null,null,null,null,null,null,null,null,null,null,null,null,null,null,null,null,null,null,null,null,null,null,null,null,null,null,null,null,null,null,null,null,null,null,null,null,null,null,null,null,null,null,null,null,null,null,null,null,null,null,null,null,null,null,null,null,null,null,null,null,null,null,null,null,null,null,null,null,null,null,null,null,null,null,null,null,null,null,null,null,null,null,null,null,null,null,null,null,null,null,null,null,null,null,null,null,null,null,null,null,null,null,null,null,null,null,null,null,null,null,null,null,null,null,null,null,null,null,null,null,null,null,null,null,null,null,null,null,null,null,null,null,null,null,null,null,null,null,null,null,null,null,null,null,null,null,null,null,null,null,null,null,null,null,null,null,null,null,null,null,null,null,null,null,null,null,null,null,null,null,null,null,null,null,null,null,null,null,null,null,null,null,null,null,null,null,null,null,null,null,null,null,null,null,null,null,null,null,null,null,null,null,null,null,null,null,null,null,null,null,null,null,null,null,null,null,null,null,null,null,null,null,null,null,null,null,null,null,null,null,null,null,null,null,null,null,null,null,null,null,null,null,null,null,null,null,null,null,null,null,null,null,null,null,null,null,null,null,null,null,null,null,null,null,null,null,null,null,null,null,null,null,null,null,null,null,null,null,null,null,null,null,null,null,null,null,null,null,null,null,null,null,null,null,null,null,null,null,null,null,null,null,null,null,null,null,null,null,null,null,null,null,null,null,null,null,null,null,null,null,null,null,null,null,null,null,null,null,null,null,null,null,null,null,null,null,null,null,null,null,null,null,null,null,null,null,null,null,null,null,null,null,null,null,null,null,null,null,null,null,null,null,null,null,null,null,null,null,null,null,null,null,null,null,null,null,null,null,null,null,null,null,null,null,null,null,null,null,null,null,null,null,null,null,null,null,null,null,null,null,null,null,null,null,null,null,null,null,null,null,null,null,null,null,null,null,null,null,null,null,null,null,null,null,null,null,null,null,null,null,null,null,null,null,null,null,null,null,null,null,null,null,null,null,null,null,null,null,null,null,null,null,null,null,null,null,null,null,null,null,null,null,null,null,null,null,null,null,null,null,null,null,null,null,null,null,null,null,null,null,null,null,null,null,null,null,null,null,null,null,null,null,null,null,null,null,null,null,null,null,null,null,null,null,null,null,null,null,null,null,null,null,null,null,null,null,null,null,null,null,null,null,null,null,null,null,null,null,null,null,null,null,null,null,null,null,null,null,null,null,null,null,null,null,null,null,null,null,null,null,null,null,null,null,null,null,null,null,null,null,null,null,null,null,null,null,null,null,null,null,null,null,null,null,null,null,null,null,null,null,null,null,null,null,null,null,null,null,null,null,null,null,null,null,null,null,null,null,null,null,null,null,null,null,null,null,null,null,null,null,null,null,null,null,null,null,null,null,null,null,null,null,null,null,null,null,null,null,null,null,null,null,null,null,null,null,null,null,null,null,null,null,null,null,null,null,null,null,null,null,null,null,null,null,null,null,null,null,null,null,null,null,null,null,null,null,null,null,null,null,null,null,null,null,null,null,null,null,null,null,null,null,null,null,null,null,null,null,null,null,null,null,null,null,null,null,null,null,null,null,null,null,null,null,null,null,null,null,null,null,null,null,null,null,null,null,null,null,null,null,null,null,null,null,null,null,null,null,null,null,null,null,null,null,null,null,null,null,null,null,null,null,null,null,null,null,null,null,null,null,null,null,null,null,null,null,null,null,null,null,null,null,null,null,null,null,null,null,null,null,null,null,null,null,null,null,null,null,null,null,null,null,null,null,null,null,null,null,null,null,null,null,null,null,null,null,null,null,null,null,null,null,null,null,null,null,null,null,null,null,null,null,null,null,null,null,null,null,null,null,null,null,null,null,null,null,null,null,null,null,null,null,null,null,null,null,null,null,null,null,null,null,null,null,null,null,null,null,null,null,null,null,null,null,null,null,null,null,null,null,null,null,null,null,null,null,null,null,null,null,null,null,null,null,null,null,null,null,null,null,null,null,null,null,null,null,null,null,null,null,null,null,null,null,null,null,null,null,null,null,null,null,null,null,null,null,null,null,null,null,null,null,null,null,null,null,null,null,null,null,null,null,null,null,null,null,null,null,null,null,null,null,null,null,null,null,null,null,null,null,null,null,null,null,null,null,null,null,null,null,null,null,null,null,null,null,null,null,null,null,null,null,null,null,null,null,null,null,null,null,null,null,null,null,null,null,null,null,null,null,null,null,null,null,null,null,null,null,null,null,null,null,null,null,null,null,null,null,null,null,null,null,null,null,null,null,null,null,null,null,null,null,null,null,null,null,null,null,null,null,null,null,null,null,null,null,null,null,null,null,null,null,null,null,null,null,null,null,null,null,null,null,null,null,null,null,null,null,null,null,null,null,null,null,null,null,null,null,null,null,null,null,null,null,null,null,null,null,null,null,null,null,null,null,null,null,null,null,null,null,null,null,null,null,null,null,null,null,null,null,null,null,null,null,null,null,null,null,null,null,null,null,null,null,null,null,null,null,null,null,null,null,null,null,null,null,null,null,null,null,null,null,null,null,null,null,null,null,null,null,null,null,null,null,null,null,null,null,null,null,null,null,null,null,null,null,null,null,null,null,null,null,null,null,null,null,null,null,null,null,null,null,null,null,null,null,null,null,null,null,null,null,null,null,null,null,null,null,null,null,null,null,null,null,null,null,null,null,null,null,null,null,null,null,null,null,null,null,null,null,null,null,null,null,null,null,null,null,null,null,null,null,null,null,null,null,null,null,null,null,null,null,null,null,null,null,null,null,null,null,null,null,null,null,null,null,null,null,null,null,null,null,null,null,null,null,null,null,null,null,null,null,null,null,null,null,null,null,null,null,null,null,null,null,null,null,null,null,null,null,null,null,null,null,null,null,null,null,null,null,null,null,null,null,null,null,null,null,null,null,null,null,null,null,null,null,null,null,null,null,null,null,null,null,null,null,null,null,null,null,null,null,null,null,null,null,null,null,null,null,null,null,null,null,null,null,null,null,null,null,null,null,null,null,null,null,null,null,null,null,null,null,null,null,null,null,null,null,null,null,null,null,null,null,null,null,null,null,null,null,null,null,null,null,null,null,null,null,null,null,null,null,null,null,null,null,null,null,null,null,null,null,null,null,null,null,null,null,null,null,null,null,null,null,null,null,null,null,null,null,null,null,null,null,null,null,null,null,null,null,null,null,null,null,null,null,null,null,null,null,null,null,null,null,null,null,null,null,null,null,null,null,null,null,null,null,null,null,null,null,null,null,null,null,null,null,null,null,null,null,null,null,null,null,null,null,null,null,null,null,null,null,null,null,null,null,null,null,null,null,null,null,null,null,null,null,null,null,null,null,null,null,null,null,null,null,null,null,null,null,null,null,null,null,null,null,null,null,null,null,null,null,null,null,null,null,null,null,null,null,null,null,null,null,null,null,null,null,null,null,null,null,null,null,null,null,null,null,null,null,null,null,null,null,null,null,null,null,null,null,null,null,null,null,null,null,null,null,null,null,null,null,null,null,null,null,null,null,null,null,null,null,null,null,null,null,null,null,null,null,null,null,null,null,null,null,null,null,null,null,null,null,null,null,null,null,null,null,null,null,null,null,null,null,null,null,null,null,null,null,null,null,null,null,null,null,null,null,null,null,null,null,null,null,null,null,null,null,null,null,null,null,null,null,null,null,null,null,null,null,null,null,null,null,null,null,null,null,null,null,null,null,null,null,null,null,null,null,null,null,null,null,null,null,null,null,null,null,null,null,null,null,null,null,null,null,null,null,null,null,null,null,null,null,null,null,null,null,null,null,null,null,null,null,null,null,null,null,null,null,null,null,null,null,null,null,null,null,null,null,null,null,null,null,null,null,null,null,null,null,null,null,null,null,null,null,null,null,null,null,null,null,null,null,null,null,null,null,null,null,null,null,null,null,null,null,null,null,null,null,null,null,null,null,null,null,null,null,null,null,null,null,null,null,null,null,null,null,null,null,null,null,null,null,null,null,null,null,null,null,null,null,null,null,null,null,null,null,null,null,null,null,null,null,null,null,null,null,null,null,null,null,null,null,null,null,null,null,null,null,null,null,null,null,null,null,null,null,null,null,null,null,null,null,null,null,null,null,null,null,null,null,null,null,null,null,null,null,null,null,null,null,null,null,null,null,null,null,null,null,null,null,null,null,null,null,null,null,null,null,null,null,null,null,null,null,null,null,null,null,null,null,null,null,null,null,null,null,null,null,null,null,null,null,null,null,null,null,null,null,null,null,null,null,null,null,null,null,null,null,null,null,null,null,null,null,null,null,null,null,null,null,null,null,null,null,null,null,null,null,null,null,null,null,null,null,null,null,null,null,null,null,null,null,null,null,null,null,null,null,null,null,null,null,null,null,null,null,null,null,null,null,null,null,null,null,null,null,null,null,null,null,null,null,null,null,null,null,null,null,null,null,null,null,null,null,null,null,null,null,null,null,null,null,null,null,null,null,null,null,null,null,null,null,null,null,null,null,null,null,null,null,null,null,null,null,null,null,null,null,null,null,null,null,null,null,null,null,null,null,null,null,null,null,null,null,null,null,null,null,null,null,null,null,null,null,null,null,null,null,null,null,null,null,null,null,null,null,null,null,null,null,null,null,null,null,null,null,null,null,null,null,null,null,null,null,null,null,null,null,null,null,null,null,null,null,null,null,null,null,null,null,null,null,null,null,null,null,null,null,null,null,null,null,null,null,null,null,null,null,null,null,null,null,null,null,null,null,null,null,null,null,null,null,null,null,null,null,null,null,null,null,null,null,null,null,null,null,null,null,null,null,null,null,null,null,null,null,null,null,null,null,null,null,null,null,null,null,null,null,null,null,null,null,null,null,null,null,null,null,null,null,null,null,null,null,null,null,null,null,null,null,null,null,null,null,null,null,null,null,null,null,null,null,null,null,null,null,null,null,null,null,null,null,null,null,null,null,null,null,null,null,null,null,null,null,null,null,null,null,null,null,null,null,null,null,null,null,null,null,null,null,null,null,null,null,null,null,null,null,null,null,null,null,null,null,null,null,null,null,null,null,null,null,null,null,null,null,null,null,null,null,null,null,null,null,null,null,null,null,null,null,null,null,null,null,null,null,null,null,null,null,null,null,null,null,null,null,null,null,null,null,null,null,null,null,null,null,null,null,null,null,null,null,null,null,null,null,null,null,null,null,null,null,null,null,null,null,null,null,null,null,null,null,null,null,null,null,null,null,null,null,null,null,null,null,null,null,null,null,null,null,null,null,null,null,null,null,null,null,null,null,null,null,null,null,null,null,null,null,null,null,null,null,null,null,null,null,null,null,null,null,null,null,null,null,null,null,null,null,null,null,null,null,null,null,null,null,null,null,null,null,null,null,null,null,null,null,null,null,null,null,null,null,null,null,null,null,null,null,null,null,null,null,null,null,null,null,null,null,null,null,null,null,null,null,null,null,null,null,null,null,null,null,null,null,null,null,null,null,null,null,null,null,null,null,null,null,null,null,null,null,null,null,null,null,null,null,null,null,null,null,null,null,null,null,null,null,null,null,null,null,null,null,null,null,null,null,null,null,null,null,null,null,null,null,null,null,null,null,null,null,null,null,null,null,null,null,null,null,null,null,null,null,null,null,null,null,null,null,null,null,null,null,null,null,null,null,null,null,null,null,null,null,null,null,null,null,null,null,null,null,null,null,null,null,null,null,null,null,null,null,null,null,null,null,null,null,null,null,null,null,null,null,null,null,null,null,null,null,null,null,null,null,null,null,null,null,null,null,null,null,null,null,null,null,null,null,null,null,null,null,null,null,null,null,null,null,null,null,null,null,null,null,null,null,null,null,null,null,null,null,null,null,null,null,null,null,null,null,null,null,null,null,null,null,null,null,null,null,null,null,null,null,null,null,null,null,null,null,null,null,null,null,null,null,null,null,null,null,null,null,null,null,null,null,null,null,null,null,null,null,null,null,null,null,null,null,null,null,null,null,null,null,null,null,null,null,null,null,null,null,null,null,null,null,null,null,null,null,null,null,null,null,null,null,null,null,null,null,null,null,null,null,null,null,null,null,null,null,null,null,null,null,null,null,null,null,null,null,null,null,null,null,null,null,null,null,null,null,null,null,null,null,null,null,null,null,null,null,null,null,null,null,null,null,null,null,null,null,null,null,null,null,null,null,null,null,null,null,null,null,null,null,null,null,null,null,null,null,null,null,null,null,null,null,null,null,null,null,null,null,null,null,null,null,null,null,null,null,null,null,null,null,null,null,null,null,null,null,null,null,null,null,null,null,null,null,null,null,null,null,null,null,null,null,null,null,null,null,null,null,null,null,null,null,null,null,null,null,null,null,null,null,null,null,null,null,null,null,null,null,null,null,null,null,null,null,null,null,null,null,null,null,null,null,null,null,null,null,null,null,null,null,null,null,null,null,null,null,null,null,null,null,null,null,null,null,null,null,null,null,null,null,null,null,null,null,null,null,null,null,null,null,null,null,null,null,null,null,null,null,null,null,null,null,null,null,null,null,null,null,null,null,null,null,null,null,null,null,null,null,null,null,null,null,null,null,null,null,null,null,null,null,null,null,null,null,null,null,null,null,null,null,null,null,null,null,null,null,null,null,null,null,null,null,null,null,null,null,null,null,null,null,null,null,null,null,null,null,null,null,null,null,null,null,null,null,null,null,null,null,null,null,null,null,null,null,null,null,null,null,null,null,null,null,null,null,null,null,null,null,null,null,null,null,null,null,null,null,null,null,null,null,null,null,null,null,null,null,null,null,null,null,null,null,null,null,null,null,null,null,null,null,null,null,null,null,null,null,null,null,null,null,null,null,null,null,null,null,null,null,null,null,null,null,null,null,null,null,null,null,null,null,null,null,null,null,null,null,null,null,null,null,null,null,null,null,null,null,null,null,null,null,null,null,null,null,null,null,null,null,null,null,null,null,null,null,null,null,null,null,null,null,null,null,null,null,null,null,null,null,null,null,null,null,null,null,null,null,null,null,null,null,null,null,null,null,null,null,null,null,null,null,null,null,null,null,null,null,null,null,null,null,null,null,null,null,null,null,null,null,null,null,null,null,null,null,null,null,null,null,null,null,null,null,null,null,null,null,null,null,null,null,null,null,null,null,null,null,null,null,null,null,null,null,null,null,null,null,null,null,null,null,null,null,null,null,null,null,null,null,null,null,null,null,null,null,null,null,null,null,null,null,null,null,null,null,null,null,null,null,null,null,null,null,null,null,null,null,null,null,null,null,null,null,null,null,null,null,null,null,null,null,null,null,null,null,null,null,null,null,null,null,null,null,null,null,null,null,null,null,null,null,null,null,null,null,null,null,null,null,null,null,null,null,null,null,null,null,null,null,null,null,null,null,null,null,null,null,null,null,null,null,null,null,null,null,null,null,null,null,null,null,null,null,null,null,null,null,null,null,null,null,null,null,null,null,null,null,null,null,null,null,null,null,null,null,null,null,null,null,null,null,null,null,null,null,null,null,null,null,null,null,null,null,null,null,null,null,null,null,null,null,null,null,null,null,null,null,null,null,null,null,null,null,null,null,null,null,null,null,null,null,null,null,null,null,null,null,null,null,null,null,null,null,null,null,null,null,null,null,null,null,null,null,null,null,null,null,null,null,null,null,null,null,null,null,null,null,null,null,null,null,null,null,null,null,null,null,null,null,null,null,null,null,null,null,null,null,null,null,null,null,null,null,null,null,null,null,null,null,null,null,null,null,null,null,null,null,null,null,null,null,null,null,null,null,null,null,null,null,null,null,null,null,null,null,null,null,null,null,null,null,null,null,null,null,null,null,null,null,null,null,null,null,null,null,null,null,null,null,null,null,null,null,null,null,null,null,null,null,null,null,null,null,null,null,null,null,null,null,null,null,null,null,null,null,null,null,null,null,null,null,null,null,null,null,null,null,null,null,null,null,null,null,null,null,null,null,null,null,null,null,null,null,null,null,null,null,null,null,null,null,null,null,null,null,null,null,null,null,null,null,null,null,null,null,null,null,null,null,null,null,null,null,null,null,null,null,null,null,null,null,null,null,null,null,null,null,null,null,null,null,null,null,null,null,null,null,null,null,null,null,null,null,null,null,null,null,null,null,null,null,null,null,null,null,null,null,null,null,null,null,null,null,null,null,null,null,null,null,null,null,null,null,null,null,null,null,null,null,null,null,null,null,null,null,null,null,null,null,null,null,null,null,null,null,null,null,null,null,null,null,null,null,null,null,null,null,null,null,null,null,null,null,null,null,null,null,null,null,null,null,null,null,null,null,null,null,null,null,null,null,null,null,null,null,null,null,null,null,null,null,null,null,null,null,null,null,null,null,null,null,null,null,null,null,null,null,null,null,null,null,null,null,null,null,null,null,null,null,null,null,null,null,null,null,null,null,null,null,null,null,null,null,null,null,null,null,null,null,null,null,null,null,null,null,null,null,null,null,null,null,null,null,null,null,null,null,null,null,null,null,null,null,null,null,null,null,null,null,null,null,null,null,null,null,null,null,null,null,null,null,null,null,null,null,null,null,null,null,null,null,null,null,null,null,null,null,null,null,null,null,null,null,null,null,null,null,null,null,null,null,null,null,null,null,null,null,null,null,null,null,null,null,null,null,null,null,null,null,null,null,null,null,null,null,null,null,null,null,null,null,null,null,null,null,null,null,null,null,null,null,null,null,null,null,null,null,null,null,null,null,null,null,null,null,null,null,null,null,null,null,null,null,null,null,null,null,null,null,null,null,null,null,null,null,null,null,null,null,null,null,null,null,null,null,null,null,null,null,null,null,null,null,null,null,null,null,null,null,null,null,null,null,null,null,null,null,null,null,null,null,null,null,null,null,null,null,null,null,null,null,null,null,null,null,null,null,null,null,null,null,null,null,null,null,null,null,null,null,null,null,null,null,null,null,null,null,null,null,null,null,null,null,null,null,null,null,null,null,null,null,null,null,null,null,null,null,null,null,null,null,null,null,null,null,null,null,null,null,null,null,null,null,null,null,null,null,null,null,null,null,null,null,null,null,null,null,null,null,null,null,null,null,null,null,null,null,null,null,null,null,null,null,null,null,null,null,null,null,null,null,null,null,null,null,null,null,null,null,null,null,null,null,null,null,null,null,null,null,null,null,null,null,null,null,null,null,null,null,null,null,null,null,null,null,null,null,null,null,null,null,null,null,null,null,null,null,null,null,null,null,null,null,null,null,null,null,null,null,null,null,null,null,null,null,null,null,null,null,null,null,null,null,null,null,null,null,null,null,null,null,null,null,null,null,null,null,null,null,null,null,null,null,null,null,null,null,null,null,null,null,null,null,null,null,null,null,null,null,null,null,null,null,null,null,null,null,null,null,null,null,null,null,null,null,null,null,null,null,null,null,null,null,null,null,null,null,null,null,null,null,null,null,null,null,null,null,null,null,null,null,null,null,null,null,null,null,null,null,null,null,null,null,null,null,null,null,null,null,null,null,null,null,null,null,null,null,null,null,null,null,null,null,null,null,null,null,null,null,null,null,null,null,null,null,null,null,null,null,null,null,null,null,null,null,null,null,null,null,null,null,null,null,null,null,null,null,null,null,null,null,null,null,null,null,null,null,null,null,null,null,null,null,null,null,null,null,null,null,null,null,null,null,null,null,null,null,null,null,null,null,null,null,null,null,null,null,null,null,null,null,null,null,null,null,null,null,null,null,null,null,null,null,null,null,null,null,null,null,null,null,null,null,null,null,null,null,null,null,null,null,null,null,null,null,null,null,null,null,null,null,null,null,null,null,null,null,null,null,null,null,null,null,null,null,null,null,null,null,null,null,null,null,null,null,null,null,null,null,null,null,null,null,null,null,null,null,null,null,null,null,null,null,null,null,null,null,null,null,null,null,null,null,null,null,null,null,null,null,null,null,null,null,null,null,null,null,null,null,null,null,null,null,null,null,null,null,null,null,null,null,null,null,null,null,null,null,null,null,null,null,null,null,null,null,null,null,null,null,null,null,null,null,null,null,null,null,null,null,null,null,null,null,null,null,null,null,null,null,null,null,null,null,null,null,null,null,null,null,null,null,null,null,null,null,null,null,null,null,null,null,null,null,null,null,null,null,null,null,null,null,null,null,null,null,null,null,null,null,null,null,null,null,null,null,null,null,null,null,null,null,null,null,null,null,null,null,null,null,null,null,null,null,null,null,null,null,null,null,null,null,null,null,null,null,null,null,null,null,null,null,null,null,null,null,null,null,null,null,null,null,null,null,null,null,null,null,null,null,null,null,null,null,null,null,null,null,null,null,null,null,null,null,null,null,null,null,null,null,null,null,null,null,null,null,null,null,null,null,null,null,null,null,null,null,null,null,null,null,null,null,null,null,null,null,null,null,null,null,null,null,null,null,null,null,null,null,null,null,null,null,null,null,null,null,null,null,null,null,null,null,null,null,null,null,null,null,null,null,null,null,null,null,null,null,null,null,null,null,null,null,null,null,null,null,null,null,null,null,null,null,null,null,null,null,null,null,null,null,null,null,null,null,null,null,null,null,null,null,null,null,null,null,null,null,null,null,null,null,null,null,null,null,null,null,null,null,null,null,null,null,null,null,null,null,null,null,null,null,null,null,null,null,null,null,null,null,null,null,null,null,null,null,null,null,null,null,null,null,null,null,null,null,null,null,null,null,null,null,null,null,null,null,null,null,null,null,null,null,null,null,null,null,null,null,null,null,null,null,null,null,null,null,null,null,null,null,null,null,null,null,null,null,null,null,null,null,null,null,null,null,null,null,null,null,null,null,null,null,null,null,null,null,null,null,null,null,null,null,null,null,null,null,null,null,null,null,null,null,null,null,null,null,null,null,null,null,null,null,null,null,null,null,null,null,null,null,null,null,null,null,null,null,null,null,null,null,null,null,null,null,null,null,null,null,null,null,null,null,null,null,null,null,null,null,null,null,null,null,null,null,null,null,null,null,null,null,null,null,null,null,null,null,null,null,null,null,null,null,null,null,null,null,null,null,null,null,null,null,null,null,null,null,null,null,null,null,null,null,null,null,null,null,null,null,null,null,null,null,null,null,null,null,null,null,null,null,null,null,null,null,null,null,null,null,null,null,null,null,null,null,null,null,null,null,null,null,null,null,null,null,null,null,null,null,null,null,null,null,null,null,null,null,null,null,null,null,null,null,null,null,null,null,null,null,null,null,null,null,null,null,null,null,null,null,null,null,null,null,null,null,null,null,null,null,null,null,null,null,null,null,null,null,null,null,null,null,null,null,null,null,null,null,null,null,null,null,null,null,null,null,null,null,null,null,null,null,null,null,null,null,null,null,null,null,null,null,null,null,null,null,null,null,null,null,null,null,null,null,null,null,null,null,null,null,null,null,null,null,null,null,null,null,null,null,null,null,null,null,null,null,null,null,null,null,null,null,null,null,null,null,null,null,null,null,null,null,null,null,null,null,null,null,null,null,null,null,null,null,null,null,null,null,null,null,null,null,null,null,null,null,null,null,null,null,null,null,null,null,null,null,null,null,null,null,null,null,null,null,null,null,null,null,null,null,null,null,null,null,null,null,null,null,null,null,null,null,null,null,null,null,null,null,null,null,null,null,null,null,null,null,null,null,null,null,null,null,null,null,null,null,null,null,null,null,null,null,null,null,null,null,null,null,null,null,null,null,null,null,null,null,null,null,null,null,null,null,null,null,null,null,null,null,null,null,null,null,null,null,null,null,null,null,null,null,null,null,null,null,null,null,null,null,null,null,null,null,null,null,null,null,null,null,null,null,null,null,null,null,null,null,null,null,null,null,null,null,null,null,null,null,null,null,null,null,null,null,null,null,null,null,null,null,null,null,null,null,null,null,null,null,null,null,null,null,null,null,null,null,null,null,null,null,null,null,null,null,null,null,null,null,null,null,null,null,null,null,null,null,null,null,null,null,null,null,null,null,null,null,null,null,null,null,null,null,null,null,null,null,null,null,null,null,null,null,null,null,null,null,null,null,null,null,null,null,null,null,null,null,null,null,null,null,null,null,null,null,null,null,null,null,null,null,null,null,null,null,null,null,null,null,null,null,null,null,null,null,null,null,null,null,null,null,null,null,null,null,null,null,null,null,null,null,null,null,null,null,null,null,null,null,null,null,null,null,null,null,null,null,null,null,null,null,null,null,null,null,null,null,null,null,null,null,null,null,null,null,null,null,null,null,null,null,null,null,null,null,null,null,null,null,null,null,null,null,null,null,null,null,null,null,null,null,null,null,null,null,null,null,null,null,null,null,null,null,null,null,null,null,null,null,null,null,null,null,null,null,null,null,null,null,null,null,null,null,null,null,null,null,null,null,null,null,null,null,null,null,null,null,null,null,null,null,null,null,null,null,null,null,null,null,null,null,null,null,null,null,null,null,null,null,null,null,null,null,null,null,null,null,null,null,null,null,null,null,null,null,null,null,null,null,null,null,null,null,null,null,null,null,null,null,null,null,null,null,null,null,null,null,null,null,null,null,null,null,null,null,null,null,null,null,null,null,null,null,null,null,null,null,null,null,null,null,null,null,null,null,null,null,null,null,null,null,null,null,null,null,null,null,null,null,null,null,null,null,null,null,null,null,null,null,null,null,null,null,null,null,null,null,null,null,null,null,null,null,null,null,null,null,null,null,null,null,null,null,null,null,null,null,null,null,null,null,null,null,null,null,null,null,null,null,null,null,null,null,null,null,null,null,null,null,null,null,null,null,null,null,null,null,null,null,null,null,null,null,null,null,null,null,null,null,null,null,null,null,null,null,null,null,null,null,null,null,null,null,null,null,null,null,null,null,null,null,null,null,null,null,null,null,null,null,null,null,null,null,null,null,null,null,null,null,null,null,null,null,null,null,null,null,null,null,null,null,null,null,null,null,null,null,null,null,null,null,null,null,null,null,null,null,null,null,null,null,null,null,null,null,null,null,null,null,null,null,null,null,null,null,null,null,null,null,null,null,null,null,null,null,null,null,null,null,null,null,null,null,null,null,null,null,null,null,null,null,null,null,null,null,null,null,null,null,null,null,null,null,null,null,null,null,null,null,null,null,null,null,null,null,null,null,null,null,null,null,null,null,null,null,null,null,null,null,null,null,null,null,null,null,null,null,null,null,null,null,null,null,null,null,null,null,null,null,null,null,null,null,null,null,null,null,null,null,null,null,null,null,null,null,null,null,null,null,null,null,null,null,null,null,null,null,null,null,null,null,null,null,null,null,null,null,null,null,null,null,null,null,null,null,null,null,null,null,null,null,null,null,null,null,null,null,null,null,null,null,null,null,null,null,null,null,null,null,null,null,null,null,null,null,null,null,null,null,null,null,null,null,null,null,null,null,null,null,null,null,null,null,null,null,null,null,null,null,null,null,null,null,null,null,null,null,null,null,null,null,null,null,null,null,null,null,null,null,null,null,null,null,null,null,null,null,null,null,null,null,null,null,null,null,null,null,null,null,null,null,null,null,null,null,null,null,null,null,null,null,null,null,null,null,null,null,null,null,null,null,null,null,null,null,null,null,null,null,null,null,null,null,null,null,null,null,null,null,null,null,null,null,null,null,null,null,null,null,null,null,null,null,null,null,null,null,null,null,null,null,null,null,null,null,null,null,null,null,null,null,null,null,null,null,null,null,null,null,null,null,null,null,null,null,null,null,null,null,null,null,null,null,null,null,null,null,null,null,null,null,null,null,null,null,null,null,null,null,null,null,null,null,null,null,null,null,null,null,null,null,null,null,null,null,null,null,null,null,null,null,null,null,null,null,null,null,null,null,null,null,null,null,null,null,null,null,null,null,null,null,null,null,null,null,null,null,null,null,null,null,null,null,null,null,null,null,null,null,null,null,null,null,null,null,null,null,null,null,null,null,null,null,null,null,null,null,null,null,null,null,null,null,null,null,null,null,null,null,null,null,null,null,null,null,null,null,null,null,null,null,null,null,null,null,null,null,null,null,null,null,null,null,null,null,null,null,null,null,null,null,null,null,null,null,null,null,null,null,null,null,null,null,null,null,null,null,null,null,null,null,null,null,null,null,null,null,null,null,null,null,null,null,null,null,null,null,null,null,null,null,null,null,null,null,null,null,null,null,null,null,null,null,null,null,null,null,null,null,null,null,null,null,null,null,null,null,null,null,null,null,null,null,null,null,null,null,null,null,null,null,null,null,null,null,null,null,null,null,null,null,null,null,null,null,null,null,null,null,null,null,null,null,null,null,null,null,null,null,null,null,null,null,null,null,null,null,null,null,null,null,null,null,null,null,null,null,null,null,null,null,null,null,null,null,null,null,null,null,null,null,null,null,null,null,null,null,null,null,null,null,null,null,null,null,null,null,null,null,null,null,null,null,null,null,null,null,null,null,null,null,null,null,null,null,null,null,null,null,null,null,null,null,null,null,null,null,null,null,null,null,null,null,null,null,null,null,null,null,null,null,null,null,null,null,null,null,null,null,null,null,null,null,null,null,null,null,null,null,null,null,null,null,null,null,null,null,null,null,null,null,null,null,null,null,null,null,null,null,null,null,null,null,null,null,null,null,null,null,null,null,null,null,null,null,null,null,null,null,null,null,null,null,null,null,null,null,null,null,null,null,null,null,null,null,null,null,null,null,null,null,null,null,null,null,null,null,null,null,null,null,null,null,null,null,null,null,null,null,null,null,null,null,null,null,null,null,null,null,null,null,null,null,null,null,null,null,null,null,null,null,null,null,null,null,null,null,null,null,null,null,null,null,null,null,null,null,null,null,null,null,null,null,null,null,null,null,null,null,null,null,null,null,null,null,null,null,null,null,null,null,null,null,null,null,null,null,null,null,null,null,null,null,null,null,null,null,null,null,null,null,null,null,null,null,null,null,null,null,null,null,null,null,null,null,null,null,null,null,null,null,null,null,null,null,null,null,null,null,null,null,null,null,null,null,null,null,null,null,null,null,null,null,null,null,null,null,null,null,null,null,null,null,null,null,null,null,null,null,null,null,null,null,null,null,null,null,null,null,null,null,null,null,null,null,null,null,null,null,null,null,null,null,null,null,null,null,null,null,null,null,null,null,null,null,null,null,null,null,null,null,null,null,null,null,null,null,null,null,null,null,null,null,null,null,null,null,null,null,null,null,null,null,null,null,null,null,null,null,null,null,null,null,null,null,null,null,null,null,null,null,null,null,null,null,null,null,null,null,null,null,null,null,null,null,null,null,null,null,null,null,null,null,null,null,null,null,null,null,null,null,null,null,null,null,null,null,null,null,null,null,null,null,null,null,null,null,null,null,null,null,null,null,null,null,null,null,null,null,null,null,null,null,null,null,null,null,null,null,null,null,null,null,null,null,null,null,null,null,null,null,null,null,null,null,null,null,null,null,null,null,null,null,null,null,null,null,null,null,null,null,null,null,null,null,null,null,null,null,null,null,null,null,null,null,null,null,null,null,null,null,null,null,null,null,null,null,null,null,null,null,null,null,null,null,null,null,null,null,null,null,null,null,null,null,null,null,null,null,null,null,null,null,null,null,null,null,null,null,null,null,null,null,null,null,null,null,null,null,null,null,null,null,null,null,null,null,null,null,null,null,null,null,null,null,null,null,null,null,null,null,null,null,null,null,null,null,null,null,null,null,null,null,null,null,null,null,null,null,null,null,null,null,null,null,null,null,null,null,null,null,null,null,null,null,null,null,null,null,null,null,null,null,null,null,null,null,null,null,null,null,null,null,null,null,null,null,null,null,null,null,null,null,null,null,null,null,null,null,null,null,null,null,null,null,null,null,null,1]
["Kunde:"]
["Marktlokation:"]
["Beginn:","2019-05-22"]
["Ende:","2019-05-23"]
["Hinweise:","Werte sind immer in Winterzeit anzugeben. Bei in der Nacht stattfindenden Maßnahmen, die bis in die Morgenstunden andauern, müssen auch Werte für den Vortag mitgesendet werden. Wenn Sie mehr als 2 Tage einreichen möchten, laden Sie das Template bitte erneut runter."]
[]
[]
["Anlagenschlüssel:"]
["Datum","Zeit","Einstrahlungsleistung","Einstrahlungsleistung","Einstrahlungsleistung","Einstrahlungsleistung","Einstrahlungsleistung","Einstrahlungsleistung","Einstrahlungsleistung","Einstrahlungsleistung","Einstrahlungsleistung","Einstrahlungsleistung","Einstrahlungsleistung","Einstrahlungsleistung","Einstrahlungsleistung","Einstrahlungsleistung","Einstrahlungsleistung","Einstrahlungsleistung","Einstrahlungsleistung","Einstrahlungsleistung","Einstrahlungsleistung","Einstrahlungsleistung"]
["[TT.MM.JJJJ]","[HH:mm]","kW/m²","kW/m²","kW/m²","kW/m²","kW/m²","kW/m²","kW/m²","kW/m²","kW/m²","kW/m²","kW/m²","kW/m²","kW/m²","kW/m²","kW/m²","kW/m²","kW/m²","kW/m²","kW/m²","kW/m²"]
[{"$f":"$B4","v":"2019-05-22"},"00:15:00"]
[{"$f":"$B4","v":"2019-05-22"},"00:30:00"]
[{"$f":"$B4","v":"2019-05-22"},"00:45:00"]
[{"$f":"$B4","v":"2019-05-22"},"01:00:00"]
[{"$f":"$B4","v":"2019-05-22"},"01:15:00"]
[{"$f":"$B4","v":"2019-05-22"},"01:30:00"]
[{"$f":"$B4","v":"2019-05-22"},"01:45:00"]
[{"$f":"$B4","v":"2019-05-22"},"02:00:00"]
[{"$f":"$B4","v":"2019-05-22"},"02:15:00"]
[{"$f":"$B4","v":"2019-05-22"},"02:30:00"]
[{"$f":"$B4","v":"2019-05-22"},"02:45:00"]
[{"$f":"$B4","v":"2019-05-22"},"03:00:00"]
[{"$f":"$B4","v":"2019-05-22"},"03:15:00"]
[{"$f":"$B4","v":"2019-05-22"},"03:30:00"]
[{"$f":"$B4","v":"2019-05-22"},"03:45:00"]
[{"$f":"$B4","v":"2019-05-22"},"04:00:00"]
[{"$f":"$B4","v":"2019-05-22"},"04:15:00"]
[{"$f":"$B4","v":"2019-05-22"},"04:30:00"]
[{"$f":"$B4","v":"2019-05-22"},"04:45:00"]
[{"$f":"$B4","v":"2019-05-22"},"05:00:00"]
[{"$f":"$B4","v":"2019-05-22"},"05:15:00"]
[{"$f":"$B4","v":"2019-05-22"},"05:30:00"]
[{"$f":"$B4","v":"2019-05-22"},"05:45:00"]
[{"$f":"$B4","v":"2019-05-22"},"06:00:00"]
[{"$f":"$B4","v":"2019-05-22"},"06:15:00"]
[{"$f":"$B4","v":"2019-05-22"},"06:30:00"]
[{"$f":"$B4","v":"2019-05-22"},"06:45:00"]
[{"$f":"$B4","v":"2019-05-22"},"07:00:00"]
[{"$f":"$B4","v":"2019-05-22"},"07:15:00"]
[{"$f":"$B4","v":"2019-05-22"},"07:30:00"]
[{"$f":"$B4","v":"2019-05-22"},"07:45:00"]
[{"$f":"$B4","v":"2019-05-22"},"08:00:00"]
[{"$f":"$B4","v":"2019-05-22"},"08:15:00"]
[{"$f":"$B4","v":"2019-05-22"},"08:30:00"]
[{"$f":"$B4","v":"2019-05-22"},"08:45:00"]
[{"$f":"$B4","v":"2019-05-22"},"09:00:00"]
[{"$f":"$B4","v":"2019-05-22"},"09:15:00"]
[{"$f":"$B4","v":"2019-05-22"},"09:30:00"]
[{"$f":"$B4","v":"2019-05-22"},"09:45:00"]
[{"$f":"$B4","v":"2019-05-22"},"10:00:00"]
[{"$f":"$B4","v":"2019-05-22"},"10:15:00"]
[{"$f":"$B4","v":"2019-05-22"},"10:30:00"]
[{"$f":"$B4","v":"2019-05-22"},"10:45:00"]
[{"$f":"$B4","v":"2019-05-22"},"11:00:00"]
[{"$f":"$B4","v":"2019-05-22"},"11:15:00"]
[{"$f":"$B4","v":"2019-05-22"},"11:30:00"]
[{"$f":"$B4","v":"2019-05-22"},"11:45:00"]
[{"$f":"$B4","v":"2019-05-22"},"12:00:00"]
[{"$f":"$B4","v":"2019-05-22"},"12:15:00"]
[{"$f":"$B4","v":"2019-05-22"},"12:30:00"]
[{"$f":"$B4","v":"2019-05-22"},"12:45:00"]
[{"$f":"$B4","v":"2019-05-22"},"13:00:00"]
[{"$f":"$B4","v":"2019-05-22"},"13:15:00"]
[{"$f":"$B4","v":"2019-05-22"},"13:30:00"]
[{"$f":"$B4","v":"2019-05-22"},"13:45:00"]
[{"$f":"$B4","v":"2019-05-22"},"14:00:00"]
[{"$f":"$B4","v":"2019-05-22"},"14:15:00"]
[{"$f":"$B4","v":"2019-05-22"},"14:30:00"]
[{"$f":"$B4","v":"2019-05-22"},"14:45:00"]
[{"$f":"$B4","v":"2019-05-22"},"15:00:00"]
[{"$f":"$B4","v":"2019-05-22"},"15:15:00"]
[{"$f":"$B4","v":"2019-05-22"},"15:30:00"]
[{"$f":"$B4","v":"2019-05-22"},"15:45:00"]
[{"$f":"$B4","v":"2019-05-22"},"16:00:00"]
[{"$f":"$B4","v":"2019-05-22"},"16:15:00"]
[{"$f":"$B4","v":"2019-05-22"},"16:30:00"]
[{"$f":"$B4","v":"2019-05-22"},"16:45:00"]
[{"$f":"$B4","v":"2019-05-22"},"17:00:00"]
[{"$f":"$B4","v":"2019-05-22"},"17:15:00"]
[{"$f":"$B4","v":"2019-05-22"},"17:30:00"]
[{"$f":"$B4","v":"2019-05-22"},"17:45:00"]
[{"$f":"$B4","v":"2019-05-22"},"18:00:00"]
[{"$f":"$B4","v":"2019-05-22"},"18:15:00"]
[{"$f":"$B4","v":"2019-05-22"},"18:30:00"]
[{"$f":"$B4","v":"2019-05-22"},"18:45:00"]
[{"$f":"$B4","v":"2019-05-22"},"19:00:00"]
[{"$f":"$B4","v":"2019-05-22"},"19:15:00"]
[{"$f":"$B4","v":"2019-05-22"},"19:30:00"]
[{"$f":"$B4","v":"2019-05-22"},"19:45:00"]
[{"$f":"$B4","v":"2019-05-22"},"20:00:00"]
[{"$f":"$B4","v":"2019-05-22"},"20:15:00"]
[{"$f":"$B4","v":"2019-05-22"},"20:30:00"]
[{"$f":"$B4","v":"2019-05-22"},"20:45:00"]
[{"$f":"$B4","v":"2019-05-22"},"21:00:00"]
[{"$f":"$B4","v":"2019-05-22"},"21:15:00"]
[{"$f":"$B4","v":"2019-05-22"},"21:30:00"]
[{"$f":"$B4","v":"2019-05-22"},"21:45:00"]
[{"$f":"$B4","v":"2019-05-22"},"22:00:00"]
[{"$f":"$B4","v":"2019-05-22"},"22:15:00"]
[{"$f":"$B4","v":"2019-05-22"},"22:30:00"]
[{"$f":"$B4","v":"2019-05-22"},"22:45:00"]
[{"$f":"$B4","v":"2019-05-22"},"23:00:00"]
[{"$f":"$B4","v":"2019-05-22"},"23:15:00"]
[{"$f":"$B4","v":"2019-05-22"},"23:30:00"]
[{"$f":"$B4","v":"2019-05-22"},"23:45:00"]
[{"$f":"$B4","v":"2019-05-22"},"00:00:00"]
[{"$f":"IF(B4=B5,\"\",$B5)","v":"2019-05-23"},{"$f":"IF($B4=$B5,\"\",B12)","v":"00:15:00"}]
[{"$f":"IF(B4=B5,\"\",$B5)","v":"2019-05-23"},{"$f":"IF(B4=B5,\"\",B13)","v":"00:30:00"}]
[{"$f":"IF(B4=B5,\"\",$B5)","v":"2019-05-23"},{"$f":"IF(B4=B5,\"\",B14)","v":"00:45:00"}]
[{"$f":"IF(B4=B5,\"\",$B5)","v":"2019-05-23"},{"$f":"IF(B4=B5,\"\",B15)","v":"01:00:00"}]
[{"$f":"IF(B4=B5,\"\",$B5)","v":"2019-05-23"},{"$f":"IF(B4=B5,\"\",B16)","v":"01:15:00"}]
[{"$f":"IF(B4=B5,\"\",$B5)","v":"2019-05-23"},{"$f":"IF(B4=B5,\"\",B17)","v":"01:30:00"}]
[{"$f":"IF(B4=B5,\"\",$B5)","v":"2019-05-23"},{"$f":"IF(B4=B5,\"\",B18)","v":"01:45:00"}]
[{"$f":"IF(B4=B5,\"\",$B5)","v":"2019-05-23"},{"$f":"IF(B4=B5,\"\",B19)","v":"02:00:00"}]
[{"$f":"IF(B4=B5,\"\",$B5)","v":"2019-05-23"},{"$f":"IF(B4=B5,\"\",B20)","v":"02:15:00"}]
[{"$f":"IF(B4=B5,\"\",$B5)","v":"2019-05-23"},{"$f":"IF(B4=B5,\"\",B21)","v":"02:30:00"}]
[{"$f":"IF(B4=B5,\"\",$B5)","v":"2019-05-23"},{"$f":"IF($B$4=$B$5,\"\",B22)","v":"02:45:00"}]
[{"$f":"IF(B4=B5,\"\",$B5)","v":"2019-05-23"},{"$f":"IF($B$4=$B$5,\"\",B23)","v":"03:00:00"}]
[{"$f":"IF(B4=B5,\"\",$B5)","v":"2019-05-23"},"03:15:00"]
[{"$f":"IF(B4=B5,\"\",$B5)","v":"2019-05-23"},"03:30:00"]
[{"$f":"IF(B4=B5,\"\",$B5)","v":"2019-05-23"},"03:45:00"]
[{"$f":"IF(B4=B5,\"\",$B5)","v":"2019-05-23"},"04:00:00"]
[{"$f":"IF(B4=B5,\"\",$B5)","v":"2019-05-23"},"04:15:00"]
[{"$f":"IF(B4=B5,\"\",$B5)","v":"2019-05-23"},"04:30:00"]
[{"$f":"IF(B4=B5,\"\",$B5)","v":"2019-05-23"},"04:45:00"]
[{"$f":"IF(B4=B5,\"\",$B5)","v":"2019-05-23"},"05:00:00"]
[{"$f":"IF(B4=B5,\"\",$B5)","v":"2019-05-23"},"05:15:00"]
[{"$f":"IF(B4=B5,\"\",$B5)","v":"2019-05-23"},"05:30:00"]
[{"$f":"IF(B4=B5,\"\",$B5)","v":"2019-05-23"},"05:45:00"]
[{"$f":"IF(B4=B5,\"\",$B5)","v":"2019-05-23"},"06:00:00"]
[{"$f":"IF(B4=B5,\"\",$B5)","v":"2019-05-23"},"06:15:00"]
[{"$f":"IF(B4=B5,\"\",$B5)","v":"2019-05-23"},"06:30:00"]
[{"$f":"IF(B4=B5,\"\",$B5)","v":"2019-05-23"},"06:45:00"]
[{"$f":"IF(B4=B5,\"\",$B5)","v":"2019-05-23"},"07:00:00"]
[{"$f":"IF(B4=B5,\"\",$B5)","v":"2019-05-23"},"07:15:00"]
[{"$f":"IF(B4=B5,\"\",$B5)","v":"2019-05-23"},"07:30:00"]
[{"$f":"IF(B4=B5,\"\",$B5)","v":"2019-05-23"},"07:45:00"]
[{"$f":"IF(B4=B5,\"\",$B5)","v":"2019-05-23"},"08:00:00"]
[{"$f":"IF(B4=B5,\"\",$B5)","v":"2019-05-23"},"08:15:00"]
[{"$f":"IF(B4=B5,\"\",$B5)","v":"2019-05-23"},"08:30:00"]
[{"$f":"IF(B4=B5,\"\",$B5)","v":"2019-05-23"},"08:45:00"]
[{"$f":"IF(B4=B5,\"\",$B5)","v":"2019-05-23"},"09:00:00"]
[{"$f":"IF(B4=B5,\"\",$B5)","v":"2019-05-23"},"09:15:00"]
[{"$f":"IF(B4=B5,\"\",$B5)","v":"2019-05-23"},"09:30:00"]
[{"$f":"IF(B4=B5,\"\",$B5)","v":"2019-05-23"},"09:45:00"]
[{"$f":"IF(B4=B5,\"\",$B5)","v":"2019-05-23"},"10:00:00"]
[{"$f":"IF(B4=B5,\"\",$B5)","v":"2019-05-23"},"10:15:00"]
[{"$f":"IF(B4=B5,\"\",$B5)","v":"2019-05-23"},"10:30:00"]
[{"$f":"IF(B4=B5,\"\",$B5)","v":"2019-05-23"},"10:45:00"]
[{"$f":"IF(B4=B5,\"\",$B5)","v":"2019-05-23"},"11:00:00"]
[{"$f":"IF(B4=B5,\"\",$B5)","v":"2019-05-23"},"11:15:00"]
[{"$f":"IF(B4=B5,\"\",$B5)","v":"2019-05-23"},"11:30:00"]
[{"$f":"IF(B4=B5,\"\",$B5)","v":"2019-05-23"},"11:45:00"]
[{"$f":"IF(B4=B5,\"\",$B5)","v":"2019-05-23"},"12:00:00"]
[{"$f":"IF(B4=B5,\"\",$B5)","v":"2019-05-23"},"12:15:00"]
[{"$f":"IF(B4=B5,\"\",$B5)","v":"2019-05-23"},"12:30:00"]
[{"$f":"IF(B4=B5,\"\",$B5)","v":"2019-05-23"},"12:45:00"]
[{"$f":"IF(B4=B5,\"\",$B5)","v":"2019-05-23"},"13:00:00"]
[{"$f":"IF(B4=B5,\"\",$B5)","v":"2019-05-23"},"13:15:00"]
[{"$f":"IF(B4=B5,\"\",$B5)","v":"2019-05-23"},"13:30:00"]
[{"$f":"IF(B4=B5,\"\",$B5)","v":"2019-05-23"},"13:45:00"]
[{"$f":"IF(B4=B5,\"\",$B5)","v":"2019-05-23"},"14:00:00"]
[{"$f":"IF(B4=B5,\"\",$B5)","v":"2019-05-23"},"14:15:00"]
[{"$f":"IF(B4=B5,\"\",$B5)","v":"2019-05-23"},"14:30:00"]
[{"$f":"IF(B4=B5,\"\",$B5)","v":"2019-05-23"},"14:45:00"]
[{"$f":"IF(B4=B5,\"\",$B5)","v":"2019-05-23"},"15:00:00"]
[{"$f":"IF(B4=B5,\"\",$B5)","v":"2019-05-23"},"15:15:00"]
[{"$f":"IF(B4=B5,\"\",$B5)","v":"2019-05-23"},"15:30:00"]
[{"$f":"IF(B4=B5,\"\",$B5)","v":"2019-05-23"},"15:45:00"]
[{"$f":"IF(B4=B5,\"\",$B5)","v":"2019-05-23"},"16:00:00"]
[{"$f":"IF(B4=B5,\"\",$B5)","v":"2019-05-23"},"16:15:00"]
[{"$f":"IF(B4=B5,\"\",$B5)","v":"2019-05-23"},"16:30:00"]
[{"$f":"IF(B4=B5,\"\",$B5)","v":"2019-05-23"},"16:45:00"]
[{"$f":"IF(B4=B5,\"\",$B5)","v":"2019-05-23"},"17:00:00"]
[{"$f":"IF(B4=B5,\"\",$B5)","v":"2019-05-23"},"17:15:00"]
[{"$f":"IF(B4=B5,\"\",$B5)","v":"2019-05-23"},"17:30:00"]
[{"$f":"IF(B4=B5,\"\",$B5)","v":"2019-05-23"},"17:45:00"]
[{"$f":"IF(B4=B5,\"\",$B5)","v":"2019-05-23"},"18:00:00"]
[{"$f":"IF(B4=B5,\"\",$B5)","v":"2019-05-23"},"18:15:00"]
[{"$f":"IF(B4=B5,\"\",$B5)","v":"2019-05-23"},"18:30:00"]
[{"$f":"IF(B4=B5,\"\",$B5)","v":"2019-05-23"},"18:45:00"]
[{"$f":"IF(B4=B5,\"\",$B5)","v":"2019-05-23"},{"$f":"IF($B$4=$B$5,\"\",B87)","v":"19:00:00"}]
[{"$f":"IF(B4=B5,\"\",$B5)","v":"2019-05-23"},"19:15:00"]
[{"$f":"IF(B4=B5,\"\",$B5)","v":"2019-05-23"},"19:30:00"]
[{"$f":"IF(B4=B5,\"\",$B5)","v":"2019-05-23"},"19:45:00"]
[{"$f":"IF(B4=B5,\"\",$B5)","v":"2019-05-23"},"20:00:00"]
[{"$f":"IF(B4=B5,\"\",$B5)","v":"2019-05-23"},"20:15:00"]
[{"$f":"IF(B4=B5,\"\",$B5)","v":"2019-05-23"},"20:30:00"]
[{"$f":"IF(B4=B5,\"\",$B5)","v":"2019-05-23"},"20:45:00"]
[{"$f":"IF(B4=B5,\"\",$B5)","v":"2019-05-23"},"21:00:00"]
[{"$f":"IF(B4=B5,\"\",$B5)","v":"2019-05-23"},"21:15:00"]
[{"$f":"IF(B4=B5,\"\",$B5)","v":"2019-05-23"},"21:30:00"]
[{"$f":"IF(B4=B5,\"\",$B5)","v":"2019-05-23"},"21:45:00"]
[{"$f":"IF(B4=B5,\"\",$B5)","v":"2019-05-23"},"22:00:00"]
[{"$f":"IF(B4=B5,\"\",$B5)","v":"2019-05-23"},"22:15:00"]
[{"$f":"IF(B4=B5,\"\",$B5)","v":"2019-05-23"},"22:30:00"]
[{"$f":"IF(B4=B5,\"\",$B5)","v":"2019-05-23"},"22:45:00"]
[{"$f":"IF(B4=B5,\"\",$B5)","v":"2019-05-23"},"23:00:00"]
[{"$f":"IF(B4=B5,\"\",$B5)","v":"2019-05-23"},"23:15:00"]
[{"$f":"IF(B4=B5,\"\",$B5)","v":"2019-05-23"},"23:30:00"]
[{"$f":"IF(B4=B5,\"\",$B5)","v":"2019-05-23"},"23:45:00"]
[{"$f":"IF(B4=B5,\"\",$B5)","v":"2019-05-23"},"00:00:00"]
[null,"00:15:00"]
[null,"00:30:00"]
[null,"00:45:00"]
[null,"01:00:00"]
[null,"01:15:00"]
[null,"01:30:00"]
[null,"01:45:00"]
[null,"02:00:00"]
[null,"02:15:00"]
[null,"02:30:00"]
[null,"02:45:00"]
[null,"03:00:00"]
[null,"03:15:00"]
[null,"03:30:00"]
[null,"03:45:00"]
[null,"04:00:00"]
[null,"04:15:00"]
[null,"04:30:00"]
[null,"04:45:00"]
[null,"05:00:00"]
[null,"05:15:00"]
[null,"05:30:00"]
[null,"05:45:00"]
[null,"06:00:00"]
[null,"06:15:00"]
[null,"06:30:00"]
[null,"06:45:00"]
[null,"07:00:00"]
[null,"07:15:00"]
[null,"07:30:00"]
[null,"07:45:00"]
[null,"08:00:00"]
[null,"08:15:00"]
[null,"08:30:00"]
[null,"08:45:00"]
[null,"09:00:00"]
[null,"09:15:00"]
[null,"09:30:00"]
[null,"09:45:00"]
[null,"10:00:00"]
[null,"10:15:00"]
[null,"10:30:00"]
[null,"10:45:00"]
[null,{"$f":"IF($B$4=$B$5,\"\",B151)","v":"11:00:00"}]
[null,"11:15:00"]
[null,"11:30:00"]
[null,"11:45:00"]
[null,"12:00:00"]
[null,"12:15:00"]
[null,"12:30:00"]
[null,"12:45:00"]
[null,"13:00:00"]
[null,"13:15:00"]
[null,"13:30:00"]
[null,"13:45:00"]
[null,"14:00:00"]
[null,"14:15:00"]
[null,"14:30:00"]
[null,"14:45:00"]
[null,"15:00:00"]
[null,"15:15:00"]
[null,"15:30:00"]
[null,"15:45:00"]
[null,"16:00:00"]
[null,"16:15:00"]
[null,"16:30:00"]
[null,"16:45:00"]
[null,"17:00:00"]
[null,"17:15:00"]
[null,"17:30:00"]
[null,"17:45:00"]
[null,"18:00:00"]
[null,"18:15:00"]
[null,"18:30:00"]
[null,"18:45:00"]
[null,"19:00:00"]
[null,"19:15:00"]
[null,"19:30:00"]
[null,"19:45:00"]
[null,"20:00:00"]
[null,"20:15:00"]
[null,"20:30:00"]
[null,"20:45:00"]
[null,"21:00:00"]
[null,"21:15:00"]
[null,"21:30:00"]
[null,"21:45:00"]
[null,"22:00:00"]
[null,"22:15:00"]
[null,"22:30:00"]
[null,"22:45:00"]
[null,"23:00:00"]
[null,"23:15:00"]
[null,"23:30:00"]
[null,"23:45:00"]
[null,"00:00:00"]
[null,"00:15:00"]
[null,"00:30:00"]
[null,"00:45:00"]
[null,"01:00:00"]
[null,"01:15:00"]
[null,"01:30:00"]
[null,"01:45:00"]
[null,"02:00:00"]
[null,"02:15:00"]
[null,"02:30:00"]
[null,"02:45:00"]
[null,{"$f":"IF($B$4=$B$5,\"\",B215)","v":"03:00:00"}]
[null,"03:15:00"]
[null,"03:30:00"]
[null,"03:45:00"]
[null,"04:00:00"]
[null,"04:15:00"]
[null,"04:30:00"]
[null,"04:45:00"]
[null,"05:00:00"]
[null,"05:15:00"]
[null,"05:30:00"]
[null,"05:45:00"]
[null,"06:00:00"]
[null,"06:15:00"]
[null,"06:30:00"]
[null,"06:45:00"]
[null,"07:00:00"]
[null,"07:15:00"]
[null,"07:30:00"]
[null,"07:45:00"]
[null,"08:00:00"]
[null,"08:15:00"]
[null,"08:30:00"]
[null,"08:45:00"]
[null,"09:00:00"]
[null,"09:15:00"]
[null,"09:30:00"]
[null,"09:45:00"]
[null,"10:00:00"]
[null,"10:15:00"]
[null,"10:30:00"]
[null,"10:45:00"]
[null,"11:00:00"]
[null,"11:15:00"]
[null,"11:30:00"]
[null,"11:45:00"]
[null,"12:00:00"]
[null,"12:15:00"]
[null,"12:30:00"]
[null,"12:45:00"]
[null,"13:00:00"]
[null,"13:15:00"]
[null,"13:30:00"]
[null,"13:45:00"]
[null,"14:00:00"]
[null,"14:15:00"]
[null,"14:30:00"]
[null,"14:45:00"]
[null,"15:00:00"]
[null,"15:15:00"]
[null,"15:30:00"]
[null,"15:45:00"]
[null,"16:00:00"]
[null,"16:15:00"]
[null,"16:30:00"]
[null,"16:45:00"]
[null,"17:00:00"]
[null,"17:15:00"]
[null,"17:30:00"]
[null,"17:45:00"]
[null,"18:00:00"]
[null,"18:15:00"]
[null,"18:30:00"]
[null,"18:45:00"]
[null,{"$f":"IF($B$4=$B$5,\"\",B279)","v":"19:00:00"}]
[null,"19:15:00"]
[null,"19:30:00"]
[null,"19:45:00"]
[null,"20:00:00"]
[null,"20:15:00"]
[null,"20:30:00"]
[null,"20:45:00"]
[null,"21:00:00"]
[null,"21:15:00"]
[null,"21:30:00"]
[null,"21:45:00"]
[null,"22:00:00"]
[null,"22:15:00"]
[null,"22:30:00"]
[null,"22:45:00"]
[null,"23:00:00"]
[null,"23:15:00"]
[null,"23:30:00"]
[null,"23:45:00"]
[null,"00:00:00"]
[null,"00:15:00"]
[null,"00:30:00"]
[null,"00:45:00"]
[null,"01:00:00"]
[null,"01:15:00"]
[null,"01:30:00"]
[null,"01:45:00"]
[null,"02:00:00"]
[null,"02:15:00"]
[null,"02:30:00"]
[null,"02:45:00"]
[null,"03:00:00"]
[null,"03:15:00"]
[null,"03:30:00"]
[null,"03:45:00"]
[null,"04:00:00"]
[null,"04:15:00"]
[null,"04:30:00"]
[null,"04:45:00"]
[null,"05:00:00"]
[null,"05:15:00"]
[null,"05:30:00"]
[null,"05:45:00"]
[null,"06:00:00"]
[null,"06:15:00"]
[null,"06:30:00"]
[null,"06:45:00"]
[null,"07:00:00"]
[null,"07:15:00"]
[null,"07:30:00"]
[null,"07:45:00"]
[null,"08:00:00"]
[null,"08:15:00"]
[null,"08:30:00"]
[null,"08:45:00"]
[null,"09:00:00"]
[null,"09:15:00"]
[null,"09:30:00"]
[null,"09:45:00"]
[null,"10:00:00"]
[null,"10:15:00"]
[null,"10:30:00"]
[null,"10:45:00"]
[null,{"$f":"IF($B$4=$B$5,\"\",B343)","v":"11:00:00"}]
[null,"11:15:00"]
[null,"11:30:00"]
[null,"11:45:00"]
[null,"12:00:00"]
[null,"12:15:00"]
[null,"12:30:00"]
[null,"12:45:00"]
[null,"13:00:00"]
[null,"13:15:00"]
[null,"13:30:00"]
[null,"13:45:00"]
[null,"14:00:00"]
[null,"14:15:00"]
[null,"14:30:00"]
[null,"14:45:00"]
[null,"15:00:00"]
[null,"15:15:00"]
[null,"15:30:00"]
[null,"15:45:00"]
[null,"16:00:00"]
[null,"16:15:00"]
[null,"16:30:00"]
[null,"16:45:00"]
[null,"17:00:00"]
[null,"17:15:00"]
[null,"17:30:00"]
[null,"17:45:00"]
[null,"18:00:00"]
[null,"18:15:00"]
[null,"18:30:00"]
[null,"18:45:00"]
[null,"19:00:00"]
[null,"19:15:00"]
[null,"19:30:00"]
[null,"19:45:00"]
[null,"20:00:00"]
[null,"20:15:00"]
[null,"20:30:00"]
[null,"20:45:00"]
[null,"21:00:00"]
[null,"21:15:00"]
[null,"21:30:00"]
[null,"21:45:00"]
[null,"22:00:00"]
[null,"22:15:00"]
[null,"22:30:00"]
[null,"22:45:00"]
[null,"23:00:00"]
[null,"23:15:00"]
[null,"23:30:00"]
[null,"23:45:00"]
[null,"00:00:00"]
[null,"00:15:00"]
[null,"00:30:00"]
[null,"00:45:00"]
[null,"01:00:00"]
[null,"01:15:00"]
[null,"01:30:00"]
[null,"01:45:00"]
[null,"02:00:00"]
[null,"02:15:00"]
[null,"02:30:00"]
[null,"02:45:00"]
[null,{"$f":"IF($B$4=$B$5,\"\",B407)","v":"03:00:00"}]
[null,"03:15:00"]
[null,"03:30:00"]
[null,"03:45:00"]
[null,"04:00:00"]
[null,"04:15:00"]
[null,"04:30:00"]
[null,"04:45:00"]
[null,"05:00:00"]
[null,"05:15:00"]
[null,"05:30:00"]
[null,"05:45:00"]
[null,"06:00:00"]
[null,"06:15:00"]
[null,"06:30:00"]
[null,"06:45:00"]
[null,"07:00:00"]
[null,"07:15:00"]
[null,"07:30:00"]
[null,"07:45:00"]
[null,"08:00:00"]
[null,"08:15:00"]
[null,"08:30:00"]
[null,"08:45:00"]
[null,"09:00:00"]
[null,"09:15:00"]
[null,"09:30:00"]
[null,"09:45:00"]
[null,"10:00:00"]
[null,"10:15:00"]
[null,"10:30:00"]
[null,"10:45:00"]
[null,"11:00:00"]
[null,"11:15:00"]
[null,"11:30:00"]
[null,"11:45:00"]
[null,"12:00:00"]
[null,"12:15:00"]
[null,"12:30:00"]
[null,"12:45:00"]
[null,"13:00:00"]
[null,"13:15:00"]
[null,"13:30:00"]
[null,"13:45:00"]
[null,"14:00:00"]
[null,"14:15:00"]
[null,"14:30:00"]
[null,"14:45:00"]
[null,"15:00:00"]
[null,"15:15:00"]
[null,"15:30:00"]
[null,"15:45:00"]
[null,"16:00:00"]
[null,"16:15:00"]
[null,"16:30:00"]
[null,"16:45:00"]
[null,"17:00:00"]
[null,"17:15:00"]
[null,"17:30:00"]
[null,"17:45:00"]
[null,"18:00:00"]
[null,"18:15:00"]
[null,"18:30:00"]
[null,"18:45:00"]
[null,{"$f":"IF($B$4=$B$5,\"\",B471)","v":"19:00:00"}]
[null,"19:15:00"]
[null,"19:30:00"]
[null,"19:45:00"]
[null,"20:00:00"]
[null,"20:15:00"]
[null,"20:30:00"]
[null,"20:45:00"]
[null,"21:00:00"]
[null,"21:15:00"]
[null,"21:30:00"]
[null,"21:45:00"]
[null,"22:00:00"]
[null,"22:15:00"]
[null,"22:30:00"]
[null,"22:45:00"]
[null,"23:00:00"]
[null,"23:15:00"]
[null,"23:30:00"]
[null,"23:45:00"]
[null,"00:00:00"]
[null,"00:15:00"]
[null,"00:30:00"]
[null,"00:45:00"]
[null,"01:00:00"]
[null,"01:15:00"]
[null,"01:30:00"]
[null,"01:45:00"]
[null,"02:00:00"]
[null,"02:15:00"]
[null,"02:30:00"]
[null,"02:45:00"]
[null,"03:00:00"]
[null,"03:15:00"]
[null,"03:30:00"]
[null,"03:45:00"]
[null,"04:00:00"]
[null,"04:15:00"]
[null,"04:30:00"]
[null,"04:45:00"]
[null,"05:00:00"]
[null,"05:15:00"]
[null,"05:30:00"]
[null,"05:45:00"]
[null,"06:00:00"]
[null,"06:15:00"]
[null,"06:30:00"]
[null,"06:45:00"]
[null,"07:00:00"]
[null,"07:15:00"]
[null,"07:30:00"]
[null,"07:45:00"]
[null,"08:00:00"]
[null,"08:15:00"]
[null,"08:30:00"]
[null,"08:45:00"]
[null,"09:00:00"]
[null,"09:15:00"]
[null,"09:30:00"]
[null,"09:45:00"]
[null,"10:00:00"]
[null,"10:15:00"]
[null,"10:30:00"]
[null,"10:45:00"]
[null,{"$f":"IF($B$4=$B$5,\"\",B535)","v":"11:00:00"}]
[null,"11:15:00"]
[null,"11:30:00"]
[null,"11:45:00"]
[null,"12:00:00"]
[null,"12:15:00"]
[null,"12:30:00"]
[null,"12:45:00"]
[null,"13:00:00"]
[null,"13:15:00"]
[null,"13:30:00"]
[null,"13:45:00"]
[null,"14:00:00"]
[null,"14:15:00"]
[null,"14:30:00"]
[null,"14:45:00"]
[null,"15:00:00"]
[null,"15:15:00"]
[null,"15:30:00"]
[null,"15:45:00"]
[null,"16:00:00"]
[null,"16:15:00"]
[null,"16:30:00"]
[null,"16:45:00"]
[null,"17:00:00"]
[null,"17:15:00"]
[null,"17:30:00"]
[null,"17:45:00"]
[null,"18:00:00"]
[null,"18:15:00"]
[null,"18:30:00"]
[null,"18:45:00"]
[null,"19:00:00"]
[null,"19:15:00"]
[null,"19:30:00"]
[null,"19:45:00"]
[null,"20:00:00"]
[null,"20:15:00"]
[null,"20:30:00"]
[null,"20:45:00"]
[null,"21:00:00"]
[null,"21:15:00"]
[null,"21:30:00"]
[null,"21:45:00"]
[null,"22:00:00"]
[null,"22:15:00"]
[null,"22:30:00"]
[null,"22:45:00"]
[null,"23:00:00"]
[null,"23:15:00"]
[null,"23:30:00"]
[null,"23:45:00"]
[null,"00:00:00"]
[null,"00:15:00"]
[null,"00:30:00"]
[null,"00:45:00"]
[null,"01:00:00"]
[null,"01:15:00"]
[null,"01:30:00"]
[null,"01:45:00"]
[null,"02:00:00"]
[null,"02:15:00"]
[null,"02:30:00"]
[null,"02:45:00"]
[null,{"$f":"IF($B$4=$B$5,\"\",B599)","v":"03:00:00"}]
[null,"03:15:00"]
[null,"03:30:00"]
[null,"03:45:00"]
[null,"04:00:00"]
[null,"04:15:00"]
[null,"04:30:00"]
[null,"04:45:00"]
[null,"05:00:00"]
[null,"05:15:00"]
[null,"05:30:00"]
[null,"05:45:00"]
[null,"06:00:00"]
[null,"06:15:00"]
[null,"06:30:00"]
[null,"06:45:00"]
[null,"07:00:00"]
[null,"07:15:00"]
[null,"07:30:00"]
[null,"07:45:00"]
[null,"08:00:00"]
[null,"08:15:00"]
[null,"08:30:00"]
[null,"08:45:00"]
[null,"09:00:00"]
[null,"09:15:00"]
[null,"09:30:00"]
[null,"09:45:00"]
[null,"10:00:00"]
[null,"10:15:00"]
[null,"10:30:00"]
[null,"10:45:00"]
[null,"11:00:00"]
[null,"11:15:00"]
[null,"11:30:00"]
[null,"11:45:00"]
[null,"12:00:00"]
[null,"12:15:00"]
[null,"12:30:00"]
[null,"12:45:00"]
[null,"13:00:00"]
[null,"13:15:00"]
[null,"13:30:00"]
[null,"13:45:00"]
[null,"14:00:00"]
[null,"14:15:00"]
[null,"14:30:00"]
[null,"14:45:00"]
[null,"15:00:00"]
[null,"15:15:00"]
[null,"15:30:00"]
[null,"15:45:00"]
[null,"16:00:00"]
[null,"16:15:00"]
[null,"16:30:00"]
[null,"16:45:00"]
[null,"17:00:00"]
[null,"17:15:00"]
[null,"17:30:00"]
[null,"17:45:00"]
[null,"18:00:00"]
[null,"18:15:00"]
[null,"18:30:00"]
[null,"18:45:00"]
[null,{"$f":"IF($B$4=$B$5,\"\",B663)","v":"19:00:00"}]
[null,"19:15:00"]
[null,"19:30:00"]
[null,"19:45:00"]
[null,"20:00:00"]
[null,"20:15:00"]
[null,"20:30:00"]
[null,"20:45:00"]
[null,"21:00:00"]
[null,"21:15:00"]
[null,"21:30:00"]
[null,"21:45:00"]
[null,"22:00:00"]
[null,"22:15:00"]
[null,"22:30:00"]
[null,"22:45:00"]
[null,"23:00:00"]
[null,"23:15:00"]
[null,"23:30:00"]
[null,"23:45:00"]
[null,"00:00:00"]
[null,"00:15:00"]
[null,"00:30:00"]
[null,"00:45:00"]
[null,"01:00:00"]
[null,"01:15:00"]
[null,"01:30:00"]
[null,"01:45:00"]
[null,"02:00:00"]
[null,"02:15:00"]
[null,"02:30:00"]
[null,"02:45:00"]
[null,"03:00:00"]
[null,"03:15:00"]
[null,"03:30:00"]
[null,"03:45:00"]
[null,"04:00:00"]
[null,"04:15:00"]
[null,"04:30:00"]
[null,"04:45:00"]
[null,"05:00:00"]
[null,"05:15:00"]
[null,"05:30:00"]
[null,"05:45:00"]
[null,"06:00:00"]
[null,"06:15:00"]
[null,"06:30:00"]
[null,"06:45:00"]
[null,"07:00:00"]
[null,"07:15:00"]
[null,"07:30:00"]
[null,"07:45:00"]
[null,"08:00:00"]
[null,"08:15:00"]
[null,"08:30:00"]
[null,"08:45:00"]
[null,"09:00:00"]
[null,"09:15:00"]
[null,"09:30:00"]
[null,"09:45:00"]
[null,"10:00:00"]
[null,"10:15:00"]
[null,"10:30:00"]
[null,"10:45:00"]
[null,{"$f":"IF($B$4=$B$5,\"\",B727)","v":"11:00:00"}]
[null,"11:15:00"]
[null,"11:30:00"]
[null,"11:45:00"]
[null,"12:00:00"]
[null,"12:15:00"]
[null,"12:30:00"]
[null,"12:45:00"]
[null,"13:00:00"]
[null,"13:15:00"]
[null,"13:30:00"]
[null,"13:45:00"]
[null,"14:00:00"]
[null,"14:15:00"]
[null,"14:30:00"]
[null,"14:45:00"]
[null,"15:00:00"]
[null,"15:15:00"]
[null,"15:30:00"]
[null,"15:45:00"]
[null,"16:00:00"]
[null,"16:15:00"]
[null,"16:30:00"]
[null,"16:45:00"]
[null,"17:00:00"]
[null,"17:15:00"]
[null,"17:30:00"]
[null,"17:45:00"]
[null,"18:00:00"]
[null,"18:15:00"]
[null,"18:30:00"]
[null,"18:45:00"]
[null,"19:00:00"]
[null,"19:15:00"]
[null,"19:30:00"]
[null,"19:45:00"]
[null,"20:00:00"]
[null,"20:15:00"]
[null,"20:30:00"]
[null,"20:45:00"]
[null,"21:00:00"]
[null,"21:15:00"]
[null,"21:30:00"]
[null,"21:45:00"]
[null,"22:00:00"]
[null,"22:15:00"]
[null,"22:30:00"]
[null,"22:45:00"]
[null,"23:00:00"]
[null,"23:15:00"]
[null,"23:30:00"]
[null,"23:45:00"]
[null,"00:00:00"]
[null,"00:15:00"]
[null,"00:30:00"]
[null,"00:45:00"]
[null,"01:00:00"]
[null,"01:15:00"]
[null,"01:30:00"]
[null,"01:45:00"]
[null,"02:00:00"]
[null,"02:15:00"]
[null,"02:30:00"]
[null,"02:45:00"]
[null,{"$f":"IF($B$4=$B$5,\"\",B791)","v":"03:00:00"}]
[null,"03:15:00"]
[null,"03:30:00"]
[null,"03:45:00"]
[null,"04:00:00"]
[null,"04:15:00"]
[null,"04:30:00"]
[null,"04:45:00"]
[null,"05:00:00"]
[null,"05:15:00"]
[null,"05:30:00"]
[null,"05:45:00"]
[null,"06:00:00"]
[null,"06:15:00"]
[null,"06:30:00"]
[null,"06:45:00"]
[null,"07:00:00"]
[null,"07:15:00"]
[null,"07:30:00"]
[null,"07:45:00"]
[null,"08:00:00"]
[null,"08:15:00"]
[null,"08:30:00"]
[null,"08:45:00"]
[null,"09:00:00"]
[null,"09:15:00"]
[null,"09:30:00"]
[null,"09:45:00"]
[null,"10:00:00"]
[null,"10:15:00"]
[null,"10:30:00"]
[null,"10:45:00"]
[null,"11:00:00"]
[null,"11:15:00"]
[null,"11:30:00"]
[null,"11:45:00"]
[null,"12:00:00"]
[null,"12:15:00"]
[null,"12:30:00"]
[null,"12:45:00"]
[null,"13:00:00"]
[null,"13:15:00"]
[null,"13:30:00"]
[null,"13:45:00"]
[null,"14:00:00"]
[null,"14:15:00"]
[null,"14:30:00"]
[null,"14:45:00"]
[null,"15:00:00"]
[null,"15:15:00"]
[null,"15:30:00"]
[null,"15:45:00"]
[null,"16:00:00"]
[null,"16:15:00"]
[null,"16:30:00"]
[null,"16:45:00"]
[null,"17:00:00"]
[null,"17:15:00"]
[null,"17:30:00"]
[null,"17:45:00"]
[null,"18:00:00"]
[null,"18:15:00"]
[null,"18:30:00"]
[null,"18:45:00"]
[null,{"$f":"IF($B$4=$B$5,\"\",B855)","v":"19:00:00"}]
[null,"19:15:00"]
[null,"19:30:00"]
[null,"19:45:00"]
[null,"20:00:00"]
[null,"20:15:00"]
[null,"20:30:00"]
[null,"20:45:00"]
[null,"21:00:00"]
[null,"21:15:00"]
[null,"21:30:00"]
[null,"21:45:00"]
[null,"22:00:00"]
[null,"22:15:00"]
[null,"22:30:00"]
[null,"22:45:00"]
[null,"23:00:00"]
[null,"23:15:00"]
[null,"23:30:00"]
[null,"23:45:00"]
[null,"00:00:00"]
[null,"00:15:00"]
[null,"00:30:00"]
[null,"00:45:00"]
[null,"01:00:00"]
[null,"01:15:00"]
[null,"01:30:00"]
[null,"01:45:00"]
[null,"02:00:00"]
[null,"02:15:00"]
[null,"02:30:00"]
[null,"02:45:00"]
[null,"03:00:00"]
[null,"03:15:00"]
[null,"03:30:00"]
[null,"03:45:00"]
[null,"04:00:00"]
[null,"04:15:00"]
[null,"04:30:00"]
[null,"04:45:00"]
[null,"05:00:00"]
[null,"05:15:00"]
[null,"05:30:00"]
[null,"05:45:00"]
[null,"06:00:00"]
[null,"06:15:00"]
[null,"06:30:00"]
[null,"06:45:00"]
[null,"07:00:00"]
[null,"07:15:00"]
[null,"07:30:00"]
[null,"07:45:00"]
[null,"08:00:00"]
[null,"08:15:00"]
[null,"08:30:00"]
[null,"08:45:00"]
[null,"09:00:00"]
[null,"09:15:00"]
[null,"09:30:00"]
[null,"09:45:00"]
[null,"10:00:00"]
[null,"10:15:00"]
[null,"10:30:00"]
[null,"10:45:00"]
[null,{"$f":"IF($B$4=$B$5,\"\",B919)","v":"11:00:00"}]
[null,"11:15:00"]
[null,"11:30:00"]
[null,"11:45:00"]
[null,"12:00:00"]
[null,"12:15:00"]
[null,"12:30:00"]
[null,"12:45:00"]
[null,"13:00:00"]
[null,"13:15:00"]
[null,"13:30:00"]
[null,"13:45:00"]
[null,"14:00:00"]
[null,"14:15:00"]
[null,"14:30:00"]
[null,"14:45:00"]
[null,"15:00:00"]
[null,"15:15:00"]
[null,"15:30:00"]
[null,"15:45:00"]
[null,"16:00:00"]
[null,"16:15:00"]
[null,"16:30:00"]
[null,"16:45:00"]
[null,"17:00:00"]
[null,"17:15:00"]
[null,"17:30:00"]
[null,"17:45:00"]
[null,"18:00:00"]
[null,"18:15:00"]
[null,"18:30:00"]
[null,"18:45:00"]
[null,"19:00:00"]
[null,"19:15:00"]
[null,"19:30:00"]
[null,"19:45:00"]
[null,"20:00:00"]
[null,"20:15:00"]
[null,"20:30:00"]
[null,"20:45:00"]
[null,"21:00:00"]
[null,"21:15:00"]
[null,"21:30:00"]
[null,"21:45:00"]
[null,"22:00:00"]
[null,"22:15:00"]
[null,"22:30:00"]
[null,"22:45:00"]
[null,"23:00:00"]
[null,"23:15:00"]
[null,"23:30:00"]
[null,"23:45:00"]
[null,"00:00:00"]
[null,"00:15:00"]
[null,"00:30:00"]
[null,"00:45:00"]
[null,"01:00:00"]
[null,"01:15:00"]
[null,"01:30:00"]
[null,"01:45:00"]
[null,"02:00:00"]
[null,"02:15:00"]
[null,"02:30:00"]
[null,"02:45:00"]
[null,{"$f":"IF($B$4=$B$5,\"\",B983)","v":"03:00:00"}]
[null,"03:15:00"]
[null,"03:30:00"]
[null,"03:45:00"]
[null,"04:00:00"]
[null,"04:15:00"]
[null,"04:30:00"]
[null,"04:45:00"]
[null,"05:00:00"]
[null,"05:15:00"]
[null,"05:30:00"]
[null,"05:45:00"]
[null,"06:00:00"]
[null,"06:15:00"]
[null,"06:30:00"]
[null,"06:45:00"]
[null,"07:00:00"]
[null,"07:15:00"]
[null,"07:30:00"]
[null,"07:45:00"]
[null,"08:00:00"]
[null,"08:15:00"]
[null,"08:30:00"]
[null,"08:45:00"]
[null,"09:00:00"]
[null,"09:15:00"]
[null,"09:30:00"]
[null,"09:45:00"]
[null,"10:00:00"]
[null,"10:15:00"]
[null,"10:30:00"]
[null,"10:45:00"]
[null,"11:00:00"]
[null,"11:15:00"]
[null,"11:30:00"]
[null,"11:45:00"]
[null,"12:00:00"]
[null,"12:15:00"]
[null,"12:30:00"]
[null,"12:45:00"]
[null,"13:00:00"]
[null,"13:15:00"]
[null,"13:30:00"]
[null,"13:45:00"]
[null,"14:00:00"]
[null,"14:15:00"]
[null,"14:30:00"]
[null,"14:45:00"]
[null,"15:00:00"]
[null,"15:15:00"]
[null,"15:30:00"]
[null,"15:45:00"]
[null,"16:00:00"]
[null,"16:15:00"]
[null,"16:30:00"]
[null,"16:45:00"]
[null,"17:00:00"]
[null,"17:15:00"]
[null,"17:30:00"]
[null,"17:45:00"]
[null,"18:00:00"]
[null,"18:15:00"]
[null,"18:30:00"]
[null,"18:45:00"]
[null,{"$f":"IF($B$4=$B$5,\"\",B1047)","v":"19:00:00"}]
[null,"19:15:00"]
[null,"19:30:00"]
[null,"19:45:00"]
[null,"20:00:00"]
[null,"20:15:00"]
[null,"20:30:00"]
[null,"20:45:00"]
[null,"21:00:00"]
[null,"21:15:00"]
[null,"21:30:00"]
[null,"21:45:00"]
[null,"22:00:00"]
[null,"22:15:00"]
[null,"22:30:00"]
[null,"22:45:00"]
[null,"23:00:00"]
[null,"23:15:00"]
[null,"23:30:00"]
[null,"23:45:00"]
[null,"00:00:00"]
[null,"00:15:00"]
[null,"00:30:00"]
[null,"00:45:00"]
[null,"01:00:00"]
[null,"01:15:00"]
[null,"01:30:00"]
[null,"01:45:00"]
[null,"02:00:00"]
[null,"02:15:00"]
[null,"02:30:00"]
[null,"02:45:00"]
[null,"03:00:00"]
[null,"03:15:00"]
[null,"03:30:00"]
[null,"03:45:00"]
[null,"04:00:00"]
[null,"04:15:00"]
[null,"04:30:00"]
[null,"04:45:00"]
[null,"05:00:00"]
[null,"05:15:00"]
[null,"05:30:00"]
[null,"05:45:00"]
[null,"06:00:00"]
[null,"06:15:00"]
[null,"06:30:00"]
[null,"06:45:00"]
[null,"07:00:00"]
[null,"07:15:00"]
[null,"07:30:00"]
[null,"07:45:00"]
[null,"08:00:00"]
[null,"08:15:00"]
[null,"08:30:00"]
[null,"08:45:00"]
[null,"09:00:00"]
[null,"09:15:00"]
[null,"09:30:00"]
[null,"09:45:00"]
[null,"10:00:00"]
[null,"10:15:00"]
[null,"10:30:00"]
[null,"10:45:00"]
[null,{"$f":"IF($B$4=$B$5,\"\",B1111)","v":"11:00:00"}]
[null,"11:15:00"]
[null,"11:30:00"]
[null,"11:45:00"]
[null,"12:00:00"]
[null,"12:15:00"]
[null,"12:30:00"]
[null,"12:45:00"]
[null,"13:00:00"]
[null,"13:15:00"]
[null,"13:30:00"]
[null,"13:45:00"]
[null,"14:00:00"]
[null,"14:15:00"]
[null,"14:30:00"]
[null,"14:45:00"]
[null,"15:00:00"]
[null,"15:15:00"]
[null,"15:30:00"]
[null,"15:45:00"]
[null,"16:00:00"]
[null,"16:15:00"]
[null,"16:30:00"]
[null,"16:45:00"]
[null,"17:00:00"]
[null,"17:15:00"]
[null,"17:30:00"]
[null,"17:45:00"]
[null,"18:00:00"]
[null,"18:15:00"]
[null,"18:30:00"]
[null,"18:45:00"]
[null,"19:00:00"]
[null,"19:15:00"]
[null,"19:30:00"]
[null,"19:45:00"]
[null,"20:00:00"]
[null,"20:15:00"]
[null,"20:30:00"]
[null,"20:45:00"]
[null,"21:00:00"]
[null,"21:15:00"]
[null,"21:30:00"]
[null,"21:45:00"]
[null,"22:00:00"]
[null,"22:15:00"]
[null,"22:30:00"]
[null,"22:45:00"]
[null,"23:00:00"]
[null,"23:15:00"]
[null,"23:30:00"]
[null,"23:45:00"]
[null,"00:00:00"]
[null,"00:15:00"]
[null,"00:30:00"]
[null,"00:45:00"]
[null,"01:00:00"]
[null,"01:15:00"]
[null,"01:30:00"]
[null,"01:45:00"]
[null,"02:00:00"]
[null,"02:15:00"]
[null,"02:30:00"]
[null,"02:45:00"]
[null,{"$f":"IF($B$4=$B$5,\"\",B1175)","v":"03:00:00"}]
[null,"03:15:00"]
[null,"03:30:00"]
[null,"03:45:00"]
[null,"04:00:00"]
[null,"04:15:00"]
[null,"04:30:00"]
[null,"04:45:00"]
[null,"05:00:00"]
[null,"05:15:00"]
[null,"05:30:00"]
[null,"05:45:00"]
[null,"06:00:00"]
[null,"06:15:00"]
[null,"06:30:00"]
[null,"06:45:00"]
[null,"07:00:00"]
[null,"07:15:00"]
[null,"07:30:00"]
[null,"07:45:00"]
[null,"08:00:00"]
[null,"08:15:00"]
[null,"08:30:00"]
[null,"08:45:00"]
[null,"09:00:00"]
[null,"09:15:00"]
[null,"09:30:00"]
[null,"09:45:00"]
[null,"10:00:00"]
[null,"10:15:00"]
[null,"10:30:00"]
[null,"10:45:00"]
[null,"11:00:00"]
[null,"11:15:00"]
[null,"11:30:00"]
[null,"11:45:00"]
[null,"12:00:00"]
[null,"12:15:00"]
[null,"12:30:00"]
[null,"12:45:00"]
[null,"13:00:00"]
[null,"13:15:00"]
[null,"13:30:00"]
[null,"13:45:00"]
[null,"14:00:00"]
[null,"14:15:00"]
[null,"14:30:00"]
[null,"14:45:00"]
[null,"15:00:00"]
[null,"15:15:00"]
[null,"15:30:00"]
[null,"15:45:00"]
[null,"16:00:00"]
[null,"16:15:00"]
[null,"16:30:00"]
[null,"16:45:00"]
[null,"17:00:00"]
[null,"17:15:00"]
[null,"17:30:00"]
[null,"17:45:00"]
[null,"18:00:00"]
[null,"18:15:00"]
[null,"18:30:00"]
[null,"18:45:00"]
[null,{"$f":"IF($B$4=$B$5,\"\",B1239)","v":"19:00:00"}]
[null,"19:15:00"]
[null,"19:30:00"]
[null,"19:45:00"]
[null,"20:00:00"]
[null,"20:15:00"]
[null,"20:30:00"]
[null,"20:45:00"]
[null,"21:00:00"]
[null,"21:15:00"]
[null,"21:30:00"]
[null,"21:45:00"]
[null,"22:00:00"]
[null,"22:15:00"]
[null,"22:30:00"]
[null,"22:45:00"]
[null,"23:00:00"]
[null,"23:15:00"]
[null,"23:30:00"]
[null,"23:45:00"]
[null,"00:00:00"]
[null,"00:15:00"]
[null,"00:30:00"]
[null,"00:45:00"]
[null,"01:00:00"]
[null,"01:15:00"]
[null,"01:30:00"]
[null,"01:45:00"]
[null,"02:00:00"]
[null,"02:15:00"]
[null,"02:30:00"]
[null,"02:45:00"]
[null,"03:00:00"]
[null,"03:15:00"]
[null,"03:30:00"]
[null,"03:45:00"]
[null,"04:00:00"]
[null,"04:15:00"]
[null,"04:30:00"]
[null,"04:45:00"]
[null,"05:00:00"]
[null,"05:15:00"]
[null,"05:30:00"]
[null,"05:45:00"]
[null,"06:00:00"]
[null,"06:15:00"]
[null,"06:30:00"]
[null,"06:45:00"]
[null,"07:00:00"]
[null,"07:15:00"]
[null,"07:30:00"]
[null,"07:45:00"]
[null,"08:00:00"]
[null,"08:15:00"]
[null,"08:30:00"]
[null,"08:45:00"]
[null,"09:00:00"]
[null,"09:15:00"]
[null,"09:30:00"]
[null,"09:45:00"]
[null,"10:00:00"]
[null,"10:15:00"]
[null,"10:30:00"]
[null,"10:45:00"]
[null,{"$f":"IF($B$4=$B$5,\"\",B1303)","v":"11:00:00"}]
[null,"11:15:00"]
[null,"11:30:00"]
[null,"11:45:00"]
[null,"12:00:00"]
[null,"12:15:00"]
[null,"12:30:00"]
[null,"12:45:00"]
[null,"13:00:00"]
[null,"13:15:00"]
[null,"13:30:00"]
[null,"13:45:00"]
[null,"14:00:00"]
[null,"14:15:00"]
[null,"14:30:00"]
[null,"14:45:00"]
[null,"15:00:00"]
[null,"15:15:00"]
[null,"15:30:00"]
[null,"15:45:00"]
[null,"16:00:00"]
[null,"16:15:00"]
[null,"16:30:00"]
[null,"16:45:00"]
[null,"17:00:00"]
[null,"17:15:00"]
[null,"17:30:00"]
[null,"17:45:00"]
[null,"18:00:00"]
[null,"18:15:00"]
[null,"18:30:00"]
[null,"18:45:00"]
[null,"19:00:00"]
[null,"19:15:00"]
[null,"19:30:00"]
[null,"19:45:00"]
[null,"20:00:00"]
[null,"20:15:00"]
[null,"20:30:00"]
[null,"20:45:00"]
[null,"21:00:00"]
[null,"21:15:00"]
[null,"21:30:00"]
[null,"21:45:00"]
[null,"22:00:00"]
[null,"22:15:00"]
[null,"22:30:00"]
[null,"22:45:00"]
[null,"23:00:00"]
[null,"23:15:00"]
[null,"23:30:00"]
[null,"23:45:00"]
[null,"00:00:00"]
[null,"00:15:00"]
[null,"00:30:00"]
[null,"00:45:00"]
[null,"01:00:00"]
[null,"01:15:00"]
[null,"01:30:00"]
[null,"01:45:00"]
[null,"02:00:00"]
[null,"02:15:00"]
[null,"02:30:00"]
[null,"02:45:00"]
[null,{"$f":"IF($B$4=$B$5,\"\",B1367)","v":"03:00:00"}]
[null,"03:15:00"]
[null,"03:30:00"]
[null,"03:45:00"]
[null,"04:00:00"]
[null,"04:15:00"]
[null,"04:30:00"]
[null,"04:45:00"]
[null,"05:00:00"]
[null,"05:15:00"]
[null,"05:30:00"]
[null,"05:45:00"]
[null,"06:00:00"]
[null,"06:15:00"]
[null,"06:30:00"]
[null,"06:45:00"]
[null,"07:00:00"]
[null,"07:15:00"]
[null,"07:30:00"]
[null,"07:45:00"]
[null,"08:00:00"]
[null,"08:15:00"]
[null,"08:30:00"]
[null,"08:45:00"]
[null,"09:00:00"]
[null,"09:15:00"]
[null,"09:30:00"]
[null,"09:45:00"]
[null,"10:00:00"]
[null,"10:15:00"]
[null,"10:30:00"]
[null,"10:45:00"]
[null,"11:00:00"]
[null,"11:15:00"]
[null,"11:30:00"]
[null,"11:45:00"]
[null,"12:00:00"]
[null,"12:15:00"]
[null,"12:30:00"]
[null,"12:45:00"]
[null,"13:00:00"]
[null,"13:15:00"]
[null,"13:30:00"]
[null,"13:45:00"]
[null,"14:00:00"]
[null,"14:15:00"]
[null,"14:30:00"]
[null,"14:45:00"]
[null,"15:00:00"]
[null,"15:15:00"]
[null,"15:30:00"]
[null,"15:45:00"]
[null,"16:00:00"]
[null,"16:15:00"]
[null,"16:30:00"]
[null,"16:45:00"]
[null,"17:00:00"]
[null,"17:15:00"]
[null,"17:30:00"]
[null,"17:45:00"]
[null,"18:00:00"]
[null,"18:15:00"]
[null,"18:30:00"]
[null,"18:45:00"]
[null,{"$f":"IF($B$4=$B$5,\"\",B1431)","v":"19:00:00"}]
[null,"19:15:00"]
[null,"19:30:00"]
[null,"19:45:00"]
[null,"20:00:00"]
[null,"20:15:00"]
[null,"20:30:00"]
[null,"20:45:00"]
[null,"21:00:00"]
[null,"21:15:00"]
[null,"21:30:00"]
[null,"21:45:00"]
[null,"22:00:00"]
[null,"22:15:00"]
[null,"22:30:00"]
[null,"22:45:00"]
[null,"23:00:00"]
[null,"23:15:00"]
[null,"23:30:00"]
[null,"23:45:00"]
[null,"00:00:00"]
[null,"00:15:00"]
[null,"00:30:00"]
[null,"00:45:00"]
[null,"01:00:00"]
[null,"01:15:00"]
[null,"01:30:00"]
[null,"01:45:00"]
[null,"02:00:00"]
[null,"02:15:00"]
[null,"02:30:00"]
[null,"02:45:00"]
[null,"03:00:00"]
[null,"03:15:00"]
[null,"03:30:00"]
[null,"03:45:00"]
[null,"04:00:00"]
[null,"04:15:00"]
[null,"04:30:00"]
[null,"04:45:00"]
[null,"05:00:00"]
[null,"05:15:00"]
[null,"05:30:00"]
[null,"05:45:00"]
[null,"06:00:00"]
[null,"06:15:00"]
[null,"06:30:00"]
[null,"06:45:00"]
[null,"07:00:00"]
[null,"07:15:00"]
[null,"07:30:00"]
[null,"07:45:00"]
[null,"08:00:00"]
[null,"08:15:00"]
[null,"08:30:00"]
[null,"08:45:00"]
[null,"09:00:00"]
[null,"09:15:00"]
[null,"09:30:00"]
[null,"09:45:00"]
[null,"10:00:00"]
[null,"10:15:00"]
[null,"10:30:00"]
[null,"10:45:00"]
[null,{"$f":"IF($B$4=$B$5,\"\",B1495)","v":"11:00:00"}]
[null,"11:15:00"]
[null,"11:30:00"]
[null,"11:45:00"]
[null,"12:00:00"]
[null,"12:15:00"]
[null,"12:30:00"]
[null,"12:45:00"]
[null,"13:00:00"]
[null,"13:15:00"]
[null,"13:30:00"]
[null,"13:45:00"]
[null,"14:00:00"]
[null,"14:15:00"]
[null,"14:30:00"]
[null,"14:45:00"]
[null,"15:00:00"]
[null,"15:15:00"]
[null,"15:30:00"]
[null,"15:45:00"]
[null,"16:00:00"]
[null,"16:15:00"]
[null,"16:30:00"]
[null,"16:45:00"]
[null,"17:00:00"]
[null,"17:15:00"]
[null,"17:30:00"]
[null,"17:45:00"]
[null,"18:00:00"]
[null,"18:15:00"]
[null,"18:30:00"]
[null,"18:45:00"]
[null,"19:00:00"]
[null,"19:15:00"]
[null,"19:30:00"]
[null,"19:45:00"]
[null,"20:00:00"]
[null,"20:15:00"]
[null,"20:30:00"]
[null,"20:45:00"]
[null,"21:00:00"]
[null,"21:15:00"]
[null,"21:30:00"]
[null,"21:45:00"]
[null,"22:00:00"]
[null,"22:15:00"]
[null,"22:30:00"]
[null,"22:45:00"]
[null,"23:00:00"]
[null,"23:15:00"]
[null,"23:30:00"]
[null,"23:45:00"]
[null,"00:00:00"]
[null,"00:15:00"]
[null,"00:30:00"]
[null,"00:45:00"]
[null,"01:00:00"]
[null,"01:15:00"]
[null,"01:30:00"]
[null,"01:45:00"]
[null,"02:00:00"]
[null,"02:15:00"]
[null,"02:30:00"]
[null,"02:45:00"]
[null,{"$f":"IF($B$4=$B$5,\"\",B1559)","v":"03:00:00"}]
[null,"03:15:00"]
[null,"03:30:00"]
[null,"03:45:00"]
[null,"04:00:00"]
[null,"04:15:00"]
[null,"04:30:00"]
[null,"04:45:00"]
[null,"05:00:00"]
[null,"05:15:00"]
[null,"05:30:00"]
[null,"05:45:00"]
[null,"06:00:00"]
[null,"06:15:00"]
[null,"06:30:00"]
[null,"06:45:00"]
[null,"07:00:00"]
[null,"07:15:00"]
[null,"07:30:00"]
[null,"07:45:00"]
[null,"08:00:00"]
[null,"08:15:00"]
[null,"08:30:00"]
[null,"08:45:00"]
[null,"09:00:00"]
[null,"09:15:00"]
[null,"09:30:00"]
[null,"09:45:00"]
[null,"10:00:00"]
[null,"10:15:00"]
[null,"10:30:00"]
[null,"10:45:00"]
[null,"11:00:00"]
[null,"11:15:00"]
[null,"11:30:00"]
[null,"11:45:00"]
[null,"12:00:00"]
[null,"12:15:00"]
[null,"12:30:00"]
[null,"12:45:00"]
[null,"13:00:00"]
[null,"13:15:00"]
[null,"13:30:00"]
[null,"13:45:00"]
[null,"14:00:00"]
[null,"14:15:00"]
[null,"14:30:00"]
[null,"14:45:00"]
[null,"15:00:00"]
[null,"15:15:00"]
[null,"15:30:00"]
[null,"15:45:00"]
[null,"16:00:00"]
[null,"16:15:00"]
[null,"16:30:00"]
[null,"16:45:00"]
[null,"17:00:00"]
[null,"17:15:00"]
[null,"17:30:00"]
[null,"17:45:00"]
[null,"18:00:00"]
[null,"18:15:00"]
[null,"18:30:00"]
[null,"18:45:00"]
[null,{"$f":"IF($B$4=$B$5,\"\",B1623)","v":"19:00:00"}]
[null,"19:15:00"]
[null,"19:30:00"]
[null,"19:45:00"]
[null,"20:00:00"]
[null,"20:15:00"]
[null,"20:30:00"]
[null,"20:45:00"]
[null,"21:00:00"]
[null,"21:15:00"]
[null,"21:30:00"]
[null,"21:45:00"]
[null,"22:00:00"]
[null,"22:15:00"]
[null,"22:30:00"]
[null,"22:45:00"]
[null,"23:00:00"]
[null,"23:15:00"]
[null,"23:30:00"]
[null,"23:45:00"]
[null,"00:00:00"]
[null,"00:15:00"]
[null,"00:30:00"]
[null,"00:45:00"]
[null,"01:00:00"]
[null,"01:15:00"]
[null,"01:30:00"]
[null,"01:45:00"]
[null,"02:00:00"]
[null,"02:15:00"]
[null,"02:30:00"]
[null,"02:45:00"]
[null,"03:00:00"]
[null,"03:15:00"]
[null,"03:30:00"]
[null,"03:45:00"]
[null,"04:00:00"]
[null,"04:15:00"]
[null,"04:30:00"]
[null,"04:45:00"]
[null,"05:00:00"]
[null,"05:15:00"]
[null,"05:30:00"]
[null,"05:45:00"]
[null,"06:00:00"]
[null,"06:15:00"]
[null,"06:30:00"]
[null,"06:45:00"]
[null,"07:00:00"]
[null,"07:15:00"]
[null,"07:30:00"]
[null,"07:45:00"]
[null,"08:00:00"]
[null,"08:15:00"]
[null,"08:30:00"]
[null,"08:45:00"]
[null,"09:00:00"]
[null,"09:15:00"]
[null,"09:30:00"]
[null,"09:45:00"]
[null,"10:00:00"]
[null,"10:15:00"]
[null,"10:30:00"]
[null,"10:45:00"]
[null,{"$f":"IF($B$4=$B$5,\"\",B1687)","v":"11:00:00"}]
[null,"11:15:00"]
[null,"11:30:00"]
[null,"11:45:00"]
[null,"12:00:00"]
[null,"12:15:00"]
[null,"12:30:00"]
[null,"12:45:00"]
[null,"13:00:00"]
[null,"13:15:00"]
[null,"13:30:00"]
[null,"13:45:00"]
[null,"14:00:00"]
[null,"14:15:00"]
[null,"14:30:00"]
[null,"14:45:00"]
[null,"15:00:00"]
[null,"15:15:00"]
[null,"15:30:00"]
[null,"15:45:00"]
[null,"16:00:00"]
[null,"16:15:00"]
[null,"16:30:00"]
[null,"16:45:00"]
[null,"17:00:00"]
[null,"17:15:00"]
[null,"17:30:00"]
[null,"17:45:00"]
[null,"18:00:00"]
[null,"18:15:00"]
[null,"18:30:00"]
[null,"18:45:00"]
[null,"19:00:00"]
[null,"19:15:00"]
[null,"19:30:00"]
[null,"19:45:00"]
[null,"20:00:00"]
[null,"20:15:00"]
[null,"20:30:00"]
[null,"20:45:00"]
[null,"21:00:00"]
[null,"21:15:00"]
[null,"21:30:00"]
[null,"21:45:00"]
[null,"22:00:00"]
[null,"22:15:00"]
[null,"22:30:00"]
[null,"22:45:00"]
[null,"23:00:00"]
[null,"23:15:00"]
[null,"23:30:00"]
[null,"23:45:00"]
[null,"00:00:00"]
[null,"00:15:00"]
[null,"00:30:00"]
[null,"00:45:00"]
[null,"01:00:00"]
[null,"01:15:00"]
[null,"01:30:00"]
[null,"01:45:00"]
[null,"02:00:00"]
[null,"02:15:00"]
[null,"02:30:00"]
[null,"02:45:00"]
[null,{"$f":"IF($B$4=$B$5,\"\",B1751)","v":"03:00:00"}]
[null,"03:15:00"]
[null,"03:30:00"]
[null,"03:45:00"]
[null,"04:00:00"]
[null,"04:15:00"]
[null,"04:30:00"]
[null,"04:45:00"]
[null,"05:00:00"]
[null,"05:15:00"]
[null,"05:30:00"]
[null,"05:45:00"]
[null,"06:00:00"]
[null,"06:15:00"]
[null,"06:30:00"]
[null,"06:45:00"]
[null,"07:00:00"]
[null,"07:15:00"]
[null,"07:30:00"]
[null,"07:45:00"]
[null,"08:00:00"]
[null,"08:15:00"]
[null,"08:30:00"]
[null,"08:45:00"]
[null,"09:00:00"]
[null,"09:15:00"]
[null,"09:30:00"]
[null,"09:45:00"]
[null,"10:00:00"]
[null,"10:15:00"]
[null,"10:30:00"]
[null,"10:45:00"]
[null,"11:00:00"]
[null,"11:15:00"]
[null,"11:30:00"]
[null,"11:45:00"]
[null,"12:00:00"]
[null,"12:15:00"]
[null,"12:30:00"]
[null,"12:45:00"]
[null,"13:00:00"]
[null,"13:15:00"]
[null,"13:30:00"]
[null,"13:45:00"]
[null,"14:00:00"]
[null,"14:15:00"]
[null,"14:30:00"]
[null,"14:45:00"]
[null,"15:00:00"]
[null,"15:15:00"]
[null,"15:30:00"]
[null,"15:45:00"]
[null,"16:00:00"]
[null,"16:15:00"]
[null,"16:30:00"]
[null,"16:45:00"]
[null,"17:00:00"]
[null,"17:15:00"]
[null,"17:30:00"]
[null,"17:45:00"]
[null,"18:00:00"]
[null,"18:15:00"]
[null,"18:30:00"]
[null,"18:45:00"]
[null,{"$f":"IF($B$4=$B$5,\"\",B1815)","v":"19:00:00"}]
[null,"19:15:00"]
[null,"19:30:00"]
[null,"19:45:00"]
[null,"20:00:00"]
[null,"20:15:00"]
[null,"20:30:00"]
[null,"20:45:00"]
[null,"21:00:00"]
[null,"21:15:00"]
[null,"21:30:00"]
[null,"21:45:00"]
[null,"22:00:00"]
[null,"22:15:00"]
[null,"22:30:00"]
[null,"22:45:00"]
[null,"23:00:00"]
[null,"23:15:00"]
[null,"23:30:00"]
[null,"23:45:00"]
[null,"00:00:00"]
[null,"00:15:00"]
[null,"00:30:00"]
[null,"00:45:00"]
[null,"01:00:00"]
[null,"01:15:00"]
[null,"01:30:00"]
[null,"01:45:00"]
[null,"02:00:00"]
[null,"02:15:00"]
[null,"02:30:00"]
[null,"02:45:00"]
[null,"03:00:00"]
[null,"03:15:00"]
[null,"03:30:00"]
[null,"03:45:00"]
[null,"04:00:00"]
[null,"04:15:00"]
[null,"04:30:00"]
[null,"04:45:00"]
[null,"05:00:00"]
[null,"05:15:00"]
[null,"05:30:00"]
[null,"05:45:00"]
[null,"06:00:00"]
[null,"06:15:00"]
[null,"06:30:00"]
[null,"06:45:00"]
[null,"07:00:00"]
[null,"07:15:00"]
[null,"07:30:00"]
[null,"07:45:00"]
[null,"08:00:00"]
[null,"08:15:00"]
[null,"08:30:00"]
[null,"08:45:00"]
[null,"09:00:00"]
[null,"09:15:00"]
[null,"09:30:00"]
[null,"09:45:00"]
[null,"10:00:00"]
[null,"10:15:00"]
[null,"10:30:00"]
[null,"10:45:00"]
[null,{"$f":"IF($B$4=$B$5,\"\",B1879)","v":"11:00:00"}]
[null,"11:15:00"]
[null,"11:30:00"]
[null,"11:45:00"]
[null,"12:00:00"]
[null,"12:15:00"]
[null,"12:30:00"]
[null,"12:45:00"]
[null,"13:00:00"]
[null,"13:15:00"]
[null,"13:30:00"]
[null,"13:45:00"]
[null,"14:00:00"]
[null,"14:15:00"]
[null,"14:30:00"]
[null,"14:45:00"]
[null,"15:00:00"]
[null,"15:15:00"]
[null,"15:30:00"]
[null,"15:45:00"]
[null,"16:00:00"]
[null,"16:15:00"]
[null,"16:30:00"]
[null,"16:45:00"]
[null,"17:00:00"]
[null,"17:15:00"]
[null,"00:30:00"]
[null,"09:15:00"]
[null,"16:30:00"]
[null,"12:00:00"]
[null,"19:15:00"]
[null,"13:15:00"]
[null,"22:00:00"]
[null,"05:15:00"]
[null,"14:00:00"]
[null,"08:00:00"]
[null,"15:15:00"]
[null,"00:00:00"]
[null,"18:00:00"]
[null,"12:00:00"]
[null,"20:45:00"]
[null,"04:00:00"]
[null,"12:45:00"]
[null,"06:45:00"]
[null,"14:00:00"]
[null,"22:45:00"]
[null,"16:45:00"]
[null,"01:30:00"]
[null,"19:30:00"]
[null,"02:45:00"]
[null,"11:30:00"]
[null,"05:30:00"]
[null,"17:45:00"]
[null,"21:45:00"]
[null,"15:45:00"]
[null,"00:30:00"]
[null,"07:45:00"]
[null,"01:45:00"]
[null,"10:30:00"]
[null,"04:30:00"]
[null,"11:45:00"]
[null,"20:30:00"]
[null,"14:30:00"]
[null,"23:15:00"]
[null,"06:30:00"]
[null,"00:30:00"]
[null,"09:15:00"]
[null,"03:15:00"]
[null,"12:00:00"]
[null,"19:15:00"]
[null,"13:15:00"]
[null,"22:00:00"]
[null,"05:15:00"]
[null,"23:15:00"]
[null,"08:00:00"]
[null,"02:00:00"]
[null,"10:45:00"]
[null,"18:00:00"]
[null,"17:00:00"]
[null,"21:00:00"]
[null,"04:15:00"]
[null,"13:00:00"]
[null,"07:00:00"]
[null,"14:15:00"]
[null,"23:00:00"]
[null,"17:00:00"]
[null,{"$f":"IF($B$4=$B$5,\"\",B33751)","v":"11:00:00"}]
[null,"19:45:00"]
[null,"03:00:00"]
[null,"11:45:00"]
[null,"05:45:00"]
[null,"13:00:00"]
[null,"21:45:00"]
[null,"15:45:00"]
[null,"09:45:00"]
[null,"18:30:00"]
[null,"01:45:00"]
[null,"10:30:00"]
[null,"04:30:00"]
[null,"11:45:00"]
[null,"20:30:00"]
[null,"14:30:00"]
[null,"23:15:00"]
[null,"06:30:00"]
[null,"16:15:00"]
[null,"09:30:00"]
[null,"03:30:00"]
[null,"10:45:00"]
[null,"19:30:00"]
[null,"13:30:00"]
[null,"22:15:00"]
[null,"05:30:00"]
[null,"23:30:00"]
[null,"08:15:00"]
[null,"02:15:00"]
[null,"09:30:00"]
[null,"18:15:00"]
[null,"12:15:00"]
[null,"21:00:00"]
[null,"04:15:00"]
[null,"22:15:00"]
[null,"07:00:00"]
[null,"01:00:00"]
[null,"09:45:00"]
[null,"17:00:00"]
[null,{"$f":"IF($B$4=$B$5,\"\",B54103)","v":"11:00:00"}]
[null,"19:45:00"]
[null,"03:00:00"]
[null,"21:00:00"]
[null,"05:45:00"]
[null,"13:00:00"]
[null,"15:30:00"]
[null,"16:00:00"]
[null,"10:00:00"]
[null,"18:45:00"]
[null,"02:00:00"]
[null,"10:45:00"]
[null,"04:45:00"]
[null,"12:00:00"]
[null,"20:45:00"]
[null,"14:45:00"]
[null,"08:45:00"]
[null,"17:30:00"]
[null,"00:45:00"]
[null,"09:30:00"]
[null,"03:30:00"]
[null,"10:45:00"]
[null,"19:30:00"]
[null,"13:30:00"]
[null,"20:45:00"]
[null,"16:15:00"]
[null,"23:30:00"]
[null,"08:15:00"]
[null,"02:15:00"]
[null,"09:30:00"]
[null,"18:15:00"]
[null,"12:15:00"]
[null,"14:45:00"]
[null,"04:30:00"]
[null,"22:30:00"]
[null,"07:15:00"]
[null,"01:15:00"]
[null,"08:30:00"]
[null,"17:15:00"]
[null,"11:15:00"]
[null,"20:00:00"]
[null,"03:15:00"]
[null,"21:15:00"]
[null,"06:00:00"]
[null,"00:00:00"]
[null,"08:45:00"]
[null,"16:00:00"]
[null,"10:00:00"]
[null,"18:45:00"]
[null,"02:00:00"]
[null,"20:00:00"]
[null,"04:45:00"]
[null,"12:00:00"]
[null,"20:45:00"]
[null,"14:45:00"]
[null,"08:45:00"]
[null,"17:30:00"]
[null,"00:45:00"]
[null,"00:00:00"]
[null,"03:45:00"]
[null,"11:00:00"]
[null,"19:45:00"]
[null,"13:45:00"]
[null,"07:45:00"]
[null,"16:30:00"]
[null,"23:45:00"]
[null,"08:30:00"]
[null,"02:30:00"]
[null,"09:45:00"]
[null,"18:30:00"]
[null,"12:30:00"]
[null,"06:30:00"]
[null,"15:15:00"]
[null,"22:30:00"]
[null,"07:15:00"]
[null,"01:15:00"]
[null,"08:30:00"]
[null,"17:15:00"]
[null,"11:15:00"]
[null,"18:30:00"]
[null,"03:15:00"]
[null,"21:15:00"]
[null,"06:00:00"]
[null,"00:00:00"]
[null,"07:15:00"]
[null,"23:15:00"]
[null,"10:15:00"]
[null,{"$f":"IF($B$4=$B$5,\"\",B99543)","v":"19:00:00"}]
[null,"02:15:00"]
[null,"20:15:00"]
[null,"05:00:00"]
[null,"23:00:00"]
[null,"06:15:00"]
[null,"15:00:00"]
[null,"09:00:00"]
[null,"17:45:00"]
[null,"01:00:00"]
[null,{"$f":"IF($B$4=$B$5,\"\",B104727)","v":"19:00:00"}]
[null,"03:45:00"]
[null,"21:45:00"]
[null,"06:30:00"]
[null,"13:45:00"]
[null,"07:45:00"]
[null,"16:30:00"]
[null,"23:45:00"]
[null,"17:45:00"]
[null,"02:30:00"]
[null,"09:45:00"]
[null,"18:30:00"]
[null,"12:30:00"]
[null,"06:30:00"]
[null,"22:30:00"]
[null,"22:45:00"]
[null,"16:45:00"]
[null,"01:30:00"]
[null,"08:45:00"]
[null,"17:30:00"]
[null,"11:30:00"]
[null,"05:30:00"]
[null,"14:15:00"]
[null,"21:30:00"]
[null,"06:15:00"]
[null,"00:15:00"]
[null,"07:30:00"]
[null,"16:15:00"]
[null,"10:15:00"]
[null,"17:30:00"]
[null,"02:15:00"]
[null,"20:15:00"]
[null,"05:00:00"]
[null,"23:00:00"]
[null,"06:15:00"]
[null,"15:00:00"]
[null,"09:00:00"]
[null,"16:15:00"]
[null,"01:00:00"]
[null,{"$f":"IF($B$4=$B$5,\"\",B125079)","v":"19:00:00"}]
[null,"21:45:00"]
[null,"22:00:00"]
[null,"05:15:00"]
[null,"14:00:00"]
[null,"08:00:00"]
[null,"16:45:00"]
[null,"00:00:00"]
[null,"18:00:00"]
[null,"02:45:00"]
[null,"20:45:00"]
[null,"04:00:00"]
[null,"12:45:00"]
[null,"06:45:00"]
[null,"15:30:00"]
[null,"22:45:00"]
[null,"16:45:00"]
[null,"01:30:00"]
[null,"08:45:00"]
[null,"17:30:00"]
[null,"11:30:00"]
[null,"05:30:00"]
[null,"14:15:00"]
[null,"21:30:00"]
[null,"15:30:00"]
[null,"00:15:00"]
[null,"07:30:00"]
[null,"16:15:00"]
[null,"07:00:00"]
[null,"04:30:00"]
[null,"13:15:00"]
[null,"20:30:00"]
[null,"14:30:00"]
[null,"23:15:00"]
[null,"06:30:00"]
[null,"15:15:00"]
[null,"09:15:00"]
[null,"16:30:00"]
[null,"12:00:00"]
[null,"19:15:00"]
[null,"04:00:00"]
[null,"22:00:00"]
[null,"05:15:00"]
[null,"14:00:00"]
[null,"08:00:00"]
[null,"15:15:00"]
[null,"00:00:00"]
[null,"18:00:00"]
[null,"02:45:00"]
[null,"20:45:00"]
[null,"04:00:00"]
[null,"12:45:00"]
[null,"06:45:00"]
[null,"15:30:00"]
[null,"06:15:00"]
[null,"17:00:00"]
[null,"01:45:00"]
[null,"19:45:00"]
[null,{"$f":"IF($B$4=$B$5,\"\",B155351)","v":"03:00:00"}]
[null,"11:45:00"]
[null,"05:45:00"]
[null,"14:30:00"]
[null,"21:45:00"]
[null,"15:45:00"]
[null,"00:30:00"]
[null,"07:45:00"]
[null,"01:45:00"]
[null,"10:30:00"]
[null,"04:30:00"]
[null,"13:15:00"]
[null,"20:30:00"]
[null,"14:30:00"]
[null,"23:15:00"]
[null,"06:30:00"]
[null,"15:15:00"]
[null,"09:15:00"]
[null,"03:15:00"]
[null,"12:00:00"]
[null,"19:15:00"]
[null,"13:15:00"]
[null,"05:30:00"]
[null,"05:30:00"]
[null,"14:15:00"]
[null,"08:15:00"]
[null,"02:15:00"]
[null,"11:00:00"]
[null,"18:15:00"]
[null,"12:15:00"]
[null,"21:00:00"]
[null,"04:15:00"]
[null,"13:00:00"]
[null,"07:00:00"]
[null,"14:15:00"]
[null,"23:00:00"]
[null,"17:00:00"]
[null,"01:45:00"]
[null,"19:45:00"]
[null,{"$f":"IF($B$4=$B$5,\"\",B175703)","v":"03:00:00"}]
[null,"11:45:00"]
[null,"05:45:00"]
[null,"13:00:00"]
[null,"21:45:00"]
[null,"15:45:00"]
[null,"00:30:00"]
[null,"18:30:00"]
[null,"01:45:00"]
[null,"10:30:00"]
[null,"14:45:00"]
[null,"13:30:00"]
[null,"20:45:00"]
[null,"14:45:00"]
[null,"23:30:00"]
[null,"17:30:00"]
[null,"00:45:00"]
[null,"09:30:00"]
[null,"03:30:00"]
[null,"12:15:00"]
[null,"19:30:00"]
[null,"13:30:00"]
[null,"22:15:00"]
[null,"05:30:00"]
[null,"23:30:00"]
[null,"08:15:00"]
[null,"02:15:00"]
[null,"11:00:00"]
[null,"18:15:00"]
[null,"12:15:00"]
[null,"21:00:00"]
[null,"04:15:00"]
[null,"13:00:00"]
[null,"07:00:00"]
[null,"01:00:00"]
[null,"09:45:00"]
[null,"14:00:00"]
[null,"11:15:00"]
[null,"20:00:00"]
[null,"03:15:00"]
[null,"12:00:00"]
[null,"06:00:00"]
[null,"13:15:00"]
[null,"22:00:00"]
[null,"16:00:00"]
[null,"00:45:00"]
[null,"18:45:00"]
[null,"02:00:00"]
[null,"10:45:00"]
[null,"04:45:00"]
[null,"12:00:00"]
[null,"20:45:00"]
[null,"14:45:00"]
[null,"23:30:00"]
[null,"17:30:00"]
[null,"00:45:00"]
[null,"09:30:00"]
[null,"03:30:00"]
[null,"10:45:00"]
[null,"19:30:00"]
[null,"13:30:00"]
[null,"22:15:00"]
[null,"13:15:00"]
[null,"23:45:00"]
[null,"08:30:00"]
[null,"02:30:00"]
[null,"11:15:00"]
[null,"18:30:00"]
[null,"12:30:00"]
[null,"21:15:00"]
[null,"04:30:00"]
[null,"22:30:00"]
[null,"07:15:00"]
[null,"01:15:00"]
[null,"10:00:00"]
[null,"17:15:00"]
[null,"11:15:00"]
[null,"20:00:00"]
[null,"03:15:00"]
[null,"21:15:00"]
[null,"06:00:00"]
[null,"00:00:00"]
[null,"08:45:00"]
[null,"16:00:00"]
[null,"10:00:00"]
[null,"18:45:00"]
[null,"02:00:00"]
[null,"10:45:00"]
[null,"04:45:00"]
[null,"22:30:00"]
[null,"07:45:00"]
[null,"15:00:00"]
[null,"09:00:00"]
[null,"17:45:00"]
[null,"01:00:00"]
[null,"09:45:00"]
[null,"03:45:00"]
[null,{"$f":"IF($B$4=$B$5,\"\",B226327)","v":"11:00:00"}]
[null,"19:45:00"]
[null,"13:45:00"]
[null,"22:30:00"]
[null,"16:30:00"]
[null,"23:45:00"]
[null,"08:30:00"]
[null,"02:30:00"]
[null,"09:45:00"]
[null,"18:30:00"]
[null,"12:30:00"]
[null,"21:15:00"]
[null,"15:15:00"]
[null,"22:30:00"]
[null,"07:15:00"]
[null,"01:15:00"]
[null,"08:30:00"]
[null,"17:15:00"]
[null,"21:45:00"]
[null,"20:15:00"]
[null,"03:30:00"]
[null,"21:30:00"]
[null,"06:15:00"]
[null,"00:15:00"]
[null,"09:00:00"]
[null,"16:15:00"]
[null,"10:15:00"]
[null,"19:00:00"]
[null,"02:15:00"]
[null,"20:15:00"]
[null,"05:00:00"]
[null,"23:00:00"]
[null,"07:45:00"]
[null,"15:00:00"]
[null,"09:00:00"]
[null,"17:45:00"]
[null,"01:00:00"]
[null,"19:00:00"]
[null,"03:45:00"]
[null,"21:45:00"]
[null,"06:30:00"]
[null,"13:45:00"]
[null,"07:45:00"]
[null,"16:30:00"]
[null,"21:00:00"]
[null,"08:45:00"]
[null,"02:45:00"]
[null,"10:00:00"]
[null,"18:45:00"]
[null,"12:45:00"]
[null,"06:45:00"]
[null,"15:30:00"]
[null,"22:45:00"]
[null,"07:30:00"]
[null,"01:30:00"]
[null,"08:45:00"]
[null,"17:30:00"]
[null,"11:30:00"]
[null,"20:15:00"]
[null,"14:15:00"]
[null,"21:30:00"]
[null,"06:15:00"]
[null,"00:15:00"]
[null,"07:30:00"]
[null,"16:15:00"]
[null,"10:15:00"]
[null,"19:00:00"]
[null,"02:15:00"]
[null,"20:15:00"]
[null,"05:00:00"]
[null,"20:15:00"]
[null,"06:30:00"]
[null,"15:15:00"]
[null,"09:15:00"]
[null,"18:00:00"]
[null,"01:15:00"]
[null,"19:15:00"]
[null,"04:00:00"]
[null,"22:00:00"]
[null,"06:45:00"]
[null,"14:00:00"]
[null,"08:00:00"]
[null,"16:45:00"]
[null,"00:00:00"]
[null,"18:00:00"]
[null,"02:45:00"]
[null,"20:45:00"]
[null,"05:30:00"]
[null,"12:45:00"]
[null,"06:45:00"]
[null,"15:30:00"]
[null,"22:45:00"]
[null,"07:30:00"]
[null,"01:30:00"]
[null,"08:45:00"]
[null,"17:30:00"]
[null,"11:30:00"]
[null,"16:30:00"]
[null,"14:30:00"]
[null,"21:45:00"]
[null,"06:30:00"]
[null,"00:30:00"]
[null,"07:45:00"]
[null,"16:30:00"]
[null,"10:30:00"]
[null,"04:30:00"]
[null,"13:15:00"]
[null,"20:30:00"]
[null,"05:15:00"]
[null,"23:15:00"]
[null,"06:30:00"]
[null,"15:15:00"]
[null,"09:15:00"]
[null,"18:00:00"]
[null,"12:00:00"]
[null,"19:15:00"]
[null,"04:00:00"]
[null,"22:00:00"]
[null,"05:15:00"]
[null,"14:00:00"]
[null,"08:00:00"]
[null,"16:45:00"]
[null,"00:00:00"]
[null,"04:45:00"]
[null,"03:00:00"]
[null,"21:00:00"]
[null,"04:15:00"]
[null,"13:00:00"]
[null,"07:00:00"]
[null,"15:45:00"]
[null,"23:00:00"]
[null,"17:00:00"]
[null,"01:45:00"]
[null,"19:45:00"]
[null,"04:30:00"]
[null,"11:45:00"]
[null,"05:45:00"]
[null,"14:30:00"]
[null,"21:45:00"]
[null,"15:45:00"]
[null,"00:30:00"]
[null,"07:45:00"]
[null,"03:15:00"]
[null,"10:30:00"]
[null,"04:30:00"]
[null,"13:15:00"]
[null,"20:30:00"]
[null,"05:15:00"]
[null,"23:15:00"]
[null,"04:00:00"]
[null,"15:30:00"]
[null,"09:30:00"]
[null,"03:30:00"]
[null,"12:15:00"]
[null,"19:30:00"]
[null,"04:15:00"]
[null,"22:15:00"]
[null,"05:30:00"]
[null,"14:15:00"]
[null,"08:15:00"]
[null,"02:15:00"]
[null,{"$f":"IF($B$4=$B$5,\"\",B310999)","v":"11:00:00"}]
[null,"18:15:00"]
[null,"03:00:00"]
[null,"21:00:00"]
[null,"04:15:00"]
[null,"13:00:00"]
[null,"07:00:00"]
[null,"15:45:00"]
[null,"23:00:00"]
[null,"17:00:00"]
[null,"01:45:00"]
[null,"19:45:00"]
[null,"03:00:00"]
[null,"11:45:00"]
[null,"05:45:00"]
[null,"03:15:00"]
[null,"22:00:00"]
[null,"16:00:00"]
[null,"00:45:00"]
[null,"18:45:00"]
[null,"02:00:00"]
[null,"10:45:00"]
[null,"04:45:00"]
[null,"13:30:00"]
[null,"20:45:00"]
[null,"14:45:00"]
[null,"23:30:00"]
[null,"17:30:00"]
[null,"02:15:00"]
[null,"09:30:00"]
[null,"03:30:00"]
[null,"12:15:00"]
[null,"19:30:00"]
[null,"13:30:00"]
[null,"22:15:00"]
[null,"05:30:00"]
[null,"14:15:00"]
[null,"08:15:00"]
[null,"02:15:00"]
[null,{"$f":"IF($B$4=$B$5,\"\",B331351)","v":"11:00:00"}]
[null,"18:15:00"]
[null,"02:30:00"]
[null,"21:15:00"]
[null,"04:30:00"]
[null,"13:15:00"]
[null,"07:15:00"]
[null,"01:15:00"]
[null,"10:00:00"]
[null,"17:15:00"]
[null,"02:00:00"]
[null,"20:00:00"]
[null,"03:15:00"]
[null,"12:00:00"]
[null,"06:00:00"]
[null,"13:15:00"]
[null,"22:00:00"]
[null,"16:00:00"]
[null,"00:45:00"]
[null,"18:45:00"]
[null,"02:00:00"]
[null,"10:45:00"]
[null,"04:45:00"]
[null,"13:30:00"]
[null,"20:45:00"]
[null,"14:45:00"]
[null,"23:30:00"]
[null,"17:30:00"]
[null,"22:45:00"]
[null,"09:45:00"]
[null,"03:45:00"]
[null,"12:30:00"]
[null,"19:45:00"]
[null,"13:45:00"]
[null,"22:30:00"]
[null,"16:30:00"]
[null,"01:15:00"]
[null,"08:30:00"]
[null,"02:30:00"]
[null,"11:15:00"]
[null,"18:30:00"]
[null,"12:30:00"]
[null,"21:15:00"]
[null,"04:30:00"]
[null,"13:15:00"]
[null,"07:15:00"]
[null,"01:15:00"]
[null,"10:00:00"]
[null,"17:15:00"]
[null,"11:15:00"]
[null,"20:00:00"]
[null,"03:15:00"]
[null,"12:00:00"]
[null,"06:00:00"]
[null,"00:00:00"]
[null,"11:00:00"]
[null,"16:15:00"]
[null,"01:00:00"]
[null,{"$f":"IF($B$4=$B$5,\"\",B361623)","v":"19:00:00"}]
[null,"02:15:00"]
[null,"11:00:00"]
[null,"05:00:00"]
[null,"12:15:00"]
[null,"07:45:00"]
[null,"15:00:00"]
[null,"23:45:00"]
[null,"17:45:00"]
[null,"01:00:00"]
[null,"09:45:00"]
[null,"03:45:00"]
[null,"11:00:00"]
[null,"19:45:00"]
[null,"13:45:00"]
[null,"22:30:00"]
[null,"16:30:00"]
[null,"23:45:00"]
[null,"08:30:00"]
[null,"02:30:00"]
[null,"11:15:00"]
[null,"18:30:00"]
[null,"12:30:00"]
[null,"10:15:00"]
[null,"15:30:00"]
[null,"22:45:00"]
[null,"07:30:00"]
[null,"01:30:00"]
[null,"10:15:00"]
[null,"17:30:00"]
[null,"11:30:00"]
[null,"20:15:00"]
[null,"03:30:00"]
[null,"12:15:00"]
[null,"06:15:00"]
[null,"00:15:00"]
[null,"09:00:00"]
[null,"16:15:00"]
[null,"10:15:00"]
[null,{"$f":"IF($B$4=$B$5,\"\",B381975)","v":"19:00:00"}]
[null,"02:15:00"]
[null,"11:00:00"]
[null,"05:00:00"]
[null,"23:00:00"]
[null,"07:45:00"]
[null,"15:00:00"]
[null,"09:00:00"]
[null,"17:45:00"]
[null,"01:00:00"]
[null,"09:30:00"]
[null,"04:00:00"]
[null,"22:00:00"]
[null,"06:45:00"]
[null,"14:00:00"]
[null,"22:45:00"]
[null,"16:45:00"]
[null,"00:00:00"]
[null,"08:45:00"]
[null,"02:45:00"]
[null,"10:00:00"]
[null,"18:45:00"]
[null,"12:45:00"]
[null,"21:30:00"]
[null,"15:30:00"]
[null,"22:45:00"]
[null,"07:30:00"]
[null,"01:30:00"]
[null,"10:15:00"]
[null,"17:30:00"]
[null,"11:30:00"]
[null,"20:15:00"]
[null,"14:15:00"]
[null,"21:30:00"]
[null,"06:15:00"]
[null,"00:15:00"]
[null,"09:00:00"]
[null,"05:45:00"]
[null,"10:30:00"]
[null,"19:15:00"]
[null,"13:15:00"]
[null,"20:30:00"]
[null,"05:15:00"]
[null,"23:15:00"]
[null,"08:00:00"]
[null,"15:15:00"]
[null,"09:15:00"]
[null,"18:00:00"]
[null,"01:15:00"]
[null,"10:00:00"]
[null,"04:00:00"]
[null,"22:00:00"]
[null,"06:45:00"]
[null,"14:00:00"]
[null,"08:00:00"]
[null,"16:45:00"]
[null,"00:00:00"]
[null,"08:45:00"]
[null,"02:45:00"]
[null,"20:45:00"]
[null,"05:30:00"]
[null,"12:45:00"]
[null,"06:45:00"]
[null,"05:00:00"]
[null,"23:00:00"]
[null,"07:45:00"]
[null,"01:45:00"]
[null,"09:00:00"]
[null,"17:45:00"]
[null,"11:45:00"]
[null,"20:30:00"]
[null,"14:30:00"]
[null,"21:45:00"]
[null,"06:30:00"]
[null,"00:30:00"]
[null,"07:45:00"]
[null,"16:30:00"]
[null,"10:30:00"]
[null,"19:15:00"]
[null,"13:15:00"]
[null,"20:30:00"]
[null,"05:15:00"]
[null,"23:15:00"]
[null,"08:00:00"]
[null,"15:15:00"]
[null,"09:15:00"]
[null,"18:00:00"]
[null,"12:00:00"]
[null,"19:15:00"]
[null,"04:15:00"]
[null,"22:15:00"]
[null,"07:00:00"]
[null,"14:15:00"]
[null,"08:15:00"]
[null,"17:00:00"]
[null,"00:15:00"]
[null,"18:15:00"]
[null,{"$f":"IF($B$4=$B$5,\"\",B432599)","v":"03:00:00"}]
[null,"21:00:00"]
[null,"05:45:00"]
[null,"13:00:00"]
[null,"07:00:00"]
[null,"15:45:00"]
[null,"23:00:00"]
[null,"07:45:00"]
[null,"01:45:00"]
[null,"19:45:00"]
[null,"04:30:00"]
[null,"11:45:00"]
[null,"05:45:00"]
[null,"14:30:00"]
[null,"21:45:00"]
[null,"06:30:00"]
[null,"00:30:00"]
[null,"07:45:00"]
[null,"03:15:00"]
[null,"13:30:00"]
[null,"04:45:00"]
[null,"13:30:00"]
[null,"20:45:00"]
[null,"05:30:00"]
[null,"23:30:00"]
[null,"06:45:00"]
[null,"15:30:00"]
[null,"09:30:00"]
[null,"18:15:00"]
[null,"12:15:00"]
[null,"19:30:00"]
[null,"04:15:00"]
[null,"22:15:00"]
[null,"05:30:00"]
[null,"14:15:00"]
[null,"08:15:00"]
[null,"17:00:00"]
[null,"11:00:00"]
[null,"18:15:00"]
[null,{"$f":"IF($B$4=$B$5,\"\",B452951)","v":"03:00:00"}]
[null,"21:00:00"]
[null,"05:45:00"]
[null,"13:00:00"]
[null,"07:00:00"]
[null,"15:45:00"]
[null,"12:45:00"]
[null,"17:15:00"]
[null,"02:00:00"]
[null,"20:00:00"]
[null,"04:45:00"]
[null,"12:00:00"]
[null,"06:00:00"]
[null,"14:45:00"]
[null,"22:00:00"]
[null,"16:00:00"]
[null,"00:45:00"]
[null,"18:45:00"]
[null,"03:30:00"]
[null,"10:45:00"]
[null,"04:45:00"]
[null,"13:30:00"]
[null,"20:45:00"]
[null,"05:30:00"]
[null,"23:30:00"]
[null,"17:30:00"]
[null,"02:15:00"]
[null,"09:30:00"]
[null,"03:30:00"]
[null,"12:15:00"]
[null,"19:30:00"]
[null,"04:15:00"]
[null,"12:00:00"]
[null,"05:45:00"]
[null,"14:30:00"]
[null,"08:30:00"]
[null,"17:15:00"]
[null,"11:15:00"]
[null,"18:30:00"]
[null,"03:15:00"]
[null,"21:15:00"]
[null,"04:30:00"]
[null,"13:15:00"]
[null,"07:15:00"]
[null,"16:00:00"]
[null,"10:00:00"]
[null,"17:15:00"]
[null,"02:00:00"]
[null,"20:00:00"]
[null,"03:15:00"]
[null,"12:00:00"]
[null,"06:00:00"]
[null,"14:45:00"]
[null,"08:45:00"]
[null,"16:00:00"]
[null,"00:45:00"]
[null,"18:45:00"]
[null,"03:30:00"]
[null,"10:45:00"]
[null,"21:15:00"]
[null,"13:45:00"]
[null,"21:00:00"]
[null,"15:00:00"]
[null,"23:45:00"]
[null,"17:45:00"]
[null,"02:30:00"]
[null,"09:45:00"]
[null,"03:45:00"]
[null,"12:30:00"]
[null,"19:45:00"]
[null,"13:45:00"]
[null,"22:30:00"]
[null,"16:30:00"]
[null,"01:15:00"]
[null,"08:30:00"]
[null,"02:30:00"]
[null,"11:15:00"]
[null,"18:30:00"]
[null,"03:15:00"]
[null,"21:15:00"]
[null,"04:30:00"]
[null,"13:15:00"]
[null,"07:15:00"]
[null,"01:15:00"]
[null,"10:00:00"]
[null,"20:30:00"]
[null,"02:15:00"]
[null,"20:15:00"]
[null,"03:30:00"]
[null,"12:15:00"]
[null,"06:15:00"]
[null,"15:00:00"]
[null,"09:00:00"]
[null,"16:15:00"]
[null,"01:00:00"]
[null,"19:00:00"]
[null,"02:15:00"]
[null,{"$f":"IF($B$4=$B$5,\"\",B503575)","v":"11:00:00"}]
[null,"05:00:00"]
[null,"13:45:00"]
[null,"07:45:00"]
[null,"15:00:00"]
[null,"23:45:00"]
[null,"17:45:00"]
[null,"01:00:00"]
[null,"09:45:00"]
[null,"03:45:00"]
[null,"12:30:00"]
[null,"19:45:00"]
[null,"13:45:00"]
[null,"22:30:00"]
[null,"19:45:00"]
[null,"01:30:00"]
[null,"08:45:00"]
[null,"02:45:00"]
[null,"11:30:00"]
[null,"18:45:00"]
[null,"12:45:00"]
[null,"21:30:00"]
[null,"15:30:00"]
[null,"00:15:00"]
[null,"07:30:00"]
[null,"01:30:00"]
[null,"10:15:00"]
[null,"17:30:00"]
[null,"02:15:00"]
[null,"20:15:00"]
[null,"03:30:00"]
[null,"23:00:00"]
[null,"06:15:00"]
[null,"00:15:00"]
[null,"09:00:00"]
[null,"16:15:00"]
[null,"01:00:00"]
[null,"19:00:00"]
[null,"02:15:00"]
[null,{"$f":"IF($B$4=$B$5,\"\",B523927)","v":"11:00:00"}]
[null,"19:00:00"]
[null,"23:15:00"]
[null,"08:00:00"]
[null,"15:15:00"]
[null,"00:00:00"]
[null,"18:00:00"]
[null,"01:15:00"]
[null,"10:00:00"]
[null,"04:00:00"]
[null,"12:45:00"]
[null,"06:45:00"]
[null,"14:00:00"]
[null,"22:45:00"]
[null,"16:45:00"]
[null,"00:00:00"]
[null,"08:45:00"]
[null,"02:45:00"]
[null,"11:30:00"]
[null,"18:45:00"]
[null,"12:45:00"]
[null,"21:30:00"]
[null,"15:30:00"]
[null,"22:45:00"]
[null,"07:30:00"]
[null,"01:30:00"]
[null,"10:15:00"]
[null,"17:30:00"]
[null,"04:15:00"]
[null,"20:30:00"]
[null,"14:30:00"]
[null,"23:15:00"]
[null,"06:30:00"]
[null,"00:30:00"]
[null,"09:15:00"]
[null,"16:30:00"]
[null,"10:30:00"]
[null,"19:15:00"]
[null,"13:15:00"]
[null,"22:00:00"]
[null,"05:15:00"]
[null,"23:15:00"]
[null,"08:00:00"]
[null,"15:15:00"]
[null,"00:00:00"]
[null,"18:00:00"]
[null,"01:15:00"]
[null,"10:00:00"]
[null,"04:00:00"]
[null,"22:00:00"]
[null,"06:45:00"]
[null,"14:00:00"]
[null,"22:45:00"]
[null,"16:45:00"]
[null,"03:30:00"]
[null,"09:00:00"]
[null,"03:00:00"]
[null,"21:00:00"]
[null,"05:45:00"]
[null,"13:00:00"]
[null,"21:45:00"]
[null,"15:45:00"]
[null,"23:00:00"]
[null,"07:45:00"]
[null,"01:45:00"]
[null,"10:30:00"]
[null,"17:45:00"]
[null,"11:45:00"]
[null,"20:30:00"]
[null,"14:30:00"]
[null,"21:45:00"]
[null,"06:30:00"]
[null,"00:30:00"]
[null,"09:15:00"]
[null,"16:30:00"]
[null,"10:30:00"]
[null,"19:15:00"]
[null,"13:15:00"]
[null,"20:30:00"]
[null,"05:15:00"]
[null,"02:45:00"]
[null,"08:15:00"]
[null,"15:30:00"]
[null,"09:30:00"]
[null,"18:15:00"]
[null,"12:15:00"]
[null,"21:00:00"]
[null,"04:15:00"]
[null,"22:15:00"]
[null,"07:00:00"]
[null,"14:15:00"]
[null,"08:15:00"]
[null,"17:00:00"]
[null,"00:15:00"]
[null,"09:00:00"]
[null,"03:00:00"]
[null,"21:00:00"]
[null,"05:45:00"]
[null,"13:00:00"]
[null,"21:45:00"]
[null,"15:45:00"]
[null,"23:00:00"]
[null,"07:45:00"]
[null,"01:45:00"]
[null,"19:45:00"]
[null,"04:30:00"]
[null,"11:45:00"]
[null,"02:00:00"]
[null,"14:45:00"]
[null,"22:00:00"]
[null,"06:45:00"]
[null,"00:45:00"]
[null,"18:45:00"]
[null,"03:30:00"]
[null,"10:45:00"]
[null,"19:30:00"]
[null,"13:30:00"]
[null,"20:45:00"]
[null,"05:30:00"]
[null,"23:30:00"]
[null,"08:15:00"]
[null,"15:30:00"]
[null,"09:30:00"]
[null,"18:15:00"]
[null,"12:15:00"]
[null,"19:30:00"]
[null,"04:15:00"]
[null,"22:15:00"]
[null,"07:00:00"]
[null,"14:15:00"]
[null,"08:15:00"]
[null,"17:00:00"]
[null,{"$f":"IF($B$4=$B$5,\"\",B593431)","v":"11:00:00"}]
[null,"01:15:00"]
[null,"03:15:00"]
[null,"21:15:00"]
[null,"06:00:00"]
[null,"13:15:00"]
[null,"07:15:00"]
[null,"16:00:00"]
[null,"23:15:00"]
[null,"18:45:00"]
[null,"02:00:00"]
[null,"20:00:00"]
[null,"04:45:00"]
[null,"12:00:00"]
[null,"06:00:00"]
[null,"14:45:00"]
[null,"22:00:00"]
[null,"06:45:00"]
[null,"00:45:00"]
[null,"18:45:00"]
[null,"03:30:00"]
[null,"10:45:00"]
[null,"19:30:00"]
[null,"13:30:00"]
[null,"20:45:00"]
[null,"05:30:00"]
[null,"23:30:00"]
[null,"10:30:00"]
[null,"02:30:00"]
[null,"09:45:00"]
[null,"18:30:00"]
[null,"12:30:00"]
[null,"19:45:00"]
[null,"04:30:00"]
[null,"22:30:00"]
[null,"05:45:00"]
[null,"14:30:00"]
[null,"08:30:00"]
[null,"17:15:00"]
[null,"11:15:00"]
[null,"18:30:00"]
[null,"03:15:00"]
[null,"21:15:00"]
[null,"06:00:00"]
[null,"13:15:00"]
[null,"07:15:00"]
[null,"16:00:00"]
[null,"10:00:00"]
[null,"17:15:00"]
[null,"02:00:00"]
[null,"20:00:00"]
[null,"04:45:00"]
[null,"12:00:00"]
[null,"06:00:00"]
[null,"09:45:00"]
[null,"09:00:00"]
[null,"17:45:00"]
[null,"01:00:00"]
[null,{"$f":"IF($B$4=$B$5,\"\",B623703)","v":"19:00:00"}]
[null,"03:45:00"]
[null,"11:00:00"]
[null,"05:00:00"]
[null,"13:45:00"]
[null,"21:00:00"]
[null,"05:45:00"]
[null,"23:45:00"]
[null,"17:45:00"]
[null,"02:30:00"]
[null,"09:45:00"]
[null,"03:45:00"]
[null,"12:30:00"]
[null,"19:45:00"]
[null,"04:30:00"]
[null,"22:30:00"]
[null,"16:30:00"]
[null,"01:15:00"]
[null,"08:30:00"]
[null,"17:15:00"]
[null,"11:15:00"]
[null,"18:30:00"]
[null,"09:00:00"]
[null,"21:30:00"]
[null,"04:45:00"]
[null,"13:30:00"]
[null,"07:30:00"]
[null,"16:15:00"]
[null,"10:15:00"]
[null,"17:30:00"]
[null,"02:15:00"]
[null,"20:15:00"]
[null,"03:30:00"]
[null,"12:15:00"]
[null,"06:15:00"]
[null,"15:00:00"]
[null,"09:00:00"]
[null,"16:15:00"]
[null,"01:00:00"]
[null,{"$f":"IF($B$4=$B$5,\"\",B644055)","v":"19:00:00"}]
[null,"03:45:00"]
[null,"11:00:00"]
[null,"05:00:00"]
[null,"13:45:00"]
[null,"07:45:00"]
[null,"15:00:00"]
[null,"23:45:00"]
[null,"17:45:00"]
[null,"08:15:00"]
[null,"10:00:00"]
[null,"04:00:00"]
[null,"12:45:00"]
[null,"20:00:00"]
[null,"04:45:00"]
[null,"22:45:00"]
[null,"16:45:00"]
[null,"01:30:00"]
[null,"08:45:00"]
[null,"02:45:00"]
[null,"11:30:00"]
[null,"18:45:00"]
[null,"03:30:00"]
[null,"21:30:00"]
[null,"15:30:00"]
[null,"00:15:00"]
[null,"07:30:00"]
[null,"01:30:00"]
[null,"10:15:00"]
[null,"17:30:00"]
[null,"02:15:00"]
[null,"20:15:00"]
[null,"03:30:00"]
[null,"23:00:00"]
[null,"06:15:00"]
[null,"15:00:00"]
[null,"17:30:00"]
[null,"16:30:00"]
[null,"01:15:00"]
[null,"19:15:00"]
[null,"02:30:00"]
[null,"11:15:00"]
[null,"05:15:00"]
[null,"14:00:00"]
[null,"08:00:00"]
[null,"15:15:00"]
[null,"00:00:00"]
[null,"18:00:00"]
[null,"02:45:00"]
[null,"10:00:00"]
[null,"04:00:00"]
[null,"12:45:00"]
[null,"06:45:00"]
[null,"14:00:00"]
[null,"22:45:00"]
[null,"16:45:00"]
[null,"01:30:00"]
[null,"08:45:00"]
[null,"02:45:00"]
[null,"11:30:00"]
[null,"18:45:00"]
[null,"12:45:00"]
[null,"16:45:00"]
[null,"15:45:00"]
[null,"00:30:00"]
[null,"07:45:00"]
[null,"01:45:00"]
[null,"10:30:00"]
[null,"17:45:00"]
[null,"02:30:00"]
[null,"20:30:00"]
[null,"14:30:00"]
[null,"23:15:00"]
[null,"06:30:00"]
[null,"00:30:00"]
[null,"09:15:00"]
[null,"16:30:00"]
[null,"01:15:00"]
[null,"19:15:00"]
[null,"13:15:00"]
[null,"22:00:00"]
[null,"05:15:00"]
[null,"23:15:00"]
[null,"08:00:00"]
[null,"15:15:00"]
[null,"00:00:00"]
[null,"18:00:00"]
[null,"01:15:00"]
[null,"16:00:00"]
[null,"04:15:00"]
[null,"13:00:00"]
[null,"07:00:00"]
[null,"14:15:00"]
[null,"23:00:00"]
[null,"17:00:00"]
[null,"00:15:00"]
[null,"09:00:00"]
[null,{"$f":"IF($B$4=$B$5,\"\",B694679)","v":"03:00:00"}]
[null,"11:45:00"]
[null,"05:45:00"]
[null,"13:00:00"]
[null,"21:45:00"]
[null,"15:45:00"]
[null,"00:30:00"]
[null,"07:45:00"]
[null,"01:45:00"]
[null,"10:30:00"]
[null,"04:30:00"]
[null,"11:45:00"]
[null,"20:30:00"]
[null,"14:30:00"]
[null,"23:15:00"]
[null,"06:30:00"]
[null,"00:30:00"]
[null,"09:15:00"]
[null,"12:15:00"]
[null,"10:45:00"]
[null,"19:30:00"]
[null,"13:30:00"]
[null,"22:15:00"]
[null,"05:30:00"]
[null,"23:30:00"]
[null,"08:15:00"]
[null,"15:30:00"]
[null,"00:15:00"]
[null,"18:15:00"]
[null,"12:15:00"]
[null,"21:00:00"]
[null,"04:15:00"]
[null,"22:15:00"]
[null,"07:00:00"]
[null,"14:15:00"]
[null,"23:00:00"]
[null,"17:00:00"]
[null,"00:15:00"]
[null,"09:00:00"]
[null,{"$f":"IF($B$4=$B$5,\"\",B715031)","v":"03:00:00"}]
[null,"11:45:00"]
[null,"05:45:00"]
[null,"13:00:00"]
[null,"21:45:00"]
[null,"00:30:00"]
[null,"23:15:00"]
[null,"08:00:00"]
[null,"02:00:00"]
[null,"10:45:00"]
[null,"04:45:00"]
[null,"12:00:00"]
[null,"20:45:00"]
[null,"14:45:00"]
[null,"22:00:00"]
[null,"06:45:00"]
[null,"00:45:00"]
[null,"09:30:00"]
[null,"03:30:00"]
[null,"10:45:00"]
[null,"19:30:00"]
[null,"13:30:00"]
[null,"22:15:00"]
[null,"05:30:00"]
[null,"23:30:00"]
[null,"08:15:00"]
[null,"15:30:00"]
[null,"09:30:00"]
[null,"18:15:00"]
[null,"12:15:00"]
[null,"21:00:00"]
[null,"23:45:00"]
[null,"22:30:00"]
[null,"07:15:00"]
[null,"14:30:00"]
[null,"08:30:00"]
[null,"17:15:00"]
[null,"11:15:00"]
[null,"20:00:00"]
[null,"03:15:00"]
[null,"21:15:00"]
[null,"06:00:00"]
[null,"13:15:00"]
[null,"22:00:00"]
[null,"16:00:00"]
[null,"23:15:00"]
[null,"18:45:00"]
[null,"02:00:00"]
[null,"20:00:00"]
[null,"04:45:00"]
[null,"12:00:00"]
[null,"20:45:00"]
[null,"14:45:00"]
[null,"22:00:00"]
[null,"06:45:00"]
[null,"00:45:00"]
[null,"09:30:00"]
[null,"03:30:00"]
[null,"20:00:00"]
[null,"19:45:00"]
[null,"13:45:00"]
[null,"21:00:00"]
[null,"05:45:00"]
[null,"23:45:00"]
[null,"08:30:00"]
[null,"02:30:00"]
[null,"09:45:00"]
[null,"18:30:00"]
[null,"12:30:00"]
[null,"19:45:00"]
[null,"04:30:00"]
[null,"22:30:00"]
[null,"07:15:00"]
[null,"14:30:00"]
[null,"08:30:00"]
[null,"17:15:00"]
[null,"11:15:00"]
[null,"20:00:00"]
[null,"03:15:00"]
[null,"21:15:00"]
[null,"06:00:00"]
[null,"13:15:00"]
[null,"07:15:00"]
[null,"16:00:00"]
[null,"19:15:00"]
[null,"19:00:00"]
[null,"02:15:00"]
[null,"20:15:00"]
[null,"05:00:00"]
[null,"12:15:00"]
[null,"06:15:00"]
[null,"15:00:00"]
[null,"09:00:00"]
[null,"17:45:00"]
[null,"01:00:00"]
[null,"19:00:00"]
[null,"03:45:00"]
[null,{"$f":"IF($B$4=$B$5,\"\",B765655)","v":"11:00:00"}]
[null,"19:45:00"]
[null,"13:45:00"]
[null,"21:00:00"]
[null,"05:45:00"]
[null,"23:45:00"]
[null,"17:45:00"]
[null,"02:30:00"]
[null,"09:45:00"]
[null,"18:30:00"]
[null,"12:30:00"]
[null,"19:45:00"]
[null,"04:30:00"]
[null,"18:30:00"]
[null,"07:30:00"]
[null,"01:30:00"]
[null,"08:45:00"]
[null,"17:30:00"]
[null,"11:30:00"]
[null,"18:45:00"]
[null,"03:30:00"]
[null,"21:30:00"]
[null,"06:15:00"]
[null,"00:15:00"]
[null,"07:30:00"]
[null,"16:15:00"]
[null,"10:15:00"]
[null,"17:30:00"]
[null,"02:15:00"]
[null,"20:15:00"]
[null,"05:00:00"]
[null,"12:15:00"]
[null,"06:15:00"]
[null,"15:00:00"]
[null,"09:00:00"]
[null,"17:45:00"]
[null,"01:00:00"]
[null,"19:00:00"]
[null,"03:45:00"]
[null,"17:45:00"]
[null,"05:15:00"]
[null,"14:00:00"]
[null,"08:00:00"]
[null,"16:45:00"]
[null,"00:00:00"]
[null,"18:00:00"]
[null,"02:45:00"]
[null,"10:00:00"]
[null,"18:45:00"]
[null,"12:45:00"]
[null,"20:00:00"]
[null,"04:45:00"]
[null,"22:45:00"]
[null,"16:45:00"]
[null,"01:30:00"]
[null,"08:45:00"]
[null,"17:30:00"]
[null,"11:30:00"]
[null,"18:45:00"]
[null,"03:30:00"]
[null,"21:30:00"]
[null,"15:30:00"]
[null,"00:15:00"]
[null,"07:30:00"]
[null,"16:15:00"]
[null,"10:15:00"]
[null,"03:00:00"]
[null,"02:30:00"]
[null,"20:30:00"]
[null,"05:15:00"]
[null,"23:15:00"]
[null,"06:30:00"]
[null,"15:15:00"]
[null,"09:15:00"]
[null,"16:30:00"]
[null,"01:15:00"]
[null,"19:15:00"]
[null,"04:00:00"]
[null,"11:15:00"]
[null,"05:15:00"]
[null,"14:00:00"]
[null,"08:00:00"]
[null,"15:15:00"]
[null,"00:00:00"]
[null,"18:00:00"]
[null,"02:45:00"]
[null,"10:00:00"]
[null,"04:00:00"]
[null,"12:45:00"]
[null,"06:45:00"]
[null,"15:30:00"]
[null,"22:45:00"]
[null,"02:15:00"]
[null,"01:45:00"]
[null,"09:00:00"]
[null,"03:00:00"]
[null,"11:45:00"]
[null,{"$f":"IF($B$4=$B$5,\"\",B816279)","v":"19:00:00"}]
[null,"14:30:00"]
[null,"21:45:00"]
[null,"15:45:00"]
[null,"00:30:00"]
[null,"07:45:00"]
[null,"16:30:00"]
[null,"10:30:00"]
[null,"17:45:00"]
[null,"02:30:00"]
[null,"20:30:00"]
[null,"14:30:00"]
[null,"23:15:00"]
[null,"06:30:00"]
[null,"15:15:00"]
[null,"09:15:00"]
[null,"16:30:00"]
[null,"01:15:00"]
[null,"19:15:00"]
[null,"13:15:00"]
[null,"22:00:00"]
[null,"01:30:00"]
[null,"14:15:00"]
[null,"08:15:00"]
[null,"15:30:00"]
[null,"00:15:00"]
[null,"18:15:00"]
[null,"03:00:00"]
[null,"10:15:00"]
[null,"04:15:00"]
[null,"13:00:00"]
[null,"07:00:00"]
[null,"14:15:00"]
[null,"23:00:00"]
[null,"17:00:00"]
[null,"01:45:00"]
[null,"09:00:00"]
[null,"03:00:00"]
[null,"11:45:00"]
[null,"05:45:00"]
[null,"13:00:00"]
[null,"21:45:00"]
[null,"15:45:00"]
[null,"00:30:00"]
[null,"07:45:00"]
[null,"01:45:00"]
[null,"10:30:00"]
[null,"04:30:00"]
[null,"00:45:00"]
[null,"20:45:00"]
[null,"14:45:00"]
[null,"23:30:00"]
[null,"06:45:00"]
[null,"00:45:00"]
[null,"09:30:00"]
[null,"16:45:00"]
[null,"01:30:00"]
[null,"19:30:00"]
[null,"13:30:00"]
[null,"22:15:00"]
[null,"05:30:00"]
[null,"14:15:00"]
[null,"08:15:00"]
[null,"15:30:00"]
[null,"00:15:00"]
[null,"18:15:00"]
[null,"12:15:00"]
[null,"21:00:00"]
[null,"04:15:00"]
[null,"13:00:00"]
[null,"07:00:00"]
[null,"14:15:00"]
[null,"23:00:00"]
[null,"17:00:00"]
[null,"10:00:00"]
[null,"09:15:00"]
[null,"03:15:00"]
[null,"12:00:00"]
[null,"06:00:00"]
[null,"13:15:00"]
[null,"22:00:00"]
[null,"16:00:00"]
[null,"00:45:00"]
[null,"08:00:00"]
[null,"02:00:00"]
[null,"10:45:00"]
[null,"04:45:00"]
[null,"12:00:00"]
[null,"20:45:00"]
[null,"14:45:00"]
[null,"23:30:00"]
[null,"06:45:00"]
[null,"00:45:00"]
[null,"09:30:00"]
[null,"03:30:00"]
[null,"12:15:00"]
[null,"19:30:00"]
[null,"13:30:00"]
[null,"22:15:00"]
[null,"05:30:00"]
[null,"09:15:00"]
[null,"08:30:00"]
[null,"15:45:00"]
[null,"00:30:00"]
[null,"18:30:00"]
[null,"12:30:00"]
[null,"21:15:00"]
[null,"04:30:00"]
[null,"22:30:00"]
[null,"07:15:00"]
[null,"14:30:00"]
[null,"23:15:00"]
[null,"17:15:00"]
[null,"11:15:00"]
[null,"20:00:00"]
[null,"03:15:00"]
[null,"12:00:00"]
[null,"06:00:00"]
[null,"13:15:00"]
[null,"22:00:00"]
[null,"16:00:00"]
[null,"10:00:00"]
[null,"18:45:00"]
[null,"02:00:00"]
[null,"10:45:00"]
[null,"04:45:00"]
[null,"12:00:00"]
[null,"08:30:00"]
[null,"15:00:00"]
[null,"22:15:00"]
[null,"07:00:00"]
[null,"01:00:00"]
[null,"09:45:00"]
[null,"03:45:00"]
[null,"11:00:00"]
[null,"19:45:00"]
[null,"13:45:00"]
[null,"22:30:00"]
[null,"05:45:00"]
[null,"23:45:00"]
[null,"08:30:00"]
[null,"02:30:00"]
[null,"09:45:00"]
[null,"18:30:00"]
[null,"12:30:00"]
[null,"21:15:00"]
[null,"04:30:00"]
[null,"22:30:00"]
[null,"07:15:00"]
[null,"14:30:00"]
[null,"10:00:00"]
[null,"17:15:00"]
[null,"11:15:00"]
[null,"07:45:00"]
[null,"03:30:00"]
[null,"21:30:00"]
[null,"06:15:00"]
[null,"13:30:00"]
[null,"22:15:00"]
[null,"16:15:00"]
[null,"10:15:00"]
[null,{"$f":"IF($B$4=$B$5,\"\",B900951)","v":"19:00:00"}]
[null,"02:15:00"]
[null,"20:15:00"]
[null,"05:00:00"]
[null,"12:15:00"]
[null,"21:00:00"]
[null,"15:00:00"]
[null,"09:00:00"]
[null,"17:45:00"]
[null,"01:00:00"]
[null,"09:45:00"]
[null,"03:45:00"]
[null,"11:00:00"]
[null,"19:45:00"]
[null,"13:45:00"]
[null,"21:00:00"]
[null,"05:45:00"]
[null,"23:45:00"]
[null,"07:00:00"]
[null,"02:45:00"]
[null,"10:00:00"]
[null,"18:45:00"]
[null,"12:45:00"]
[null,"21:30:00"]
[null,"04:45:00"]
[null,"22:45:00"]
[null,"07:30:00"]
[null,"01:30:00"]
[null,"08:45:00"]
[null,"17:30:00"]
[null,"11:30:00"]
[null,"20:15:00"]
[null,"03:30:00"]
[null,"21:30:00"]
[null,"06:15:00"]
[null,"00:15:00"]
[null,"07:30:00"]
[null,"16:15:00"]
[null,"10:15:00"]
[null,{"$f":"IF($B$4=$B$5,\"\",B921303)","v":"19:00:00"}]
[null,"02:15:00"]
[null,"20:15:00"]
[null,"05:00:00"]
[null,"12:15:00"]
[null,"21:00:00"]
[null,"16:15:00"]
[null,"09:15:00"]
[null,"18:00:00"]
[null,"01:15:00"]
[null,"19:15:00"]
[null,"04:00:00"]
[null,"11:15:00"]
[null,"20:00:00"]
[null,"14:00:00"]
[null,"08:00:00"]
[null,"16:45:00"]
[null,"00:00:00"]
[null,"18:00:00"]
[null,"02:45:00"]
[null,"10:00:00"]
[null,"18:45:00"]
[null,"12:45:00"]
[null,"20:00:00"]
[null,"04:45:00"]
[null,"22:45:00"]
[null,"07:30:00"]
[null,"01:30:00"]
[null,"08:45:00"]
[null,"17:30:00"]
[null,"11:30:00"]
[null,"18:45:00"]
[null,"15:30:00"]
[null,"21:45:00"]
[null,"06:30:00"]
[null,"00:30:00"]
[null,"07:45:00"]
[null,"16:30:00"]
[null,"10:30:00"]
[null,"19:15:00"]
[null,"02:30:00"]
[null,"20:30:00"]
[null,"05:15:00"]
[null,"23:15:00"]
[null,"06:30:00"]
[null,"15:15:00"]
[null,"09:15:00"]
[null,"18:00:00"]
[null,"01:15:00"]
[null,"19:15:00"]
[null,"04:00:00"]
[null,"11:15:00"]
[null,"05:15:00"]
[null,"14:00:00"]
[null,"08:00:00"]
[null,"16:45:00"]
[null,"00:00:00"]
[null,"18:00:00"]
[null,"14:45:00"]
[null,"10:15:00"]
[null,"19:00:00"]
[null,"13:00:00"]
[null,"07:00:00"]
[null,"15:45:00"]
[null,"23:00:00"]
[null,"17:00:00"]
[null,"01:45:00"]
[null,"09:00:00"]
[null,"17:45:00"]
[null,"11:45:00"]
[null,"19:00:00"]
[null,"14:30:00"]
[null,"21:45:00"]
[null,"15:45:00"]
[null,"00:30:00"]
[null,"07:45:00"]
[null,"16:30:00"]
[null,"10:30:00"]
[null,"17:45:00"]
[null,"02:30:00"]
[null,"20:30:00"]
[null,"05:15:00"]
[null,"23:15:00"]
[null,"06:30:00"]
[null,"15:15:00"]
[null,"00:00:00"]
[null,"16:45:00"]
[null,"01:30:00"]
[null,"19:30:00"]
[null,"04:15:00"]
[null,"22:15:00"]
[null,"05:30:00"]
[null,"14:15:00"]
[null,"08:15:00"]
[null,"17:00:00"]
[null,"00:15:00"]
[null,"18:15:00"]
[null,{"$f":"IF($B$4=$B$5,\"\",B971927)","v":"03:00:00"}]
[null,"10:15:00"]
[null,"04:15:00"]
[null,"13:00:00"]
[null,"07:00:00"]
[null,"15:45:00"]
[null,"23:00:00"]
[null,"17:00:00"]
[null,"01:45:00"]
[null,"09:00:00"]
[null,{"$f":"IF($B$4=$B$5,\"\",B977111)","v":"03:00:00"}]
[null,"11:45:00"]
[null,"05:45:00"]
[null,"14:30:00"]
[null,"23:15:00"]
[null,"16:00:00"]
[null,"00:45:00"]
[null,"08:00:00"]
[null,"16:45:00"]
[null,"10:45:00"]
[null,"04:45:00"]
[null,"13:30:00"]
[null,"20:45:00"]
[null,"14:45:00"]
[null,"23:30:00"]
[null,"06:45:00"]
[null,"15:30:00"]
[null,"09:30:00"]
[null,"16:45:00"]
[null,"01:30:00"]
[null,"19:30:00"]
[null,"04:15:00"]
[null,"22:15:00"]
[null,"05:30:00"]
[null,"14:15:00"]
[null,"08:15:00"]
[null,"15:30:00"]
[null,"00:15:00"]
[null,"18:15:00"]
[null,{"$f":"IF($B$4=$B$5,\"\",B992279)","v":"03:00:00"}]
[null,"22:30:00"]
[null,"04:30:00"]
[null,"13:15:00"]
[null,"07:15:00"]
[null,"14:30:00"]
[null,"23:15:00"]
[null,"17:15:00"]
[null,"02:00:00"]
[null,"20:00:00"]
[null,"03:15:00"]
[null,"12:00:00"]
[null,"06:00:00"]
[null,"14:45:00"]
[null,"22:00:00"]
[null,"16:00:00"]
[null,"00:45:00"]
[null,"08:00:00"]
[null,"02:00:00"]
[null,"10:45:00"]
[null,"04:45:00"]
[null,"13:30:00"]
[null,"20:45:00"]
[null,"14:45:00"]
[null,"23:30:00"]
[null,"06:45:00"]
[null,"00:45:00"]
[null,"09:30:00"]
[null,"07:45:00"]
[null,"12:30:00"]
[null,"19:45:00"]
[null,"13:45:00"]
[null,"22:30:00"]
[null,"05:45:00"]
[null,"14:30:00"]
[null,"08:30:00"]
[null,"15:45:00"]
[null,"00:30:00"]
[null,"18:30:00"]
[null,"12:30:00"]
[null,"21:15:00"]
[null,"04:30:00"]
[null,"13:15:00"]
[null,"07:15:00"]
[null,"14:30:00"]
[null,"23:15:00"]
[null,"17:15:00"]
[null,"02:00:00"]
[null,"20:00:00"]
[null,"03:15:00"]
[null,"12:00:00"]
[null,"06:00:00"]
[null,"13:15:00"]
[null,"22:00:00"]
[null,"07:00:00"]
[null,"01:00:00"]
[null,"19:00:00"]
[null,"02:15:00"]
[null,{"$f":"IF($B$4=$B$5,\"\",B1022551)","v":"11:00:00"}]
[null,"05:00:00"]
[null,"12:15:00"]
[null,"21:00:00"]
[null,"15:00:00"]
[null,"23:45:00"]
[null,"07:00:00"]
[null,"01:00:00"]
[null,"09:45:00"]
[null,"03:45:00"]
[null,"12:30:00"]
[null,"19:45:00"]
[null,"13:45:00"]
[null,"22:30:00"]
[null,"05:45:00"]
[null,"23:45:00"]
[null,"08:30:00"]
[null,"02:30:00"]
[null,"11:15:00"]
[null,"18:30:00"]
[null,"12:30:00"]
[null,"21:15:00"]
[null,"06:15:00"]
[null,"13:30:00"]
[null,"07:30:00"]
[null,"14:45:00"]
[null,"10:15:00"]
[null,"17:30:00"]
[null,"11:30:00"]
[null,"20:15:00"]
[null,"03:30:00"]
[null,"12:15:00"]
[null,"06:15:00"]
[null,"13:30:00"]
[null,"22:15:00"]
[null,"16:15:00"]
[null,"10:15:00"]
[null,"19:00:00"]
[null,"02:15:00"]
[null,{"$f":"IF($B$4=$B$5,\"\",B1042903)","v":"11:00:00"}]
[null,"05:00:00"]
[null,"12:15:00"]
[null,"21:00:00"]
[null,"15:00:00"]
[null,"23:45:00"]
[null,"17:45:00"]
[null,"01:00:00"]
[null,"09:45:00"]
[null,"05:30:00"]
[null,"08:30:00"]
[null,"08:45:00"]
[null,"09:00:00"]
[null,"09:15:00"]
[null,"09:30:00"]
[null,"09:45:00"]
[null,"10:00:00"]
[null,"10:15:00"]
[null,"10:30:00"]
[null,"10:45:00"]
[null,"11:00:00"]
[null,"11:15:00"]
[null,"11:30:00"]
[null,"11:45:00"]
[null,"12:00:00"]
[null,"12:15:00"]
[null,"12:30:00"]
[null,"12:45:00"]
[null,"13:00:00"]
[null,"13:15:00"]
[null,"13:30:00"]
[null,"13:45:00"]
[null,"14:00:00"]
[null,"14:15:00"]
[null,"14:30:00"]
[null,"14:45:00"]
[null,"15:00:00"]
[null,"15:15:00"]
[null,"15:30:00"]
[null,"15:45:00"]
[null,"16:00:00"]
[null,"16:15:00"]
[null,"16:30:00"]
[null,"16:45:00"]
[null,"17:00:00"]
[null,"17:15:00"]
[null,"17:30:00"]
[null,"17:45:00"]
[null,"18:00:00"]
[null,"18:15:00"]
[null,"18:30:00"]
[null,"18:45:00"]
[null,{"$f":"IF($B$4=$B$5,\"\",B1048023)","v":"19:00:00"}]
[null,"19:15:00"]
[null,"19:30:00"]
[null,"19:45:00"]
[null,"20:00:00"]
[null,"20:15:00"]
[null,"20:30:00"]
[null,"20:45:00"]
[null,"21:00:00"]
[null,"21:15:00"]
[null,"21:30:00"]
[null,"21:45:00"]
[null,"22:00:00"]
[null,"22:15:00"]
[null,"22:30:00"]
[null,"22:45:00"]
[null,"23:00:00"]
[null,"23:15:00"]
[null,"23:30:00"]
[null,"23:45:00"]
[null,"00:00:00"]
[null,"00:15:00"]
[null,"00:30:00"]
[null,"00:45:00"]
[null,"01:00:00"]
[null,"01:15:00"]
[null,"01:30:00"]
[null,"01:45:00"]
[null,"02:00:00"]
[null,"02:15:00"]
[null,"02:30:00"]
[null,"02:45:00"]
[null,"03:00:00"]
[null,"03:15:00"]
[null,"03:30:00"]
[null,"03:45:00"]
[null,"04:00:00"]
[null,"04:15:00"]
[null,"04:30:00"]
[null,"04:45:00"]
[null,"05:00:00"]
[null,"05:15:00"]
[null,"05:30:00"]
[null,"05:45:00"]
[null,"06:00:00"]
[null,"06:15:00"]
[null,"06:30:00"]
[null,"06:45:00"]
[null,"07:00:00"]
[null,"07:15:00"]
[null,"07:30:00"]
[null,"07:45:00"]
[null,"08:00:00"]
[null,"08:15:00"]
[null,"08:30:00"]
[null,"08:45:00"]
[null,"09:00:00"]
[null,"09:15:00"]
[null,"09:30:00"]
[null,"09:45:00"]
[null,"10:00:00"]
[null,"10:15:00"]
[null,"10:30:00"]
[null,"10:45:00"]
[null,{"$f":"IF($B$4=$B$5,\"\",B1048087)","v":"11:00:00"}]
[null,"11:15:00"]
[null,"11:30:00"]
[null,"11:45:00"]
[null,"12:00:00"]
[null,"12:15:00"]
[null,"12:30:00"]
[null,"12:45:00"]
[null,"13:00:00"]
[null,"13:15:00"]
[null,"13:30:00"]
[null,"13:45:00"]
[null,"14:00:00"]
[null,"14:15:00"]
[null,"14:30:00"]
[null,"14:45:00"]
[null,"15:00:00"]
[null,"15:15:00"]
[null,"15:30:00"]
[null,"15:45:00"]
[null,"16:00:00"]
[null,"16:15:00"]
[null,"16:30:00"]
[null,"16:45:00"]
[null,"17:00:00"]
[null,"17:15:00"]
[null,"17:30:00"]
[null,"17:45:00"]
[null,"18:00:00"]
[null,"18:15:00"]
[null,"18:30:00"]
[null,"18:45:00"]
[null,"19:00:00"]
[null,"19:15:00"]
[null,"19:30:00"]
[null,"19:45:00"]
[null,"20:00:00"]
[null,"20:15:00"]
[null,"20:30:00"]
[null,"20:45:00"]
[null,"21:00:00"]
[null,"21:15:00"]
[null,"21:30:00"]
[null,"21:45:00"]
[null,"22:00:00"]
[null,"22:15:00"]
[null,"22:30:00"]
[null,"22:45:00"]
[null,"23:00:00"]
[null,"23:15:00"]
[null,"23:30:00"]
[null,"23:45:00"]
[null,"00:00:00"]
[null,"00:15:00"]
[null,"00:30:00"]
[null,"00:45:00"]
[null,"01:00:00"]
[null,"01:15:00"]
[null,"01:30:00"]
[null,"01:45:00"]
[null,"02:00:00"]
[null,"02:15:00"]
[null,"02:30:00"]
[null,"02:45:00"]
[null,{"$f":"IF($B$4=$B$5,\"\",B1048151)","v":"03:00:00"}]
[null,"03:15:00"]
[null,"03:30:00"]
[null,"03:45:00"]
[null,"04:00:00"]
[null,"04:15:00"]
[null,"04:30:00"]
[null,"04:45:00"]
[null,"05:00:00"]
[null,"05:15:00"]
[null,"05:30:00"]
[null,"05:45:00"]
[null,"06:00:00"]
[null,"06:15:00"]
[null,"06:30:00"]
[null,"06:45:00"]
[null,"07:00:00"]
[null,"07:15:00"]
[null,"07:30:00"]
[null,"07:45:00"]
[null,"08:00:00"]
[null,"08:15:00"]
[null,"08:30:00"]
[null,"08:45:00"]
[null,"09:00:00"]
[null,"09:15:00"]
[null,"09:30:00"]
[null,"09:45:00"]
[null,"10:00:00"]
[null,"10:15:00"]
[null,"10:30:00"]
[null,"10:45:00"]
[null,"11:00:00"]
[null,"11:15:00"]
[null,"11:30:00"]
[null,"11:45:00"]
[null,"12:00:00"]
[null,"12:15:00"]
[null,"12:30:00"]
[null,"12:45:00"]
[null,"13:00:00"]
[null,"13:15:00"]
[null,"13:30:00"]
[null,"13:45:00"]
[null,"14:00:00"]
[null,"14:15:00"]
[null,"14:30:00"]
[null,"14:45:00"]
[null,"15:00:00"]
[null,"15:15:00"]
[null,"15:30:00"]
[null,"15:45:00"]
[null,"16:00:00"]
[null,"16:15:00"]
[null,"16:30:00"]
[null,"16:45:00"]
[null,"17:00:00"]
[null,"17:15:00"]
[null,"17:30:00"]
[null,"17:45:00"]
[null,"18:00:00"]
[null,"18:15:00"]
[null,"18:30:00"]
[null,"18:45:00"]
[null,{"$f":"IF($B$4=$B$5,\"\",B1048215)","v":"19:00:00"}]
[null,"19:15:00"]
[null,"19:30:00"]
[null,"19:45:00"]
[null,"20:00:00"]
[null,"20:15:00"]
[null,"20:30:00"]
[null,"20:45:00"]
[null,"21:00:00"]
[null,"21:15:00"]
[null,"21:30:00"]
[null,"21:45:00"]
[null,"22:00:00"]
[null,"22:15:00"]
[null,"22:30:00"]
[null,"22:45:00"]
[null,"23:00:00"]
[null,"23:15:00"]
[null,"23:30:00"]
[null,"23:45:00"]
[null,"00:00:00"]
[null,"00:15:00"]
[null,"00:30:00"]
[null,"00:45:00"]
[null,"01:00:00"]
[null,"01:15:00"]
[null,"01:30:00"]
[null,"01:45:00"]
[null,"02:00:00"]
[null,"02:15:00"]
[null,"02:30:00"]
[null,"02:45:00"]
[null,"03:00:00"]
[null,"03:15:00"]
[null,"03:30:00"]
[null,"03:45:00"]
[null,"04:00:00"]
[null,"04:15:00"]
[null,"04:30:00"]
[null,"04:45:00"]
[null,"05:00:00"]
[null,"05:15:00"]
[null,"05:30:00"]
[null,"05:45:00"]
[null,"06:00:00"]
[null,"06:15:00"]
[null,"06:30:00"]
[null,"06:45:00"]
[null,"07:00:00"]
[null,"07:15:00"]
[null,"07:30:00"]
[null,"07:45:00"]
[null,"08:00:00"]
[null,"08:15:00"]
[null,"08:30:00"]
[null,"08:45:00"]
[null,"09:00:00"]
[null,"09:15:00"]
[null,"09:30:00"]
[null,"09:45:00"]
[null,"10:00:00"]
[null,"10:15:00"]
[null,"10:30:00"]
[null,"10:45:00"]
[null,{"$f":"IF($B$4=$B$5,\"\",B1048279)","v":"11:00:00"}]
[null,"11:15:00"]
[null,"11:30:00"]
[null,"11:45:00"]
[null,"12:00:00"]
[null,"12:15:00"]
[null,"12:30:00"]
[null,"12:45:00"]
[null,"13:00:00"]
[null,"13:15:00"]
[null,"13:30:00"]
[null,"13:45:00"]
[null,"14:00:00"]
[null,"14:15:00"]
[null,"14:30:00"]
[null,"14:45:00"]
[null,"15:00:00"]
[null,"15:15:00"]
[null,"15:30:00"]
[null,"15:45:00"]
[null,"16:00:00"]
[null,"16:15:00"]
[null,"16:30:00"]
[null,"16:45:00"]
[null,"17:00:00"]
[null,"17:15:00"]
[null,"17:30:00"]
[null,"17:45:00"]
[null,"18:00:00"]
[null,"18:15:00"]
[null,"18:30:00"]
[null,"18:45:00"]
[null,"19:00:00"]
[null,"19:15:00"]
[null,"19:30:00"]
[null,"19:45:00"]
[null,"20:00:00"]
[null,"20:15:00"]
[null,"20:30:00"]
[null,"20:45:00"]
[null,"21:00:00"]
[null,"21:15:00"]
[null,"21:30:00"]
[null,"21:45:00"]
[null,"22:00:00"]
[null,"22:15:00"]
[null,"22:30:00"]
[null,"22:45:00"]
[null,"23:00:00"]
[null,"23:15:00"]
[null,"23:30:00"]
[null,"23:45:00"]
[null,"00:00:00"]
[null,"00:15:00"]
[null,"00:30:00"]
[null,"00:45:00"]
[null,"01:00:00"]
[null,"01:15:00"]
[null,"01:30:00"]
[null,"01:45:00"]
[null,"02:00:00"]
[null,"02:15:00"]
[null,"02:30:00"]
[null,"02:45:00"]
[null,{"$f":"IF($B$4=$B$5,\"\",B1048343)","v":"03:00:00"}]
[null,"03:15:00"]
[null,"03:30:00"]
[null,"03:45:00"]
[null,"04:00:00"]
[null,"04:15:00"]
[null,"04:30:00"]
[null,"04:45:00"]
[null,"05:00:00"]
[null,"05:15:00"]
[null,"05:30:00"]
[null,"05:45:00"]
[null,"06:00:00"]
[null,"06:15:00"]
[null,"06:30:00"]
[null,"06:45:00"]
[null,"07:00:00"]
[null,"07:15:00"]
[null,"07:30:00"]
[null,"07:45:00"]
[null,"08:00:00"]
[null,"08:15:00"]
[null,"08:30:00"]
[null,"08:45:00"]
[null,"09:00:00"]
[null,"09:15:00"]
[null,"09:30:00"]
[null,"09:45:00"]
[null,"10:00:00"]
[null,"10:15:00"]
[null,"10:30:00"]
[null,"10:45:00"]
[null,"11:00:00"]
[null,"11:15:00"]
[null,"11:30:00"]
[null,"11:45:00"]
[null,"12:00:00"]
[null,"12:15:00"]
[null,"12:30:00"]
[null,"12:45:00"]
[null,"13:00:00"]
[null,"13:15:00"]
[null,"13:30:00"]
[null,"13:45:00"]
[null,"14:00:00"]
[null,"14:15:00"]
[null,"14:30:00"]
[null,"14:45:00"]
[null,"15:00:00"]
[null,"15:15:00"]
[null,"15:30:00"]
[null,"15:45:00"]
[null,"16:00:00"]
[null,"16:15:00"]
[null,"16:30:00"]
[null,"16:45:00"]
[null,"17:00:00"]
[null,"17:15:00"]
[null,"17:30:00"]
[null,"17:45:00"]
[null,"18:00:00"]
[null,"18:15:00"]
[null,"18:30:00"]
[null,"18:45:00"]
[null,{"$f":"IF($B$4=$B$5,\"\",B1048407)","v":"19:00:00"}]
[null,"19:15:00"]
[null,"19:30:00"]
[null,"19:45:00"]
[null,"20:00:00"]
[null,"20:15:00"]
[null,"20:30:00"]
[null,"20:45:00"]
[null,"21:00:00"]
[null,"21:15:00"]
[null,"21:30:00"]
[null,"21:45:00"]
[null,"22:00:00"]
[null,"22:15:00"]
[null,"22:30:00"]
[null,"22:45:00"]
[null,"23:00:00"]
[null,"23:15:00"]
[null,"23:30:00"]
[null,"23:45:00"]
[null,"00:00:00"]
[null,"00:15:00"]
[null,"00:30:00"]
[null,"00:45:00"]
[null,"01:00:00"]
[null,"01:15:00"]
[null,"01:30:00"]
[null,"01:45:00"]
[null,"02:00:00"]
[null,"02:15:00"]
[null,"02:30:00"]
[null,"02:45:00"]
[null,"03:00:00"]
[null,"03:15:00"]
[null,"03:30:00"]
[null,"03:45:00"]
[null,"04:00:00"]
[null,"04:15:00"]
[null,"04:30:00"]
[null,"04:45:00"]
[null,"05:00:00"]
[null,"05:15:00"]
[null,"05:30:00"]
[null,"05:45:00"]
[null,"06:00:00"]
[null,"06:15:00"]
[null,"06:30:00"]
[null,"06:45:00"]
[null,"07:00:00"]
[null,"07:15:00"]
[null,"07:30:00"]
[null,"07:45:00"]
[null,"08:00:00"]
[null,"08:15:00"]
[null,"08:30:00"]
[null,"08:45:00"]
[null,"09:00:00"]
[null,"09:15:00"]
[null,"09:30:00"]
[null,"09:45:00"]
[null,"10:00:00"]
[null,"10:15:00"]
[null,"10:30:00"]
[null,"10:45:00"]
[null,{"$f":"IF($B$4=$B$5,\"\",B1048471)","v":"11:00:00"}]
[null,"11:15:00"]
[null,"11:30:00"]
[null,"11:45:00"]
[null,"12:00:00"]
[null,"12:15:00"]
[null,"12:30:00"]
[null,"12:45:00"]
[null,"13:00:00"]
[null,"13:15:00"]

{"sheet":"Stammdaten","index":1,"n_rows":11,"n_cols":3,"rows_kept":11,"cut":false,"hidden":false,"merged":[[6,1,6,2],[1,1,1,2],[2,1,2,2]]}
["Anzahl der Anlagenschlüssel:",{"$f":"'Solare Energieleistung'!B1","v":1}]
["Kunde:",{"$f":"'Solare Energieleistung'!B2","v":0}]
["Marktlokation:",{"$f":"'Solare Energieleistung'!B3","v":0}]
["Beginn:",{"$f":"'Solare Energieleistung'!B4","v":"2019-05-22"}]
["Ende:",{"$f":"'Solare Energieleistung'!B5","v":"2019-05-23"}]
[]
["Hinweise:","- Nachkommastellen: bis zu 6 Stellen"]
[]
[]
["Anlagenschlüssel","PV Modulwirkungsgrad","Generatorfläche der Solaranlage"]
[null,"in %","in m²"]